Workbook

Sheet Topics
A1: Seattle, WA, E W T M Accounting Excel Seminar
A2: Topics
A3: 1 | B3: Keyboards
A4: 2 | B4: Number Formatting As Façade
A5: 3 | B5: Efficient Formula Creation
A6: 4 | B6: Lookup Formulas
A7: 5 | B7: Pivot Tables
A8: 6 | B8: Recorded Macros For Reports
A9: 7 | B9: Charts
A10: 8 | B10: Search the excelisfun YouTube channel for topics
A11: 9 | B11: Books and DVDs by Mike "excelisfun" Girvin

Sheet SubTopics
A1: Topics
A2: 1 | B2: Keyboards
B3: Slaying Excel Dragon: 1) Pages 57 - 78 in book and 2) video #6 on DVD.
B4: SUM ==> Alt + =
B5: Highlight Column ==> Ctrl + Shift + Arrow
B6: Alt keyboards
A7: 2 | B7: Number Formatting As Façade
B8: Slaying Excel Dragon: 1) Pages 2 - 248 in book and 2) video #2 on DVD.
B9: Decimal
B10: Date
B11: Time
B12: Percentage
A13: 3 | B13: Efficient Formula Creation
B14: Slaying Excel Dragon: 1) Pages 119 - 340 in book and 2) videos #11 - 36 on DVD and 3) Video #1 on Ctrl + Shift + Enter DVD.
B15: Excel's Golden Rule: If a formula input can vary, put it in a cell and refer to it in the formula with a cell reference.
B16: Formula elements, types of formulas, types of data.
B17: Monthly Allocation Formula: illustrate formula input that can be hard coded into formula.
B18: Tax (inefficient formula): illustrate formula input that can should NOT hard coded into formula.
B19: Tax (efficient formula): illustrate Golden Rule.
B20: Net Cash In formula: illustrate Golden Rule.
B21: Net Income formula: illustrate formula with built-in function within a larger formula.
B22: In Balance? formula: illustrate Logical formula.
B23: First & Last Name Join Formula: illustrate Text formula.
B24: COUNTIF formula: illustrate counting with criteria.
B25: COUNTIF & Label formula: illustrate counting with criteria and how the join symbol is used with criteria.
B26: SUMIFS to add with two criteria.
B27: SUMIFS to add between 2 dates.
B28: Count workdays formula to illustrate new Excel 2010 function NETWORKDAYS.INTL.
B29: Mixed cell references in budget formula
A30: 4 | B30: Lookup Formulas
B31: LOOKUP DVD
B32: VLOOKUP to lookup product price: illustrate Exact Match lookup.
B33: VLOOKUP to lookup commission rate: illustrate Approximate Match lookup.
B34: Retrieve record (2-way lookup) with VLOOKUP and MATCH.
B35: MATCH, ISNA and ISNUMBER functions to compare 2 lists.
B36: INDEX and MACTH to lookup Left.
A37: 5 | B37: Pivot Tables
B38: Slaying Excel Dragon: 1) Pages 374 - 419 in book and 2) videos #39 - 43 on DVD.
B39: Proper Data Set
B40: PivotTables Pivot Tables are Easy
B41: Visualize Table First
B42: Adding with One or Two Conditions (Criteria)
B43: Report Layout
B44: Style Formatting
B45: Number Formatting
B46: Pivoting
B47: Listing Two Fields in Row Labels
B48: Collapsing Pivot Table Row
B49: Changing Calculation: SUM to AVERAGE
B50: Adding with Three Criteria
B51: Filtering a Row
B52: Clear Filter
B53: Filter whole report with Report Filter or Slicer
B54: Show Report Filter Pages
B55: Compare Formulas and PivotTables
B56: Grouping Dates in PivotTables
B57: Grouping Integers
B58: Grouping Decimals
B59: Pivot Chart
B60: Running Totals
B61: % of Column Total
B62: % of Row Total
B63: Difference From
B64: % Difference From
B65: Multiple Calculation in one PivotTable
B66: Creating Second PivotTable from Second Cache of data using Excel 2003 keyboard shortcut for 3-step Wizard.
B67: Blank in number field causes PivotTable to Count by Default.
B68: Text in Date field prohibits Grouping of Dates.
A69: 6 | B69: Recorded Macros For Reports
B70: Slaying Excel Dragon: 1) Videos #52 on DVD.
B71: Basic Recorded Macro
B72: Format Report using Absolute References.
B73: How to trick the Macro Recorder into seeing a variable height report using Relative References.
B74: Rearrange records from vertical orientation to proper table using Relative References.
A75: 7 | B75: Charts
B76: Slaying Excel Dragon: 1) Pages 465 - 506 in book and 2) video #49 on DVD.
B77: Chart Types
B78: Column Chart
B79: Select Data Source Dialog Box
B80: Chart keyboards
B81: Linking Chart Title to Cells
B82: Keyboard: Ctrl + 1
B83: Format Chart Elements
B84: Saving Chart Templates
B85: Setting Default Charts
B86: Copy Charts
B87: Bar and Stacked Bar charts
B88: Line Chart & Change Source Data
B89: Number Formatting to show "K" or "M"
B90: X Y Scatter
B91: Line Chart vs. X Y Chart
B92: X Y Scatter Line Break Even Analysis Chart
B93: Multiple chart types
A94: 8 | B94: Search the excelisfun YouTube channel for topics
B95: https://www.youtube.com/user/excelisfun
A96: 9 | B96: Books and DVDs by Mike "excelisfun" Girvin:
B97: Slaying Excel Dragons: A Beginners Guide to Conquering Excel's Frustrations and Making Excel Fun: $20
B98: Slaying Excel Dragons DVD: 53 Lessons to Make Excel Fun: $25
B99: Ctr l+ Shift + Enter: A Book About Building Efficient Formulas, Advanced Formulas, and Array Formulas for Data Analysis and Calculating Problems: $20
B100: Ctr l+ Shift + Enter: Mastering Excel Array Formulas DVD: $25
B101: Excel Lookup DVD: $20

Sheet Keyboards
A1: Dates | B1: Numbers | D1: Total | F1: Numbers | H1: Jump: Ctrl + Arrow
A2: 2013-08-07 | B2: 106 | D2: =SUM(B2:B10001) -> 9905817 | F2: 106 | H2: Ctrl + Home = A1
A3: 2013-04-06 | B3: 1655 | F3: 1655 | H3: Highlight column: Click, Shift, Click
A4: 2013-03-24 | B4: 1873 | F4: 1873 | H4: Highlight column: Ctrl + Shift + Arrow
A5: 2013-12-17 | B5: 1282 | F5: 1282 | H5: Currency Number Format: Ctrl + Shift + 4
A6: 2013-08-10 | B6: 1206 | F6: 1206 | H6: SUM: Alt + =
A7: 2013-04-22 | B7: 1484 | F7: 1484 | H7: "Put thing in cell and keep cell selected": Ctrl + Enter
A8: 2013-10-04 | B8: 304 | F8: 304 | H8: Format Cells dialog box or in a chart Format Chart dialog box: Ctrl + 1
A9: 2013-07-30 | B9: 1144 | F9: 1144 | H9: Alt keys
A10: 2013-06-09 | B10: 652 | F10: 652 | H10: PivotTable: Alt, N, V, T
A11: 2013-12-16 | B11: 651 | F11: 651 | H11: PivotTable 2003: Alt, D, P
A12: 2013-10-10 | B12: 982 | F12: 982 | H12: Page Setup: Alt, P, S, P
A13: 2013-01-15 | B13: 699 | E13: Total | F13: =SUM(F2:F12) -> 11339
A14: 2013-01-11 | B14: 1648
A15: 2013-04-24 | B15: 1803
A16: 2013-08-12 | B16: 479
A17: 2013-12-22 | B17: 542
A18: 2013-07-26 | B18: 664
A19: 2013-02-11 | B19: 1990
A20: 2013-05-16 | B20: 1992
A21: 2013-12-27 | B21: 1219
A22: 2013-12-10 | B22: 1369
A23: 2013-12-26 | B23: 1570
A24: 2013-12-11 | B24: 1672
A25: 2013-05-26 | B25: 86
A26: 2013-04-25 | B26: 1997
A27: 2013-05-24 | B27: 1196
A28: 2013-03-26 | B28: 1555
A29: 2013-04-19 | B29: 146
A30: 2013-07-08 | B30: 117
A31: 2013-08-02 | B31: 949
A32: 2013-05-28 | B32: 1961
A33: 2013-07-30 | B33: 996
A34: 2013-08-05 | B34: 1530
A35: 2013-02-04 | B35: 1189
A36: 2013-01-22 | B36: 216
A37: 2013-06-16 | B37: 723
A38: 2013-01-13 | B38: 782
A39: 2013-11-18 | B39: 136
A40: 2013-10-24 | B40: 1614
A41: 2013-10-11 | B41: 1802
A42: 2013-05-08 | B42: 487
A43: 2013-04-03 | B43: 606
A44: 2013-06-02 | B44: 1035
A45: 2013-11-25 | B45: 1134
A46: 2013-02-24 | B46: 930
A47: 2013-03-31 | B47: 329
A48: 2013-07-27 | B48: 1306
A49: 2013-05-20 | B49: 185
A50: 2013-01-17 | B50: 428
A51: 2013-11-03 | B51: 751
A52: 2013-05-29 | B52: 191
A53: 2013-06-24 | B53: 421
A54: 2013-05-03 | B54: 109
A55: 2013-09-26 | B55: 744
A56: 2013-05-16 | B56: 1683
A57: 2013-10-06 | B57: 1952
A58: 2013-02-28 | B58: 1780
A59: 2013-09-01 | B59: 20
A60: 2013-12-06 | B60: 661
A61: 2013-12-28 | B61: 1318
A62: 2013-04-01 | B62: 838
A63: 2013-01-20 | B63: 279
A64: 2013-09-13 | B64: 269
A65: 2013-09-25 | B65: 328
A66: 2013-05-10 | B66: 703
A67: 2013-09-06 | B67: 1704
A68: 2013-07-29 | B68: 1266
A69: 2013-12-20 | B69: 1893
A70: 2013-01-12 | B70: 654
A71: 2013-10-01 | B71: 1068
A72: 2013-04-23 | B72: 530
A73: 2013-03-03 | B73: 59
A74: 2013-08-14 | B74: 1843
A75: 2013-12-08 | B75: 1545
A76: 2013-04-27 | B76: 811
A77: 2013-05-20 | B77: 45
A78: 2013-09-19 | B78: 817
A79: 2013-10-18 | B79: 1333
A80: 2013-03-08 | B80: 834
A81: 2013-05-20 | B81: 429
A82: 2013-03-18 | B82: 1548
A83: 2013-06-17 | B83: 1679
A84: 2013-07-31 | B84: 1973
A85: 2013-09-04 | B85: 1556
A86: 2013-12-29 | B86: 583
A87: 2013-01-22 | B87: 1497
A88: 2013-01-19 | B88: 624
A89: 2013-04-01 | B89: 1788
A90: 2013-06-03 | B90: 376
A91: 2013-11-21 | B91: 820
A92: 2013-06-12 | B92: 1501
A93: 2013-03-18 | B93: 1194
A94: 2013-03-24 | B94: 231
A95: 2013-05-05 | B95: 1924
A96: 2013-04-01 | B96: 1897
A97: 2013-08-29 | B97: 492
A98: 2013-12-05 | B98: 551
A99: 2013-03-11 | B99: 1138
A100: 2013-04-12 | B100: 363
A101: 2013-03-06 | B101: 941
A102: 2013-12-02 | B102: 895
A103: 2013-12-29 | B103: 21
A104: 2013-10-22 | B104: 306
A105: 2013-08-24 | B105: 821
A106: 2013-05-07 | B106: 1253
A107: 2013-02-10 | B107: 91
A108: 2013-04-09 | B108: 346
A109: 2013-06-05 | B109: 1711
A110: 2013-10-20 | B110: 292
A111: 2013-06-11 | B111: 16
A112: 2013-11-13 | B112: 423
A113: 2013-06-13 | B113: 30
A114: 2013-02-25 | B114: 481
A115: 2013-07-04 | B115: 1645
A116: 2013-09-05 | B116: 1167
A117: 2013-02-08 | B117: 51
A118: 2013-12-05 | B118: 912
A119: 2013-01-19 | B119: 1016
A120: 2013-04-20 | B120: 1177
A121: 2013-09-23 | B121: 485
A122: 2013-05-20 | B122: 594
A123: 2013-04-09 | B123: 348
A124: 2013-03-02 | B124: 1462
A125: 2013-02-22 | B125: 1275
A126: 2013-05-11 | B126: 118
A127: 2013-06-07 | B127: 684
A128: 2013-04-04 | B128: 1625
A129: 2013-03-10 | B129: 1620
A130: 2013-12-20 | B130: 918
A131: 2013-11-28 | B131: 1403
A132: 2013-07-21 | B132: 407
A133: 2013-07-16 | B133: 1477
A134: 2013-12-09 | B134: 779
A135: 2013-07-13 | B135: 898
A136: 2013-03-22 | B136: 281
A137: 2013-06-17 | B137: 479
A138: 2013-06-14 | B138: 900
A139: 2013-02-16 | B139: 1846
A140: 2013-03-13 | B140: 712
A141: 2013-07-15 | B141: 374
A142: 2013-08-28 | B142: 271
A143: 2013-03-09 | B143: 1371
A144: 2013-10-14 | B144: 100
A145: 2013-10-04 | B145: 1174
A146: 2013-01-17 | B146: 752
A147: 2013-11-05 | B147: 1004
A148: 2013-07-05 | B148: 1271
A149: 2013-05-18 | B149: 1423
A150: 2013-11-27 | B150: 303
A151: 2013-01-15 | B151: 1665
A152: 2013-07-12 | B152: 1007
A153: 2013-04-03 | B153: 13
A154: 2013-11-27 | B154: 1734
A155: 2013-01-04 | B155: 522
A156: 2013-11-08 | B156: 135
A157: 2013-04-12 | B157: 232
A158: 2013-06-18 | B158: 379
A159: 2013-08-29 | B159: 1604
A160: 2013-04-12 | B160: 201
A161: 2013-10-12 | B161: 255
A162: 2013-05-08 | B162: 1324
A163: 2013-12-26 | B163: 1826
A164: 2013-05-27 | B164: 1993
A165: 2013-06-06 | B165: 1779
A166: 2013-12-25 | B166: 522
A167: 2013-01-06 | B167: 1239
A168: 2013-06-26 | B168: 134
A169: 2013-06-03 | B169: 86
A170: 2013-06-14 | B170: 479
A171: 2013-09-12 | B171: 1372
A172: 2013-05-29 | B172: 646
A173: 2013-09-02 | B173: 73
A174: 2013-07-11 | B174: 967
A175: 2013-07-12 | B175: 1595
A176: 2013-05-05 | B176: 441
A177: 2013-09-01 | B177: 1037
A178: 2013-12-12 | B178: 441
A179: 2013-08-19 | B179: 1543
A180: 2013-05-26 | B180: 1881
A181: 2013-11-30 | B181: 1952
A182: 2013-11-25 | B182: 1620
A183: 2013-10-25 | B183: 545
A184: 2013-09-06 | B184: 929
A185: 2013-05-28 | B185: 967
A186: 2013-01-06 | B186: 1039
A187: 2013-04-18 | B187: 1354
A188: 2013-03-09 | B188: 791
A189: 2013-02-08 | B189: 164
A190: 2013-03-29 | B190: 1323
A191: 2013-11-16 | B191: 728
A192: 2013-08-24 | B192: 475
A193: 2013-12-16 | B193: 885
A194: 2013-02-22 | B194: 1466
A195: 2013-12-27 | B195: 751
A196: 2013-04-05 | B196: 774
A197: 2013-07-07 | B197: 1516
A198: 2013-06-18 | B198: 767
A199: 2013-05-30 | B199: 969
A200: 2013-03-26 | B200: 1813
... 9801 more rows

Sheet Number Format
A1: Number Formatting is a Façade. What you see is not always what is in the cell.
B2: Numbers | D2: Numbers
B3: 24.5 | D3: 25
B4: 49.5 | D4: 50
B5: 10 | D5: 10
B6: 14.75 | D6: 15
A7: Total | B7: =SUM(B3:B6) -> 98.75 | D7: =SUM(D3:D6) -> 100
A9: Keyboard for hardcoding today's date: Ctrl + ;
A11: Today's Date: | B11: 2013-08-26
A12: Today's Date: | B12: 41512 | D12: Applying General Number Formatting wipes away all Number Formatting.
D13: General Number Formatting Keyboard: Ctrl + Shift + ~ ( ` )
A15: Q: What did Excel really put in the cell?
A16: A: It put the Serial Number: 41521. Number of Days since Dec 31, 1899.
A18: Serial Numbers allow us to do Date Math
A19: Date | B19: Number Under Number Formatting
A20: 1900-01-01 | B20: 1
A21: 1900-01-02 | B21: 2
A22: 2013-09-04 | B22: 41521
A24: Invoice Due | B24: 2013-08-21 | D24: Project Start | E24: 2013-08-21
A25: Today | B25: 2013-08-26 | D25: Project End | E25: 2013-08-26
A26: Days Late | B26: =B25-B24 -> 5 | D26: Number Of Days | E26: =E25-E24+1 -> 6 | G26: Add 1 if you need to include the start date.
A28: Formula: End Date - Start Date | D28: Formula: End Date - Start Date +1
A30: Keyboard for current time: Ctrl + Shift + ; | F30: 0.5576388889 | G30: 41512.55764
G31: 41512
A32: Time is a Serial Number between 0 and 1 that represents the proportion of one 24 hour day.
A33: Where 8/24 = 1/3, 12/24 = 0.5
D34: 0.3333333333 | E34: 0.5
A35: Time | B35: Number Under Time Number Formatting | D35: =8/24 -> 0.3333333333 | E35: =12/24 -> 0.5
A36: 08:00:00 | B36: =A36 -> 0.3333333333
A37: 09:30:00 | B37: 0.3958333333
A38: 12:00:00 | B38: 0.5
A39: 17:00:00 | B39: 0.7083333333
A41: Time In | B41: 08:00:00
A42: Time Out | B42: 11:30:00
A43: Time Billed | B43: =(B42-B41)*24 -> 3.5 | D43: Wage | E43: 25
D44: Gross | E44: =E43*B43 -> 87.5
A45: Formula: (End Time - Start Time)*24
A47: Situation 1: | B47: Type .03 in cell, then add % format | E47: 0.03
A48: Situation 2: | B48: Type 3 in cell, then add % format | E48: 3
A49: Situation 3: | B49: Add % format, then type 3, Enter | E49: 0.03
A50: Situation 4: | B50: Add % format, then type .03, Enter | E50: 0.03
A51: Situation 5: | B51: Add % format as you type | E51: 0.03
A52: Situation 6: | B52: Type .025, then add % from ribbon | E52: 0.025
D54: Sub total | E54: 100
D55: Tax | E55: =E54*E52 -> 2.5

Sheet FormulaBasics & Lookup
A1: 1 | B1: Excel's Golden Rule. (Dan Bricklin and Bob Frankston).
B2: Excel's Golden Rule: If formula input data can change, put it in cell and refer to it with cell references. If data will not change, you can hard code it into formula.
A4: 2 | B4: Formula Elements.
B5: 1 | C5: Equal sign (starts all formulas).
B6: 2 | C6: Cell references (also defined names, sheet references, workbook references, table nomenclature).
B7: 3 | C7: Math operators.
B8: 4 | C8: Numbers (if the number will not change; for example, 12 months, 24 hours).
B9: 5 | C9: Functions (IF, MATCH, INDEX, COUNTIF, and so on).
B10: 6 | C10: Function argument elements (such as a 0 in the third argument of MATCH to tell function to do an "Exact Match" lookup.).
B11: 7 | C11: Comparative operators.
B12: 8 | C12: Join operator: Ampersand (join symbol: &).
B13: 9 | C13: Text within quotation marks (for example, "For the Month Ended").
B14: 10 | C14: Array constants (for example, {1,2,3}).
A16: 3 | B16: Math Operators.
B17: + | C17: Adding.
B18: - | C18: Subtracting or Negation.
B19: * | C19: Multiplying.
B20: / | C20: Dividing.
B21: ^ | C21: Raising to an exponent.
B22: ( ) | C22: Parentheses.
A24: 4 | B24: Comparative Operators.
B25: = | C25: Equal: are two things equal?
B26: <> | C26: Not: are two things not equal? Type less than symbol, then greater than symbol.
B27: > | C27: Greater than: is the thing on the left greater than the thing on the right?
B28: >= | C28: Greater than or equal to: is the thing on the left greater than or equal to the thing on the right?
B29: < | C29: Less than: is the thing on the left less than the thing on the right?
B30: <= | C30: Less than or equal to: is the thing on the left less than or equal to the thing on the right?
A32: 5 | B32: Types of Formulas.
B33: 1 | C33: Calculating Formulas that calculate a number answer (like adding)
B34: 2 | C34: Logical Formulas that give you a logical value, either TRUE or FALSE (like formulas that say whether two accounts are in balance)
B35: 3 | C35: Text Formulas that deliver a word to a cell or create labels for reports (like a label for a loan payment).
B36: 4 | C36: Lookup Formulas that look up an item in a table (like looking up a price for a product).
B37: 5 | C37: Array Formulas are advanced formulas that act on arrays (ranges) instead of individual cell references, or formulas that deliver more than one item.
C38: Array formulas can deliver results that are calculating, logical, text, or lookup.
A40: 6 | B40: How Formulas Calculate: Order of Precedence in Excel.
B41: 1 | C41: Parenthesis ( )
B42: 2 | C42: Reference Operators: colon, space, comma
C43: Example of colon in range of cells: =SUM(A1:A4)
C44: Example of intersection operator: =E12:G12 F10:F15 (retrieve what is in F12)
C45: Example of comma (union): =SUM(E10:G10,E14:G14)
B46: 3 | C46: Negation (-)
C47: Example: = -2^4 = 16
C48: Example: = -(2^4) = -16
C49: Example: --2+1 = 3
B50: 4 | C50: Converts % (1% to .01)
B51: 5 | C51: Exponents (^)
C52: Example: 4^(1/2) = 2
C53: Example: 3^2 = 9
B54: 6 | C54: Multiplication (*) and Division (/), left to right
B55: 7 | C55: Adding (+) and Subtracting (-), left to right
B56: 8 | C56: Ampersand (&)
B57: 9 | C57: Comparative symbols: =, <>, >=, <=, <, >
A59: 7 | B59: Number Formatting is a Façade.
B60: 1 | C60: What you see on the face of the spreadsheet can be different from the underlying number in the cell.
B61: 2 | C61: There can be a disconnect between what you see in a cell with your eyes and what is actually stored in the cell as content.
B62: 3 | C62: Calculations are made upon the underlying number, not the Number Format that you see on the face of the spreadsheet.
C63: Example: You can use the Decrease Decimal button to show fewer decimals, but that does not remove the decimals for calculating purposes.
C64: Example: Dates such as 12/1/2012 are serial numbers.
C65: You "see" 12/1/2012 on the face of the spreadsheet, but the serial number 41,244 is what is actually in the cell.
C66: Formulas calculate upon the underlying serial number 41,244, not the date 12/1/2012.
A68: 8 | B68: Default Alignment in Excel.
B69: 1 | C69: Text is to LEFT. | D69: Excel is fun
B70: 2 | C70: Numbers are to RIGHT. | D70: 43
B71: 3 | C71: Logical values are CENTER. | D71: TRUE
B72: 4 | C72: Error values are CENTER. | D72: =1/0 -> 
A74: 15 formula examples of formula elements and formula types.
B75: Ex 1 | C75: Type of Formula:
C76: Calculating.
C77: Formula Elements:
C78: Equal sign, cell reference, math operator, number.
C79: Annual Insurance | D79: 10500
C80: Monthly Allocation | D80: =D79/12 -> 875 | F80: Number aligned RIGHT
C82: Note:
C83: ="* Because the number "&DOLLAR(D79)&" can change, we put it in a cell and make formulas that refer to it with cell references." -> * Because the number $10,500.00 can change, we put it in a cell and make formulas that refer to it with cell references.
C84: * Because the number 12 will not change, we type it directly into the formula.
B86: Ex 2 | C86: Type of Formula:
C87: Calculating.
C88: Formula Elements:
C89: Equal sign, cell reference, math operator, number.
C90: Amount | D90: 25256
C91: Tax (inefficient formula) | D91: =D90*0.125 -> 3157 | E91: Formula you do not want to create: =D90*0.125
G92: Why?
C93: Label AND put variable formula input into cell (Golden Rule) | G93: Formula input is not on the face of the spreadsheet where it is easy to change and audit.
C94: Tax Rate | D94: 0.125 | G94: Research has shown that imbedding variable formula inputs in formulas (hard coding) is one of the main contributors to faulty spreadsheets.
C95: Tax (inefficient formula) | D95: =D90*D94 -> 3157 | E95: Efficient formula: =D90*D94 | G95: http://www.strategy-at-risk.com/2009/03/03/the-risk-of-spreadsheet-errors/ | M95: The Risk of Spreadsheet Errors
B97: Ex 3 | C97: Amount Invested | D97: 100
C98: Interest Rate | D98: 0.05
C99: Tax Rate | D99: 0.25
C100: Net Cash In From Interest Revenue | D100: =D97*D98*(1-D99) -> 3.75 | E100: Efficient formula: =D97*D98*(1-D99)
E101: Inefficient: =D97*0.05*(1-0.25)
E102: Even More inefficient: =D97*0.0375
B103: Ex 4 | C103: Type of Formula:
C104: Calculating.
C105: Formula Elements:
C106: Equal sign, cell reference, math operator, built-in function, range of cells.
C108: Revenue | D108: 60000
C109: Administrative Expense | D109: 18360
C110: Operational Expenses | D110: 32088
C111: Other Expenses | D111: 312
C112: Net Income | D112: =D108-SUM(D109:D111) -> 9240 | F112: Number aligned RIGHT
B114: Ex 5 | C114: Type of Formula:
C115: Logical.
C116: Formula Elements:
C117: Equal sign, cell reference, comparative operators (equal sign).
C118: DR | D118: CR
C119: 322 | D119: 322 | F119: Ctrl + Shift + ~ | G119: General Number Formatting
C120: 172.01 | D120: 172.01
C121: 144.1 | D121: 144.1 | F121: In Balance?
C122: =SUM(C119:C121) -> 638.11 | D122: =SUM(D119:D121) -> 638.11 | F122: =C122=D122 -> TRUE | H122: Logical aligned CENTER
C124: Note:
C125: * Formulas calculate upon the underlying numbers.
C126: * Number Formatting (Decreasing Decimals) does not remove the "unseen" decimals.
C127: * In this way, formulas can better analyze a spreadsheet than a person can be just "eyeing it".
B129: Ex 6 | C129: Type of Formula:
C130: Text.
C131: Formula Elements:
C132: Equal sign, cell reference, ampersand, text in quotes.
C133: First | D133: Last | E133: First & Last
C134: Bill | D134: Jelen | E134: =C134&" "&D134 -> Bill Jelen
C135: Joe | D135: Smith | E135: =C135&" "&D135 -> Joe Smith
C136: Sioux | D136: Franks | E136: Sioux Franks
C137: Bob | D137: Chin | E137: Bob Chin
C138: Luong | D138: Girvin | E138: Luong Girvin | G138: Text aligned LEFT
B140: Ex 7 | C140: Type of Formula:
C141: Calculating.
C142: Formula Elements:
C143: Equal sign, COUNTIF function, range of cells, cell reference.
C144: Hurdle | D144: >350
C145: # of Sales Greater Than 350 | D145: =COUNTIF(D148:D153,D144) -> 2 | F145: Also: SUMIF and AVERAGEIF
D147: Sales
D148: 312
D149: 295
D150: 294.99
D151: 675
D152: 452
D153: 195
B155: Ex 8 | C155: Type of Formula:
C156: Calculating.
C157: Formula Elements:
C158: Equal sign, COUNTIF function, range of cells, comparative operator in quotes, ampersand, cell reference.
C159: Hurdle | D159: 475
C160: ="# of Sales Greater Than " &D159 -> # of Sales Greater Than 475 | D160: =COUNTIF(D163:D168,">"&D159) -> 1
D162: Sales
D163: 312
D164: 295
D165: 294.99
D166: 675
D167: 452
D168: 195
B170: Ex 9 | C170: Type of Formula:
C171: Calculating.
C172: Formula Elements:
C173: Equal sign, SUMIFS function, range of cells, cell reference.
C174: SUMIFS to add with two criteria.
C175: SalesRep | D175: Product | E175: Total Units | P175: Product | Q175: SalesRep
C176: Chelia | D176: Product 1 | E176: =SUMIFS(F179:F186,D179:D186,C176,E179:E186,D176) -> 1445 | G176: Also: SUMIFS and AVERAGEIFS | P176: Product 1 | Q176: Sioux
P177: Product 2 | Q177: Chelia
C178: Date | D178: SalesRep | E178: Product | F178: Units | Q178: Phil
C179: 2013-09-21 | D179: Sioux | E179: Product 1 | F179: 1772
C180: 2013-09-24 | D180: Sioux | E180: Product 2 | F180: 1270
C181: 2013-09-24 | D181: Phil | E181: Product 1 | F181: 1335
C182: 2013-09-22 | D182: Phil | E182: Product 2 | F182: 1897
C183: 2013-09-23 | D183: Chelia | E183: Product 1 | F183: 1062
C184: 2013-09-24 | D184: Sioux | E184: Product 1 | F184: 581
C185: 2013-09-23 | D185: Chelia | E185: Product 1 | F185: 383
C186: 2013-09-24 | D186: Sioux | E186: Product 2 | F186: 601
B188: Ex 10 | C188: Type of Formula:
C189: Calculating.
C190: Formula Elements:
C191: Equal sign, SUMIFS function, range of cells, cell reference.
C192: SUMIFS to add between 2 dates.
C193: Lower | D193: Upper | E193: Total Units
C194: >=9/22/2013 | D194: <=9/23/2013 | E194: =SUMIFS(F199:F206,C199:C206,C194,C199:C206,D194) -> 3342
C195: 2013-09-22 | D195: 2013-09-23 | E195: =SUMIFS(F199:F206,C199:C206,">="&C195,C199:C206,"<="&D195) -> 3342
C196: 1000 | D196: 1500 | E196: =SUMIFS(F199:F206,F199:F206,">="&C196,F199:F206,"<"&D196) -> 3667
C198: Date | D198: SalesRep | E198: Product | F198: Units
C199: 2013-09-21 | D199: Sioux | E199: Product 1 | F199: 1772
C200: 2013-09-24 | D200: Sioux | E200: Product 2 | F200: 1270
C201: 2013-09-24 | D201: Phil | E201: Product 1 | F201: 1335
C202: 2013-09-22 | D202: Phil | E202: Product 2 | F202: 1897
C203: 2013-09-23 | D203: Chelia | E203: Product 1 | F203: 1062
C204: 2013-09-24 | D204: Sioux | E204: Product 1 | F204: 581
C205: 2013-09-23 | D205: Chelia | E205: Product 1 | F205: 383
C206: 2013-09-24 | D206: Sioux | E206: Product 2 | F206: 601
B208: Ex 11 | C208: Type of Formula:
C209: Calculating.
C210: Formula Elements:
C211: Equal sign, NETWORKDAYS.INTL, Absolute & Relative cell references, function argument element.
C212: F4 key toggles between the four types of basic cell references
C213: Start Date for Project | D213: End Date | E213: Workdays | G213: Holidays:
C214: 2013-09-17 | D214: 2013-10-12 | E214: =NETWORKDAYS.INTL(C214,D214,11,$G$214:$G$217) -> 22 | G214: 2013-10-05
C215: 2013-09-27 | D215: 2013-10-01 | E215: =NETWORKDAYS.INTL(C215,D215,11,$G$214:$G$217) -> 4 | G215: 2013-11-01
C216: 2013-10-01 | D216: 2013-10-12 | E216: 10
C217: 2013-10-01 | D217: 2013-10-28 | E217: 23
C218: 2013-10-15 | D218: 2013-10-22 | E218: 7
C219: 2013-10-28 | D219: 2013-11-15 | E219: =NETWORKDAYS.INTL(C219,D219,11,$G$214:$G$217) -> 16 | G219: Sunday is off
B221: Ex 12 | C221: Type of Formula:
C222: Calculating.
C223: Formula Elements:
C224: Equal sign, mixed cell references, math operator.
... 86 more rows

Sheet 1stPivot
A1: Customer | B1: (All)
A3: Sum | B3: SalesRep
A4: Region | B4: Chin | C4: Franks | D4: Gault | E4: Pham | F4: Sioux | G4: Smith | H4: Grand Total
A5: East | B5: 1481 | C5: 1730 | D5: 1768 | E5: 1650 | F5: 1680 | G5: 1875 | H5: 10184
A6: MidWest | B6: 1846 | C6: 1768 | D6: 1941 | E6: 1344 | F6: 1896 | G6: 1929 | H6: 10724
A7: South | B7: 1795 | C7: 1772 | D7: 1732 | E7: 2173 | F7: 1900 | G7: 2089 | H7: 11461
A8: West | B8: 1515 | C8: 1596 | D8: 1934 | E8: 1872 | F8: 1901 | G8: 1782 | H8: 10600
A9: Grand Total | B9: 6637 | C9: 6866 | D9: 7375 | E9: 7039 | F9: 7377 | G9: 7675 | H9: 42969

Sheet AA
A1: Customer | B1: AA
A3: Sum of Sales | C3: SalesRep
A4: Region | B4: Product | C4: Chin | D4: Franks | E4: Gault | F4: Pham | G4: Sioux | H4: Smith | I4: Grand Total
A5: East | B5: Carlota | C5: 1633 | D5: 1035 | G5: 460 | I5: 3128
B6: Quad | G6: 1512 | I6: 1512
B7: Sunset | D7: 819 | F7: 1365 | H7: 399 | I7: 2583
B8: Sunshine | D8: 779 | F8: 1064 | I8: 1843
A9: East Total | C9: 1633 | D9: 2633 | F9: 2429 | G9: 1972 | H9: 399 | I9: 9066
A10: MidWest | B10: Bellen | E10: 1320 | H10: 484 | I10: 1804
B11: Quad | G11: 729 | H11: 1134 | I11: 1863
B12: Sunset | C12: 756 | I12: 756
B13: Sunshine | D13: 836 | F13: 475 | G13: 1216 | H13: 855 | I13: 3382
A14: MidWest Total | C14: 756 | D14: 836 | E14: 1320 | F14: 475 | G14: 1945 | H14: 2473 | I14: 7805
A15: South | B15: Bellen | D15: 836 | I15: 836
B16: Carlota | H16: 460 | I16: 460
B17: Quad | C17: 594 | D17: 3996 | I17: 4590
B18: Sunset | F18: 1050 | I18: 1050
B19: Sunshine | E19: 779 | I19: 779
A20: South Total | C20: 594 | D20: 4832 | E20: 779 | F20: 1050 | H20: 460 | I20: 7715
A21: West | B21: Bellen | F21: 352 | I21: 352
B22: Carlota | C22: 207 | H22: 3013 | I22: 3220
B23: Quad | E23: 1242 | I23: 1242
B24: Sunset | E24: 462 | I24: 462
B25: Sunshine | G25: 532 | I25: 532
A26: West Total | C26: 207 | E26: 1704 | F26: 352 | G26: 532 | H26: 3013 | I26: 5808
A27: Grand Total | C27: 3190 | D27: 8301 | E27: 3803 | F27: 4306 | G27: 4449 | H27: 6345 | I27: 30394

Sheet AST
A1: Customer | B1: AST
A3: Sum of Sales | C3: SalesRep
A4: Region | B4: Product | C4: Chin | D4: Franks | E4: Gault | F4: Pham | G4: Sioux | H4: Smith | I4: Grand Total
A5: East | B5: Bellen | H5: 1188 | I5: 1188
B6: Carlota | E6: 1495 | H6: 1035 | I6: 2530
B7: Sunset | G7: 399 | I7: 399
A8: East Total | E8: 1495 | G8: 399 | H8: 2223 | I8: 4117
A9: MidWest | B9: Bellen | F9: 352 | G9: 660 | I9: 1012
B10: Carlota | H10: 1127 | I10: 1127
B11: Quad | D11: 1269 | G11: 999 | H11: 1728 | I11: 3996
B12: Sunset | D12: 924 | E12: 588 | H12: 1008 | I12: 2520
B13: Sunshine | C13: 1083 | I13: 1083
A14: MidWest Total | C14: 1083 | D14: 2193 | E14: 588 | F14: 352 | G14: 1659 | H14: 3863 | I14: 9738
A15: South | B15: Bellen | D15: 1320 | E15: 154 | I15: 1474
B16: Carlota | D16: 1219 | H16: 506 | I16: 1725
B17: Sunset | F17: 651 | H17: 1071 | I17: 1722
B18: Sunshine | G18: 684 | H18: 570 | I18: 1254
A19: South Total | D19: 2539 | E19: 154 | F19: 651 | G19: 684 | H19: 2147 | I19: 6175
A20: West | B20: Bellen | D20: 484 | E20: 264 | I20: 748
B21: Carlota | G21: 575 | I21: 575
B22: Quad | F22: 1593 | I22: 1593
B23: Sunset | D23: 399 | F23: 252 | I23: 651
B24: Sunshine | C24: 456 | E24: 1596 | G24: 190 | H24: 1805 | I24: 4047
A25: West Total | C25: 456 | D25: 883 | E25: 1860 | F25: 1845 | G25: 765 | H25: 1805 | I25: 7614
A26: Grand Total | C26: 1539 | D26: 5615 | E26: 4097 | F26: 2848 | G26: 3507 | H26: 10038 | I26: 27644

Sheet BBT
A1: Customer | B1: BBT
A3: Sum of Sales | C3: SalesRep
A4: Region | B4: Product | C4: Chin | D4: Franks | E4: Gault | F4: Pham | G4: Sioux | H4: Smith | I4: Grand Total
A5: East | B5: Bellen | H5: 264 | I5: 264
B6: Carlota | F6: 897 | G6: 1173 | H6: 1081 | I6: 3151
B7: Quad | G7: 324 | H7: 270 | I7: 594
B8: Sunset | D8: 546 | E8: 1134 | F8: 714 | I8: 2394
B9: Sunshine | C9: 969 | D9: 931 | F9: 494 | G9: 684 | I9: 3078
A10: East Total | C10: 969 | D10: 1477 | E10: 1134 | F10: 2105 | G10: 2181 | H10: 1615 | I10: 9481
A11: MidWest | B11: Bellen | D11: 946 | E11: 2156 | H11: 748 | I11: 3850
B12: Quad | C12: 891 | I12: 891
B13: Sunset | C13: 1113 | I13: 1113
B14: Sunshine | E14: 1102 | I14: 1102
A15: MidWest Total | C15: 2004 | D15: 946 | E15: 3258 | H15: 748 | I15: 6956
A16: South | B16: Bellen | D16: 396 | I16: 396
B17: Carlota | F17: 506 | G17: 506 | H17: 437 | I17: 1449
B18: Quad | G18: 2862 | I18: 2862
B19: Sunset | C19: 462 | D19: 315 | G19: 2793 | H19: 1281 | I19: 4851
B20: Sunshine | E20: 722 | I20: 722
A21: South Total | C21: 462 | D21: 711 | E21: 722 | F21: 506 | G21: 6161 | H21: 1718 | I21: 10280
A22: West | B22: Bellen | D22: 770 | E22: 1386 | F22: 220 | I22: 2376
B23: Sunset | C23: 567 | F23: 462 | I23: 1029
B24: Sunshine | E24: 703 | G24: 1463 | I24: 2166
A25: West Total | C25: 567 | D25: 770 | E25: 2089 | F25: 682 | G25: 1463 | I25: 5571
A26: Grand Total | C26: 4002 | D26: 3904 | E26: 7203 | F26: 3293 | G26: 9805 | H26: 4081 | I26: 32288

Sheet DDH
A1: Customer | B1: DDH
A3: Sum of Sales | C3: SalesRep
A4: Region | B4: Product | C4: Chin | D4: Franks | E4: Gault | F4: Pham | G4: Sioux | H4: Smith | I4: Grand Total
A5: East | B5: Bellen | D5: 1276 | G5: 352 | I5: 1628
B6: Quad | F6: 216 | G6: 1755 | I6: 1971
B7: Sunset | C7: 462 | I7: 462
B8: Sunshine | H8: 589 | I8: 589
A9: East Total | C9: 462 | D9: 1276 | F9: 216 | G9: 2107 | H9: 589 | I9: 4650
A10: MidWest | B10: Bellen | E10: 660 | F10: 484 | I10: 1144
B11: Quad | F11: 2916 | I11: 2916
B12: Sunset | F12: 1071 | G12: 168 | H12: 525 | I12: 1764
A13: MidWest Total | E13: 660 | F13: 4471 | G13: 168 | H13: 525 | I13: 5824
A14: South | B14: Quad | C14: 1647 | E14: 2970 | G14: 1215 | H14: 1620 | I14: 7452
B15: Sunset | H15: 1155 | I15: 1155
B16: Sunshine | F16: 950 | G16: 950 | I16: 1900
A17: South Total | C17: 1647 | E17: 2970 | F17: 950 | G17: 2165 | H17: 2775 | I17: 10507
A18: West | B18: Bellen | D18: 814 | I18: 814
B19: Carlota | D19: 1311 | F19: 966 | I19: 2277
B20: Quad | C20: 1404 | I20: 1404
B21: Sunset | D21: 1029 | I21: 1029
B22: Sunshine | E22: 513 | F22: 114 | H22: 304 | I22: 931
A23: West Total | C23: 1404 | D23: 3154 | E23: 513 | F23: 1080 | H23: 304 | I23: 6455
A24: Grand Total | C24: 3513 | D24: 4430 | E24: 4143 | F24: 6717 | G24: 4440 | H24: 4193 | I24: 27436

Sheet DFGH
A1: Customer | B1: DFGH
A3: Sum of Sales | C3: SalesRep
A4: Region | B4: Product | C4: Chin | D4: Franks | E4: Gault | F4: Pham | G4: Sioux | H4: Smith | I4: Grand Total
A5: East | B5: Bellen | D5: 1078 | I5: 1078
B6: Sunset | D6: 840 | E6: 693 | G6: 987 | I6: 2520
A7: East Total | D7: 1918 | E7: 693 | G7: 987 | I7: 3598
A8: MidWest | B8: Bellen | E8: 1430 | G8: 1232 | H8: 484 | I8: 3146
B9: Carlota | C9: 644 | D9: 667 | I9: 1311
B10: Quad | C10: 1566 | D10: 1269 | E10: 270 | G10: 1107 | I10: 4212
B11: Sunset | D11: 273 | G11: 798 | I11: 1071
B12: Sunshine | C12: 1235 | D12: 950 | E12: 1121 | F12: 931 | I12: 4237
A13: MidWest Total | C13: 3445 | D13: 3159 | E13: 2821 | F13: 931 | G13: 3137 | H13: 484 | I13: 13977
A14: South | B14: Bellen | F14: 1386 | I14: 1386
B15: Carlota | C15: 621 | H15: 1150 | I15: 1771
B16: Quad | D16: 1728 | I16: 1728
B17: Sunset | F17: 756 | G17: 945 | H17: 1344 | I17: 3045
B18: Sunshine | E18: 399 | H18: 323 | I18: 722
A19: South Total | C19: 621 | D19: 1728 | E19: 399 | F19: 2142 | G19: 945 | H19: 2817 | I19: 8652
A20: West | B20: Bellen | G20: 1694 | H20: 1188 | I20: 2882
B21: Quad | C21: 1485 | G21: 918 | I21: 2403
B22: Sunset | D22: 777 | E22: 735 | I22: 1512
B23: Sunshine | E23: 190 | F23: 988 | I23: 1178
A24: West Total | C24: 1485 | D24: 777 | E24: 925 | F24: 988 | G24: 2612 | H24: 1188 | I24: 7975
A25: Grand Total | C25: 5551 | D25: 7582 | E25: 4838 | F25: 4061 | G25: 7681 | H25: 4489 | I25: 34202

Sheet DFR
A1: Customer | B1: DFR
A3: Sum of Sales | C3: SalesRep
A4: Region | B4: Product | C4: Chin | D4: Franks | E4: Gault | F4: Pham | G4: Sioux | H4: Smith | I4: Grand Total
A5: East | B5: Carlota | E5: 1357 | F5: 943 | I5: 2300
B6: Quad | F6: 837 | I6: 837
B7: Sunset | D7: 168 | I7: 168
B8: Sunshine | H8: 969 | I8: 969
A9: East Total | D9: 168 | E9: 1357 | F9: 1780 | H9: 969 | I9: 4274
A10: MidWest | B10: Bellen | D10: 352 | G10: 1408 | I10: 1760
B11: Carlota | C11: 552 | G11: 1288 | H11: 943 | I11: 2783
B12: Quad | D12: 1134 | I12: 1134
B13: Sunshine | F13: 570 | G13: 209 | H13: 361 | I13: 1140
A14: MidWest Total | C14: 552 | D14: 1486 | F14: 570 | G14: 2905 | H14: 1304 | I14: 6817
A15: South | B15: Bellen | D15: 418 | F15: 1936 | I15: 2354
B16: Carlota | C16: 966 | G16: 1380 | I16: 2346
B17: Sunset | E17: 357 | G17: 819 | I17: 1176
B18: Sunshine | G18: 912 | H18: 494 | I18: 1406
A19: South Total | C19: 966 | D19: 418 | E19: 357 | F19: 1936 | G19: 3111 | H19: 494 | I19: 7282
A20: West | B20: Bellen | D20: 1100 | I20: 1100
B21: Carlota | D21: 2185 | E21: 322 | I21: 2507
B22: Quad | D22: 1026 | E22: 405 | F22: 729 | G22: 1485 | I22: 3645
B23: Sunset | H23: 168 | I23: 168
B24: Sunshine | D24: 494 | F24: 988 | I24: 1482
A25: West Total | D25: 4805 | E25: 727 | F25: 1717 | G25: 1485 | H25: 168 | I25: 8902
A26: Grand Total | C26: 1518 | D26: 6877 | E26: 2441 | F26: 6003 | G26: 7501 | H26: 2935 | I26: 27275

Sheet EPP
A1: Customer | B1: EPP
A3: Sum of Sales | C3: SalesRep
A4: Region | B4: Product | C4: Chin | D4: Franks | E4: Gault | F4: Pham | G4: Sioux | H4: Smith | I4: Grand Total
A5: East | B5: Bellen | F5: 924 | I5: 924
B6: Quad | H6: 459 | I6: 459
A7: East Total | F7: 924 | H7: 459 | I7: 1383
A8: MidWest | B8: Bellen | F8: 550 | G8: 814 | I8: 1364
B9: Carlota | F9: 1035 | I9: 1035
B10: Quad | G10: 1647 | I10: 1647
B11: Sunset | D11: 840 | I11: 840
B12: Sunshine | G12: 551 | H12: 114 | I12: 665
A13: MidWest Total | D13: 840 | F13: 1585 | G13: 3012 | H13: 114 | I13: 5551
A14: South | B14: Bellen | E14: 858 | F14: 1408 | I14: 2266
B15: Carlota | D15: 1702 | G15: 1242 | I15: 2944
B16: Quad | D16: 621 | F16: 1674 | I16: 2295
B17: Sunset | F17: 609 | I17: 609
B18: Sunshine | D18: 589 | I18: 589
A19: South Total | D19: 2912 | E19: 858 | F19: 3691 | G19: 1242 | I19: 8703
A20: West | B20: Bellen | C20: 1144 | I20: 1144
B21: Quad | G21: 891 | I21: 891
B22: Sunset | C22: 1113 | D22: 336 | G22: 1239 | I22: 2688
B23: Sunshine | F23: 969 | I23: 969
A24: West Total | C24: 2257 | D24: 336 | F24: 969 | G24: 2130 | I24: 5692
A25: Grand Total | C25: 2257 | D25: 4088 | E25: 858 | F25: 7169 | G25: 6384 | H25: 573 | I25: 21329

Sheet ET
A1: Customer | B1: ET
A3: Sum of Sales | C3: SalesRep
A4: Region | B4: Product | C4: Chin | D4: Franks | E4: Gault | F4: Pham | G4: Sioux | H4: Smith | I4: Grand Total
A5: East | B5: Bellen | E5: 1298 | I5: 1298
B6: Quad | G6: 1728 | I6: 1728
B7: Sunset | C7: 252 | F7: 1155 | H7: 945 | I7: 2352
B8: Sunshine | C8: 950 | D8: 1159 | F8: 893 | G8: 171 | I8: 3173
A9: East Total | C9: 1202 | D9: 1159 | E9: 1298 | F9: 2048 | G9: 1899 | H9: 945 | I9: 8551
A10: MidWest | B10: Bellen | C10: 1122 | I10: 1122
B11: Carlota | D11: 1495 | G11: 1610 | I11: 3105
B12: Quad | C12: 1755 | I12: 1755
B13: Sunset | D13: 819 | E13: 693 | I13: 1512
A14: MidWest Total | C14: 2877 | D14: 2314 | E14: 693 | G14: 1610 | I14: 7494
A15: South | B15: Bellen | E15: 638 | I15: 638
B16: Carlota | C16: 989 | E16: 782 | I16: 1771
B17: Quad | F17: 1242 | G17: 1107 | I17: 2349
B18: Sunset | D18: 357 | F18: 168 | H18: 1176 | I18: 1701
B19: Sunshine | E19: 1197 | H19: 551 | I19: 1748
A20: South Total | C20: 989 | D20: 357 | E20: 2617 | F20: 1410 | G20: 1107 | H20: 1727 | I20: 8207
A21: West | B21: Bellen | C21: 1056 | D21: 308 | E21: 990 | I21: 2354
B22: Carlota | C22: 874 | D22: 828 | I22: 1702
B23: Quad | D23: 594 | I23: 594
B24: Sunshine | H24: 1064 | I24: 1064
A25: West Total | C25: 1930 | D25: 1730 | E25: 990 | H25: 1064 | I25: 5714
A26: Grand Total | C26: 6998 | D26: 5560 | E26: 5598 | F26: 3458 | G26: 4616 | H26: 3736 | I26: 29966

Sheet FM
A1: Customer | B1: FM
A3: Sum of Sales | C3: SalesRep
A4: Region | B4: Product | C4: Chin | D4: Franks | E4: Gault | F4: Pham | G4: Sioux | H4: Smith | I4: Grand Total
A5: East | B5: Bellen | D5: 1122 | G5: 154 | I5: 1276
B6: Carlota | C6: 736 | G6: 690 | I6: 1426
B7: Quad | D7: 1404 | E7: 1242 | H7: 945 | I7: 3591
B8: Sunset | F8: 588 | G8: 1008 | I8: 1596
B9: Sunshine | D9: 551 | G9: 475 | I9: 1026
A10: East Total | C10: 736 | D10: 3077 | E10: 1242 | F10: 588 | G10: 2327 | H10: 945 | I10: 8915
A11: MidWest | B11: Carlota | D11: 1219 | F11: 1449 | G11: 322 | I11: 2990
B12: Quad | D12: 1053 | I12: 1053
B13: Sunset | D13: 735 | G13: 1218 | H13: 420 | I13: 2373
B14: Sunshine | G14: 361 | H14: 1140 | I14: 1501
A15: MidWest Total | D15: 3007 | F15: 1449 | G15: 1901 | H15: 1560 | I15: 7917
A16: South | B16: Carlota | C16: 1357 | E16: 1449 | I16: 2806
B17: Quad | D17: 1566 | I17: 1566
B18: Sunset | D18: 1365 | F18: 756 | G18: 336 | H18: 315 | I18: 2772
B19: Sunshine | C19: 988 | F19: 589 | I19: 1577
A20: South Total | C20: 2345 | D20: 2931 | E20: 1449 | F20: 1345 | G20: 336 | H20: 315 | I20: 8721
A21: West | B21: Bellen | D21: 682 | I21: 682
B22: Quad | C22: 1593 | G22: 1701 | I22: 3294
B23: Sunset | F23: 2205 | I23: 2205
B24: Sunshine | D24: 399 | I24: 399
A25: West Total | C25: 1593 | D25: 1081 | F25: 2205 | G25: 1701 | I25: 6580
A26: Grand Total | C26: 4674 | D26: 10096 | E26: 2691 | F26: 5587 | G26: 6265 | H26: 2820 | I26: 32133

Sheet FRED
A1: Customer | B1: FRED
A3: Sum of Sales | C3: SalesRep
A4: Region | B4: Product | C4: Chin | D4: Franks | E4: Gault | F4: Pham | G4: Sioux | H4: Smith | I4: Grand Total
A5: East | B5: Carlota | C5: 1380 | F5: 552 | G5: 1127 | H5: 1173 | I5: 4232
B6: Quad | D6: 1269 | G6: 2025 | H6: 270 | I6: 3564
B7: Sunset | F7: 1071 | G7: 1365 | I7: 2436
B8: Sunshine | E8: 1083 | I8: 1083
A9: East Total | C9: 1380 | D9: 1269 | E9: 1083 | F9: 1623 | G9: 4517 | H9: 1443 | I9: 11315
A10: MidWest | B10: Bellen | C10: 1276 | I10: 1276
B11: Carlota | F11: 1794 | G11: 2047 | I11: 3841
B12: Sunshine | G12: 741 | I12: 741
A13: MidWest Total | C13: 1276 | F13: 1794 | G13: 2788 | I13: 5858
A14: South | B14: Bellen | G14: 1364 | H14: 440 | I14: 1804
B15: Carlota | C15: 1196 | F15: 437 | I15: 1633
B16: Quad | G16: 2268 | I16: 2268
B17: Sunset | G17: 987 | I17: 987
B18: Sunshine | C18: 513 | E18: 1197 | H18: 1197 | I18: 2907
A19: South Total | C19: 1709 | E19: 1197 | F19: 437 | G19: 4619 | H19: 1637 | I19: 9599
A20: West | B20: Bellen | G20: 1364 | I20: 1364
B21: Quad | F21: 351 | G21: 1539 | I21: 1890
B22: Sunset | C22: 420 | E22: 756 | F22: 672 | I22: 1848
B23: Sunshine | F23: 1159 | H23: 114 | I23: 1273
A24: West Total | C24: 420 | E24: 756 | F24: 2182 | G24: 2903 | H24: 114 | I24: 6375
A25: Grand Total | C25: 4785 | D25: 1269 | E25: 3036 | F25: 6036 | G25: 14827 | H25: 3194 | I25: 33147

Sheet GRR
A1: Customer | B1: GRR
A3: Sum of Sales | C3: SalesRep
A4: Region | B4: Product | C4: Chin | D4: Franks | E4: Gault | F4: Pham | G4: Sioux | H4: Smith | I4: Grand Total
A5: East | B5: Carlota | C5: 1449 | F5: 437 | I5: 1886
B6: Quad | C6: 810 | D6: 702 | H6: 621 | I6: 2133
B7: Sunset | C7: 714 | D7: 1008 | F7: 882 | I7: 2604
B8: Sunshine | F8: 1102 | H8: 1539 | I8: 2641
A9: East Total | C9: 2973 | D9: 1710 | F9: 2421 | H9: 2160 | I9: 9264
A10: MidWest | B10: Bellen | D10: 198 | F10: 462 | H10: 506 | I10: 1166
B11: Carlota | E11: 1242 | I11: 1242
B12: Quad | H12: 1647 | I12: 1647
B13: Sunset | C13: 609 | G13: 1533 | H13: 987 | I13: 3129
B14: Sunshine | G14: 950 | I14: 950
A15: MidWest Total | C15: 609 | D15: 198 | E15: 1242 | F15: 462 | G15: 2483 | H15: 3140 | I15: 8134
A16: South | B16: Bellen | H16: 594 | I16: 594
B17: Carlota | F17: 2438 | I17: 2438
B18: Quad | D18: 1701 | H18: 1350 | I18: 3051
B19: Sunset | F19: 924 | I19: 924
B20: Sunshine | C20: 741 | H20: 1197 | I20: 1938
A21: South Total | C21: 741 | D21: 1701 | F21: 3362 | H21: 3141 | I21: 8945
A22: West | B22: Bellen | C22: 880 | E22: 704 | G22: 1100 | I22: 2684
B23: Carlota | F23: 920 | G23: 1104 | I23: 2024
B24: Quad | E24: 1836 | I24: 1836
B25: Sunset | C25: 1155 | D25: 588 | F25: 1932 | I25: 3675
B26: Sunshine | C26: 741 | G26: 665 | I26: 1406
A27: West Total | C27: 2776 | D27: 588 | E27: 2540 | F27: 2852 | G27: 2869 | I27: 11625
A28: Grand Total | C28: 7099 | D28: 4197 | E28: 3782 | F28: 9097 | G28: 5352 | H28: 8441 | I28: 37968

Sheet HHH
A1: Customer | B1: HHH
A3: Sum of Sales | C3: SalesRep
A4: Region | B4: Product | C4: Chin | D4: Franks | E4: Gault | F4: Pham | G4: Sioux | H4: Smith | I4: Grand Total
A5: East | B5: Carlota | E5: 230 | G5: 644 | H5: 184 | I5: 1058
B6: Quad | G6: 1728 | I6: 1728
B7: Sunset | C7: 966 | D7: 1344 | H7: 1197 | I7: 3507
B8: Sunshine | H8: 1235 | I8: 1235
A9: East Total | C9: 966 | D9: 1344 | E9: 230 | G9: 2372 | H9: 2616 | I9: 7528
A10: MidWest | B10: Bellen | D10: 1342 | G10: 1364 | I10: 2706
B11: Quad | C11: 1566 | F11: 1296 | I11: 2862
B12: Sunset | G12: 378 | I12: 378
B13: Sunshine | C13: 760 | D13: 285 | E13: 228 | F13: 1976 | I13: 3249
A14: MidWest Total | C14: 2326 | D14: 1627 | E14: 228 | F14: 3272 | G14: 1742 | I14: 9195
A15: South | B15: Bellen | G15: 616 | I15: 616
B16: Quad | G16: 270 | H16: 243 | I16: 513
B17: Sunset | E17: 126 | I17: 126
A18: South Total | E18: 126 | G18: 886 | H18: 243 | I18: 1255
A19: West | B19: Bellen | F19: 1364 | G19: 990 | I19: 2354
B20: Carlota | E20: 851 | F20: 736 | G20: 253 | I20: 1840
B21: Quad | D21: 621 | H21: 621 | I21: 1242
A22: West Total | D22: 621 | E22: 851 | F22: 2100 | G22: 1243 | H22: 621 | I22: 5436
A23: Grand Total | C23: 3292 | D23: 3592 | E23: 1435 | F23: 5372 | G23: 6243 | H23: 3480 | I23: 23414

Sheet HII
A1: Customer | B1: HII
A3: Sum of Sales | C3: SalesRep
A4: Region | B4: Product | C4: Chin | D4: Franks | E4: Gault | F4: Pham | G4: Sioux | H4: Smith | I4: Grand Total
A5: East | B5: Bellen | D5: 1166 | G5: 1034 | I5: 2200
B6: Carlota | C6: 322 | F6: 2231 | I6: 2553
B7: Sunset | H7: 273 | I7: 273
B8: Sunshine | C8: 114 | E8: 2071 | H8: 494 | I8: 2679
A9: East Total | C9: 436 | D9: 1166 | E9: 2071 | F9: 2231 | G9: 1034 | H9: 767 | I9: 7705
A10: MidWest | B10: Carlota | G10: 1265 | I10: 1265
B11: Quad | H11: 567 | I11: 567
B12: Sunset | C12: 1113 | I12: 1113
B13: Sunshine | C13: 912 | E13: 608 | G13: 855 | H13: 646 | I13: 3021
A14: MidWest Total | C14: 2025 | E14: 608 | G14: 2120 | H14: 1213 | I14: 5966
A15: South | B15: Bellen | C15: 792 | D15: 1958 | G15: 638 | H15: 484 | I15: 3872
B16: Quad | F16: 891 | I16: 891
B17: Sunshine | C17: 266 | E17: 2299 | G17: 589 | H17: 969 | I17: 4123
A18: South Total | C18: 1058 | D18: 1958 | E18: 2299 | F18: 891 | G18: 1227 | H18: 1453 | I18: 8886
A19: West | B19: Bellen | H19: 902 | I19: 902
B20: Carlota | E20: 2139 | F20: 529 | I20: 2668
B21: Quad | E21: 1782 | F21: 1107 | I21: 2889
B22: Sunset | D22: 1533 | F22: 231 | H22: 1134 | I22: 2898
B23: Sunshine | C23: 399 | E23: 399 | H23: 684 | I23: 1482
A24: West Total | C24: 399 | D24: 1533 | E24: 4320 | F24: 1867 | H24: 2720 | I24: 10839
A25: Grand Total | C25: 3918 | D25: 4657 | E25: 9298 | F25: 4989 | G25: 4381 | H25: 6153 | I25: 33396

Sheet ITTW
A1: Customer | B1: ITTW
A3: Sum of Sales | C3: SalesRep
A4: Region | B4: Product | C4: Chin | D4: Franks | E4: Gault | F4: Pham | G4: Sioux | H4: Smith | I4: Grand Total
A5: East | B5: Bellen | D5: 264 | E5: 1958 | F5: 880 | I5: 3102
B6: Carlota | E6: 1679 | I6: 1679
B7: Quad | E7: 756 | I7: 756
B8: Sunset | G8: 1197 | I8: 1197
B9: Sunshine | E9: 912 | I9: 912
A10: East Total | D10: 264 | E10: 5305 | F10: 880 | G10: 1197 | I10: 7646
A11: MidWest | B11: Carlota | E11: 943 | I11: 943
A12: MidWest Total | E12: 943 | I12: 943
A13: South | B13: Bellen | C13: 286 | H13: 836 | I13: 1122
B14: Carlota | F14: 621 | H14: 391 | I14: 1012
B15: Quad | D15: 378 | H15: 513 | I15: 891
B16: Sunset | H16: 294 | I16: 294
B17: Sunshine | G17: 1159 | I17: 1159
A18: South Total | C18: 286 | D18: 378 | F18: 621 | G18: 1159 | H18: 2034 | I18: 4478
A19: West | B19: Bellen | E19: 1012 | F19: 154 | I19: 1166
B20: Carlota | C20: 966 | F20: 529 | I20: 1495
B21: Quad | F21: 297 | I21: 297
B22: Sunset | D22: 231 | E22: 1365 | I22: 1596
B23: Sunshine | E23: 1121 | I23: 1121
A24: West Total | C24: 966 | D24: 231 | E24: 3498 | F24: 980 | I24: 5675
A25: Grand Total | C25: 1252 | D25: 873 | E25: 9746 | F25: 2481 | G25: 2356 | H25: 2034 | I25: 18742

Sheet ITW
A1: Customer | B1: ITW
A3: Sum of Sales | C3: SalesRep
A4: Region | B4: Product | C4: Chin | D4: Franks | E4: Gault | F4: Pham | G4: Sioux | H4: Smith | I4: Grand Total
A5: East | B5: Bellen | H5: 308 | I5: 308
B6: Carlota | E6: 1449 | I6: 1449
B7: Quad | C7: 378 | I7: 378
B8: Sunset | E8: 231 | H8: 861 | I8: 1092
B9: Sunshine | C9: 418 | I9: 418
A10: East Total | C10: 796 | E10: 1680 | H10: 1169 | I10: 3645
A11: MidWest | B11: Bellen | C11: 1122 | F11: 418 | I11: 1540
B12: Carlota | E12: 2139 | I12: 2139
B13: Quad | C13: 1188 | H13: 1971 | I13: 3159
B14: Sunset | E14: 1071 | F14: 651 | G14: 651 | I14: 2373
B15: Sunshine | D15: 684 | E15: 1634 | H15: 798 | I15: 3116
A16: MidWest Total | C16: 2310 | D16: 684 | E16: 4844 | F16: 1069 | G16: 651 | H16: 2769 | I16: 12327
A17: South | B17: Bellen | D17: 858 | E17: 418 | H17: 484 | I17: 1760
B18: Quad | H18: 1269 | I18: 1269
B19: Sunset | C19: 819 | D19: 945 | E19: 840 | I19: 2604
B20: Sunshine | H20: 703 | I20: 703
A21: South Total | C21: 819 | D21: 1803 | E21: 1258 | H21: 2456 | I21: 6336
A22: West | B22: Bellen | D22: 220 | F22: 1144 | I22: 1364
B23: Carlota | C23: 1472 | E23: 1127 | G23: 1035 | H23: 920 | I23: 4554
B24: Sunshine | G24: 266 | I24: 266
A25: West Total | C25: 1472 | D25: 220 | E25: 1127 | F25: 1144 | G25: 1301 | H25: 920 | I25: 6184
A26: Grand Total | C26: 5397 | D26: 2707 | E26: 8909 | F26: 2213 | G26: 1952 | H26: 7314 | I26: 28492

Sheet JAQ
A1: Customer | B1: JAQ
A3: Sum of Sales | C3: SalesRep
A4: Region | B4: Product | C4: Chin | D4: Franks | E4: Gault | F4: Pham | G4: Smith | H4: Grand Total
A5: East | B5: Bellen | C5: 748 | D5: 682 | H5: 1430
B6: Carlota | G6: 345 | H6: 345
B7: Quad | G7: 216 | H7: 216
B8: Sunshine | E8: 475 | H8: 475
A9: East Total | C9: 748 | D9: 682 | E9: 475 | G9: 561 | H9: 2466
A10: MidWest | B10: Bellen | C10: 1276 | H10: 1276
B11: Carlota | D11: 782 | F11: 713 | H11: 1495
B12: Quad | D12: 351 | E12: 1593 | G12: 999 | H12: 2943
B13: Sunset | C13: 483 | D13: 1218 | E13: 924 | H13: 2625
B14: Sunshine | G14: 1957 | H14: 1957
A15: MidWest Total | C15: 1759 | D15: 2351 | E15: 2517 | F15: 713 | G15: 2956 | H15: 10296
A16: South | B16: Bellen | D16: 990 | G16: 1232 | H16: 2222
B17: Quad | C17: 189 | G17: 1458 | H17: 1647
B18: Sunshine | C18: 323 | F18: 1691 | H18: 2014
A19: South Total | C19: 512 | D19: 990 | F19: 1691 | G19: 2690 | H19: 5883
A20: West | B20: Bellen | C20: 154 | F20: 1386 | H20: 1540
B21: Quad | C21: 1458 | E21: 621 | H21: 2079
B22: Sunshine | D22: 247 | H22: 247
A23: West Total | C23: 1612 | D23: 247 | E23: 621 | F23: 1386 | H23: 3866
A24: Grand Total | C24: 4631 | D24: 4270 | E24: 3613 | F24: 3790 | G24: 6207 | H24: 22511

Sheet KBTB
A1: Customer | B1: KBTB
A3: Sum of Sales | C3: SalesRep
A4: Region | B4: Product | C4: Chin | D4: Franks | E4: Gault | F4: Pham | G4: Sioux | H4: Smith | I4: Grand Total
A5: East | B5: Bellen | F5: 1232 | I5: 1232
B6: Quad | D6: 810 | I6: 810
B7: Sunset | H7: 252 | I7: 252
B8: Sunshine | E8: 684 | H8: 494 | I8: 1178
A9: East Total | D9: 810 | E9: 684 | F9: 1232 | H9: 746 | I9: 3472
A10: MidWest | B10: Bellen | C10: 1364 | D10: 1562 | E10: 1870 | I10: 4796
B11: Carlota | D11: 230 | E11: 276 | F11: 2392 | I11: 2898
B12: Sunset | F12: 1281 | I12: 1281
B13: Sunshine | F13: 228 | I13: 228
A14: MidWest Total | C14: 1364 | D14: 1792 | E14: 2146 | F14: 3901 | I14: 9203
A15: South | B15: Bellen | D15: 1122 | F15: 946 | H15: 352 | I15: 2420
B16: Carlota | E16: 345 | F16: 759 | I16: 1104
B17: Quad | F17: 1215 | G17: 1944 | H17: 1647 | I17: 4806
B18: Sunset | C18: 1323 | G18: 588 | H18: 714 | I18: 2625
B19: Sunshine | F19: 152 | H19: 532 | I19: 684
A20: South Total | C20: 1323 | D20: 1122 | E20: 345 | F20: 3072 | G20: 2532 | H20: 3245 | I20: 11639
A21: West | B21: Bellen | D21: 1364 | I21: 1364
B22: Carlota | D22: 345 | F22: 1242 | G22: 1311 | H22: 414 | I22: 3312
B23: Quad | F23: 1377 | I23: 1377
B24: Sunset | E24: 399 | F24: 630 | H24: 273 | I24: 1302
B25: Sunshine | D25: 209 | E25: 950 | F25: 323 | I25: 1482
A26: West Total | D26: 1918 | E26: 1349 | F26: 3572 | G26: 1311 | H26: 687 | I26: 8837
A27: Grand Total | C27: 2687 | D27: 5642 | E27: 4524 | F27: 11777 | G27: 3843 | H27: 4678 | I27: 33151

Sheet KPSA
A1: Customer | B1: KPSA
A3: Sum of Sales | C3: SalesRep
A4: Region | B4: Product | C4: Chin | D4: Franks | E4: Gault | F4: Pham | G4: Sioux | H4: Smith | I4: Grand Total
A5: East | B5: Bellen | C5: 374 | H5: 242 | I5: 616
B6: Carlota | C6: 1288 | D6: 1035 | E6: 1288 | I6: 3611
B7: Quad | C7: 1674 | E7: 1431 | F7: 621 | H7: 1323 | I7: 5049
B8: Sunset | C8: 945 | E8: 1323 | I8: 2268
B9: Sunshine | E9: 741 | I9: 741
A10: East Total | C10: 4281 | D10: 1035 | E10: 4783 | F10: 621 | H10: 1565 | I10: 12285
A11: MidWest | B11: Bellen | F11: 132 | H11: 506 | I11: 638
B12: Carlota | D12: 575 | F12: 483 | I12: 1058
B13: Quad | D13: 756 | I13: 756
B14: Sunset | C14: 1365 | G14: 1071 | I14: 2436
B15: Sunshine | C15: 551 | I15: 551
A16: MidWest Total | C16: 1916 | D16: 1331 | F16: 615 | G16: 1071 | H16: 506 | I16: 5439
A17: South | B17: Bellen | H17: 396 | I17: 396
B18: Carlota | D18: 253 | I18: 253
B19: Quad | C19: 648 | I19: 648
B20: Sunset | E20: 315 | G20: 1050 | I20: 1365
B21: Sunshine | C21: 1520 | I21: 1520
A22: South Total | C22: 2168 | D22: 253 | E22: 315 | G22: 1050 | H22: 396 | I22: 4182
A23: West | B23: Bellen | D23: 682 | F23: 220 | G23: 396 | I23: 1298
B24: Carlota | E24: 1081 | H24: 1173 | I24: 2254
B25: Quad | G25: 1161 | I25: 1161
B26: Sunshine | C26: 722 | D26: 931 | E26: 912 | I26: 2565
A27: West Total | C27: 722 | D27: 1613 | E27: 1993 | F27: 220 | G27: 1557 | H27: 1173 | I27: 7278
A28: Grand Total | C28: 9087 | D28: 4232 | E28: 7091 | F28: 1456 | G28: 3678 | H28: 3640 | I28: 29184

Sheet LOP
A1: Customer | B1: LOP
A3: Sum of Sales | C3: SalesRep
A4: Region | B4: Product | C4: Chin | D4: Franks | E4: Gault | F4: Pham | G4: Sioux | H4: Smith | I4: Grand Total
A5: East | B5: Bellen | C5: 308 | E5: 594 | F5: 2222 | I5: 3124
B6: Carlota | H6: 644 | I6: 644
B7: Quad | D7: 621 | F7: 216 | I7: 837
B8: Sunshine | E8: 1121 | I8: 1121
A9: East Total | C9: 308 | D9: 621 | E9: 1715 | F9: 2438 | H9: 644 | I9: 5726
A10: MidWest | B10: Carlota | C10: 690 | E10: 1173 | I10: 1863
B11: Quad | C11: 1080 | G11: 1620 | H11: 1215 | I11: 3915
B12: Sunset | F12: 924 | G12: 882 | H12: 1197 | I12: 3003
B13: Sunshine | H13: 969 | I13: 969
A14: MidWest Total | C14: 1770 | E14: 1173 | F14: 924 | G14: 2502 | H14: 3381 | I14: 9750
A15: South | B15: Bellen | E15: 792 | I15: 792
B16: Carlota | E16: 966 | G16: 644 | I16: 1610
B17: Quad | D17: 351 | E17: 891 | I17: 1242
B18: Sunset | F18: 945 | H18: 294 | I18: 1239
B19: Sunshine | C19: 380 | I19: 380
A20: South Total | C20: 380 | D20: 351 | E20: 2649 | F20: 945 | G20: 644 | H20: 294 | I20: 5263
A21: West | B21: Carlota | F21: 299 | I21: 299
B22: Sunset | H22: 546 | I22: 546
B23: Sunshine | H23: 684 | I23: 684
A24: West Total | F24: 299 | H24: 1230 | I24: 1529
A25: Grand Total | C25: 2458 | D25: 972 | E25: 5537 | F25: 4606 | G25: 3146 | H25: 5549 | I25: 22268

Sheet MBG
A1: Customer | B1: MBG
A3: Sum of Sales | C3: SalesRep
A4: Region | B4: Product | C4: Chin | D4: Franks | E4: Gault | F4: Pham | G4: Sioux | H4: Smith | I4: Grand Total
A5: East | B5: Carlota | C5: 1150 | D5: 1771 | E5: 943 | I5: 3864
B6: Quad | C6: 1026 | E6: 621 | G6: 513 | I6: 2160
B7: Sunset | D7: 798 | I7: 798
B8: Sunshine | F8: 1045 | I8: 1045
A9: East Total | C9: 2176 | D9: 2569 | E9: 1564 | F9: 1045 | G9: 513 | I9: 7867
A10: MidWest | B10: Bellen | E10: 396 | I10: 396
B11: Carlota | C11: 713 | I11: 713
B12: Quad | H12: 2835 | I12: 2835
B13: Sunshine | D13: 1102 | G13: 1235 | I13: 2337
A14: MidWest Total | C14: 713 | D14: 1102 | E14: 396 | G14: 1235 | H14: 2835 | I14: 6281
A15: South | B15: Quad | C15: 270 | E15: 1323 | I15: 1593
B16: Sunset | G16: 252 | I16: 252
B17: Sunshine | C17: 570 | D17: 1862 | I17: 2432
A18: South Total | C18: 840 | D18: 1862 | E18: 1323 | G18: 252 | I18: 4277
A19: West | B19: Sunshine | C19: 475 | G19: 1102 | I19: 1577
A20: West Total | C20: 475 | G20: 1102 | I20: 1577
A21: Grand Total | C21: 4204 | D21: 5533 | E21: 3283 | F21: 1045 | G21: 3102 | H21: 2835 | I21: 20002

Sheet MNGD
A1: Customer | B1: MNGD
A3: Sum of Sales | C3: SalesRep
A4: Region | B4: Product | C4: Chin | D4: Franks | E4: Gault | F4: Pham | G4: Sioux | H4: Smith | I4: Grand Total
A5: East | B5: Carlota | D5: 1058 | I5: 1058
B6: Sunshine | E6: 247 | F6: 1007 | H6: 114 | I6: 1368
A7: East Total | D7: 1058 | E7: 247 | F7: 1007 | H7: 114 | I7: 2426
A8: MidWest | B8: Carlota | H8: 1104 | I8: 1104
B9: Sunset | E9: 1071 | H9: 714 | I9: 1785
B10: Sunshine | C10: 798 | H10: 741 | I10: 1539
A11: MidWest Total | C11: 798 | E11: 1071 | H11: 2559 | I11: 4428
A12: South | B12: Bellen | C12: 1100 | H12: 2244 | I12: 3344
B13: Carlota | C13: 851 | I13: 851
B14: Quad | C14: 1161 | E14: 783 | H14: 837 | I14: 2781
B15: Sunset | C15: 651 | I15: 651
B16: Sunshine | C16: 1007 | F16: 285 | H16: 741 | I16: 2033
A17: South Total | C17: 4770 | E17: 783 | F17: 285 | H17: 3822 | I17: 9660
A18: West | B18: Bellen | C18: 1276 | E18: 506 | G18: 1210 | I18: 2992
B19: Carlota | D19: 1495 | F19: 644 | I19: 2139
B20: Sunset | F20: 588 | H20: 966 | I20: 1554
A21: West Total | C21: 1276 | D21: 1495 | E21: 506 | F21: 1232 | G21: 1210 | H21: 966 | I21: 6685
A22: Grand Total | C22: 6844 | D22: 2553 | E22: 2607 | F22: 2524 | G22: 1210 | H22: 7461 | I22: 23199

Sheet PCC
A1: Customer | B1: PCC
A3: Sum of Sales | C3: SalesRep
A4: Region | B4: Product | C4: Chin | D4: Franks | E4: Gault | F4: Pham | G4: Sioux | H4: Smith | I4: Grand Total
A5: East | B5: Bellen | C5: 1210 | E5: 616 | I5: 1826
B6: Carlota | C6: 230 | F6: 1265 | H6: 1058 | I6: 2553
B7: Quad | E7: 1053 | G7: 486 | I7: 1539
B8: Sunset | H8: 714 | I8: 714
B9: Sunshine | D9: 171 | F9: 798 | I9: 969
A10: East Total | C10: 1440 | D10: 171 | E10: 1669 | F10: 2063 | G10: 486 | H10: 1772 | I10: 7601
A11: MidWest | B11: Bellen | D11: 858 | E11: 2574 | I11: 3432
B12: Carlota | D12: 1426 | E12: 1495 | F12: 851 | I12: 3772
B13: Quad | C13: 1620 | D13: 1512 | I13: 3132
B14: Sunset | C14: 903 | I14: 903
B15: Sunshine | F15: 551 | H15: 209 | I15: 760
A16: MidWest Total | C16: 2523 | D16: 3796 | E16: 4069 | F16: 1402 | H16: 209 | I16: 11999
A17: South | B17: Bellen | C17: 308 | H17: 924 | I17: 1232
B18: Quad | C18: 459 | E18: 1080 | G18: 1755 | I18: 3294
B19: Sunset | C19: 1197 | I19: 1197
A20: South Total | C20: 1964 | E20: 1080 | G20: 1755 | H20: 924 | I20: 5723
A21: West | B21: Bellen | C21: 176 | H21: 572 | I21: 748
B22: Carlota | C22: 391 | I22: 391
B23: Quad | C23: 891 | D23: 1404 | F23: 756 | G23: 297 | I23: 3348
B24: Sunshine | F24: 190 | H24: 798 | I24: 988
A25: West Total | C25: 1458 | D25: 1404 | F25: 946 | G25: 297 | H25: 1370 | I25: 5475
A26: Grand Total | C26: 7385 | D26: 5371 | E26: 6818 | F26: 4411 | G26: 2538 | H26: 4275 | I26: 30798

Sheet PLOT
A1: Customer | B1: PLOT
A3: Sum of Sales | C3: SalesRep
A4: Region | B4: Product | C4: Chin | D4: Franks | E4: Gault | F4: Pham | G4: Sioux | H4: Smith | I4: Grand Total
A5: East | B5: Bellen | F5: 858 | I5: 858
B6: Carlota | C6: 989 | I6: 989
B7: Sunset | G7: 147 | H7: 1953 | I7: 2100
A8: East Total | C8: 989 | F8: 858 | G8: 147 | H8: 1953 | I8: 3947
A9: MidWest | B9: Bellen | E9: 154 | F9: 242 | I9: 396
B10: Carlota | H10: 437 | I10: 437
B11: Quad | C11: 1080 | H11: 648 | I11: 1728
B12: Sunset | E12: 378 | I12: 378
B13: Sunshine | G13: 817 | H13: 912 | I13: 1729
A14: MidWest Total | C14: 1080 | E14: 532 | F14: 242 | G14: 817 | H14: 1997 | I14: 4668
A15: South | B15: Carlota | D15: 782 | G15: 552 | H15: 322 | I15: 1656
B16: Quad | G16: 1620 | I16: 1620
B17: Sunset | F17: 882 | I17: 882
B18: Sunshine | E18: 532 | F18: 1159 | I18: 1691
A19: South Total | D19: 782 | E19: 532 | F19: 2041 | G19: 2172 | H19: 322 | I19: 5849
A20: West | B20: Bellen | H20: 264 | I20: 264
B21: Carlota | E21: 2300 | H21: 1472 | I21: 3772
B22: Quad | G22: 729 | I22: 729
B23: Sunset | D23: 1071 | I23: 1071
B24: Sunshine | E24: 684 | I24: 684
A25: West Total | D25: 1071 | E25: 2984 | G25: 729 | H25: 1736 | I25: 6520
A26: Grand Total | C26: 2069 | D26: 1853 | E26: 4048 | F26: 3141 | G26: 3865 | H26: 6008 | I26: 20984

Sheet PSA
A1: Customer | B1: PSA
A3: Sum of Sales | C3: SalesRep
A4: Region | B4: Product | C4: Chin | D4: Franks | E4: Gault | F4: Pham | G4: Sioux | H4: Smith | I4: Grand Total
A5: East | B5: Bellen | C5: 220 | D5: 2002 | I5: 2222
B6: Carlota | H6: 1334 | I6: 1334
B7: Quad | E7: 756 | I7: 756
B8: Sunshine | C8: 779 | I8: 779
A9: East Total | C9: 999 | D9: 2002 | E9: 756 | H9: 1334 | I9: 5091
A10: MidWest | B10: Bellen | C10: 1210 | G10: 1716 | I10: 2926
B11: Quad | E11: 1296 | H11: 162 | I11: 1458
B12: Sunset | E12: 798 | I12: 798
B13: Sunshine | C13: 1159 | E13: 1349 | I13: 2508
A14: MidWest Total | C14: 2369 | E14: 3443 | G14: 1716 | H14: 162 | I14: 7690
A15: South | B15: Bellen | C15: 1122 | D15: 1056 | F15: 1078 | I15: 3256
B16: Quad | E16: 486 | I16: 486
B17: Sunset | D17: 1407 | E17: 756 | G17: 147 | I17: 2310
B18: Sunshine | C18: 1216 | H18: 494 | I18: 1710
A19: South Total | C19: 2338 | D19: 2463 | E19: 1242 | F19: 1078 | G19: 147 | H19: 494 | I19: 7762
A20: West | B20: Carlota | C20: 920 | I20: 920
B21: Quad | C21: 1161 | D21: 378 | I21: 1539
B22: Sunset | G22: 1260 | I22: 1260
B23: Sunshine | F23: 1558 | I23: 1558
A24: West Total | C24: 2081 | D24: 378 | F24: 1558 | G24: 1260 | I24: 5277
A25: Grand Total | C25: 7787 | D25: 4843 | E25: 5441 | F25: 2636 | G25: 3123 | H25: 1990 | I25: 25820

Sheet QT
A1: Customer | B1: QT
A3: Sum of Sales | C3: SalesRep
A4: Region | B4: Product | C4: Chin | D4: Franks | E4: Gault | F4: Pham | G4: Sioux | H4: Smith | I4: Grand Total
A5: East | B5: Bellen | G5: 1210 | I5: 1210
B6: Carlota | D6: 805 | I6: 805
A7: East Total | D7: 805 | G7: 1210 | I7: 2015
A8: MidWest | B8: Bellen | C8: 1122 | I8: 1122
B9: Carlota | E9: 138 | I9: 138
B10: Quad | D10: 1647 | I10: 1647
B11: Sunshine | G11: 399 | I11: 399
A12: MidWest Total | C12: 1122 | D12: 1647 | E12: 138 | G12: 399 | I12: 3306
A13: South | B13: Bellen | E13: 132 | G13: 968 | I13: 1100
B14: Carlota | F14: 621 | I14: 621
B15: Quad | D15: 1890 | I15: 1890
B16: Sunset | D16: 189 | F16: 1260 | G16: 630 | I16: 2079
B17: Sunshine | G17: 1178 | I17: 1178
A18: South Total | D18: 2079 | E18: 132 | F18: 1881 | G18: 2776 | I18: 6868
A19: West | B19: Carlota | E19: 989 | F19: 2185 | G19: 2369 | H19: 690 | I19: 6233
B20: Quad | D20: 1188 | I20: 1188
B21: Sunset | D21: 609 | E21: 903 | I21: 1512
B22: Sunshine | C22: 380 | I22: 380
A23: West Total | C23: 380 | D23: 1797 | E23: 1892 | F23: 2185 | G23: 2369 | H23: 690 | I23: 9313
A24: Grand Total | C24: 1502 | D24: 6328 | E24: 2162 | F24: 4066 | G24: 6754 | H24: 690 | I24: 21502

Sheet SFWK
A1: Customer | B1: SFWK
A3: Sum of Sales | C3: SalesRep
A4: Region | B4: Product | C4: Chin | D4: Franks | E4: Gault | F4: Pham | G4: Sioux | H4: Smith | I4: Grand Total
A5: East | B5: Bellen | D5: 242 | I5: 242
B6: Carlota | F6: 575 | G6: 2047 | I6: 2622
B7: Quad | D7: 216 | I7: 216
B8: Sunshine | F8: 703 | G8: 741 | I8: 1444
A9: East Total | D9: 458 | F9: 1278 | G9: 2788 | I9: 4524
A10: MidWest | B10: Bellen | E10: 1408 | G10: 1914 | I10: 3322
B11: Carlota | C11: 529 | D11: 391 | F11: 253 | G11: 506 | I11: 1679
B12: Quad | D12: 1323 | F12: 594 | H12: 756 | I12: 2673
B13: Sunset | D13: 273 | E13: 252 | H13: 1092 | I13: 1617
A14: MidWest Total | C14: 529 | D14: 1987 | E14: 1660 | F14: 847 | G14: 2420 | H14: 1848 | I14: 9291
A15: South | B15: Bellen | C15: 638 | I15: 638
B16: Carlota | F16: 575 | H16: 690 | I16: 1265
B17: Sunset | C17: 483 | H17: 1512 | I17: 1995
A18: South Total | C18: 1121 | F18: 575 | H18: 2202 | I18: 3898
A19: West | B19: Carlota | D19: 1311 | I19: 1311
B20: Quad | G20: 3375 | H20: 972 | I20: 4347
B21: Sunset | C21: 1008 | H21: 483 | I21: 1491
B22: Sunshine | C22: 494 | F22: 1197 | H22: 1216 | I22: 2907
A23: West Total | C23: 1502 | D23: 1311 | F23: 1197 | G23: 3375 | H23: 2671 | I23: 10056
A24: Grand Total | C24: 3152 | D24: 3756 | E24: 1660 | F24: 3897 | G24: 8583 | H24: 6721 | I24: 27769

Sheet T
A1: Customer | B1: T
A3: Sum of Sales | C3: SalesRep
A4: Region | B4: Product | C4: Chin | D4: Franks | E4: Gault | F4: Pham | G4: Sioux | H4: Smith | I4: Grand Total
A5: East | B5: Carlota | F5: 1472 | I5: 1472
B6: Quad | C6: 756 | I6: 756
B7: Sunset | H7: 483 | I7: 483
B8: Sunshine | D8: 665 | I8: 665
A9: East Total | C9: 756 | D9: 665 | F9: 1472 | H9: 483 | I9: 3376
A10: MidWest | B10: Bellen | E10: 2310 | I10: 2310
B11: Carlota | D11: 483 | I11: 483
B12: Quad | C12: 405 | I12: 405
B13: Sunshine | C13: 703 | D13: 171 | I13: 874
A14: MidWest Total | C14: 1108 | D14: 654 | E14: 2310 | I14: 4072
A15: South | B15: Bellen | F15: 1166 | H15: 506 | I15: 1672
B16: Carlota | D16: 1265 | I16: 1265
B17: Quad | C17: 1566 | E17: 162 | G17: 540 | H17: 675 | I17: 2943
B18: Sunset | C18: 777 | D18: 651 | I18: 1428
B19: Sunshine | F19: 418 | I19: 418
A20: South Total | C20: 2343 | D20: 1916 | E20: 162 | F20: 1584 | G20: 540 | H20: 1181 | I20: 7726
A21: West | B21: Carlota | E21: 391 | I21: 391
B22: Sunset | G22: 210 | I22: 210
B23: Sunshine | C23: 1634 | I23: 1634
A24: West Total | C24: 1634 | E24: 391 | G24: 210 | I24: 2235
A25: Grand Total | C25: 5841 | D25: 3235 | E25: 2863 | F25: 3056 | G25: 750 | H25: 1664 | I25: 17409

Sheet TRU
A1: Customer | B1: TRU
A3: Sum of Sales | C3: SalesRep
A4: Region | B4: Product | C4: Chin | D4: Franks | E4: Gault | F4: Pham | G4: Sioux | H4: Smith | I4: Grand Total
A5: East | B5: Bellen | E5: 902 | I5: 902
B6: Carlota | E6: 483 | G6: 943 | I6: 1426
B7: Quad | C7: 1539 | D7: 486 | I7: 2025
B8: Sunset | C8: 126 | E8: 483 | G8: 1113 | I8: 1722
B9: Sunshine | H9: 437 | I9: 437
A10: East Total | C10: 1665 | D10: 486 | E10: 1868 | G10: 2056 | H10: 437 | I10: 6512
A11: MidWest | B11: Carlota | C11: 414 | F11: 1357 | H11: 644 | I11: 2415
B12: Quad | E12: 216 | I12: 216
B13: Sunset | C13: 1029 | H13: 231 | I13: 1260
B14: Sunshine | E14: 513 | H14: 1178 | I14: 1691
A15: MidWest Total | C15: 1443 | E15: 729 | F15: 1357 | H15: 2053 | I15: 5582
A16: South | B16: Bellen | C16: 330 | D16: 220 | F16: 1232 | G16: 198 | H16: 572 | I16: 2552
B17: Carlota | F17: 1288 | H17: 966 | I17: 2254
B18: Quad | F18: 918 | I18: 918
B19: Sunset | D19: 126 | E19: 273 | G19: 1218 | I19: 1617
B20: Sunshine | D20: 817 | G20: 532 | I20: 1349
A21: South Total | C21: 330 | D21: 1163 | E21: 273 | F21: 3438 | G21: 1948 | H21: 1538 | I21: 8690
A22: West | B22: Bellen | C22: 418 | H22: 1100 | I22: 1518
B23: Quad | E23: 891 | F23: 1161 | G23: 459 | I23: 2511
B24: Sunset | G24: 525 | H24: 588 | I24: 1113
B25: Sunshine | D25: 1026 | I25: 1026
A26: West Total | C26: 418 | D26: 1026 | E26: 891 | F26: 1161 | G26: 984 | H26: 1688 | I26: 6168
A27: Grand Total | C27: 3856 | D27: 2675 | E27: 3761 | F27: 5956 | G27: 4988 | H27: 5716 | I27: 26952

Sheet TTT
A1: Customer | B1: TTT
A3: Sum of Sales | C3: SalesRep
A4: Region | B4: Product | C4: Chin | D4: Franks | E4: Gault | F4: Pham | G4: Sioux | H4: Smith | I4: Grand Total
A5: East | B5: Bellen | C5: 1232 | D5: 1826 | G5: 374 | H5: 1430 | I5: 4862
B6: Carlota | D6: 1449 | F6: 184 | G6: 1495 | I6: 3128
B7: Quad | C7: 648 | E7: 1404 | F7: 189 | G7: 648 | H7: 567 | I7: 3456
B8: Sunset | D8: 2184 | G8: 1134 | H8: 1386 | I8: 4704
B9: Sunshine | C9: 1159 | F9: 266 | H9: 1083 | I9: 2508
A10: East Total | C10: 3039 | D10: 5459 | E10: 1404 | F10: 639 | G10: 3651 | H10: 4466 | I10: 18658
A11: MidWest | B11: Bellen | E11: 990 | F11: 748 | G11: 1782 | I11: 3520
B12: Carlota | G12: 989 | H12: 621 | I12: 1610
B13: Quad | D13: 648 | F13: 1485 | G13: 297 | H13: 1512 | I13: 3942
B14: Sunset | C14: 1155 | I14: 1155
B15: Sunshine | D15: 912 | H15: 1330 | I15: 2242
A16: MidWest Total | C16: 1155 | D16: 1560 | E16: 990 | F16: 2233 | G16: 3068 | H16: 3463 | I16: 12469
A17: South | B17: Bellen | C17: 1518 | E17: 3300 | F17: 1936 | G17: 1166 | I17: 7920
B18: Carlota | C18: 552 | D18: 1679 | F18: 1863 | G18: 966 | I18: 5060
B19: Quad | E19: 756 | F19: 1323 | H19: 1458 | I19: 3537
B20: Sunset | E20: 462 | F20: 1050 | H20: 357 | I20: 1869
B21: Sunshine | F21: 456 | I21: 456
A22: South Total | C22: 2070 | D22: 1679 | E22: 4518 | F22: 6628 | G22: 2132 | H22: 1815 | I22: 18842
A23: West | B23: Bellen | C23: 198 | D23: 242 | E23: 594 | F23: 1144 | G23: 1232 | I23: 3410
B24: Carlota | C24: 368 | D24: 1311 | G24: 1541 | H24: 1886 | I24: 5106
B25: Quad | E25: 1188 | I25: 1188
B26: Sunset | C26: 1785 | F26: 420 | G26: 483 | H26: 1806 | I26: 4494
B27: Sunshine | C27: 266 | D27: 418 | F27: 1235 | G27: 2014 | I27: 3933
A28: West Total | C28: 2617 | D28: 1971 | E28: 1782 | F28: 2799 | G28: 5270 | H28: 3692 | I28: 18131
A29: Grand Total | C29: 8881 | D29: 10669 | E29: 8694 | F29: 12299 | G29: 14121 | H29: 13436 | I29: 68100

Sheet WFMI
A1: Customer | B1: WFMI
A3: Sum of Sales | C3: SalesRep
A4: Region | B4: Product | C4: Chin | D4: Franks | E4: Gault | F4: Pham | G4: Sioux | H4: Smith | I4: Grand Total
A5: East | B5: Bellen | C5: 1210 | F5: 396 | I5: 1606
B6: Carlota | E6: 1173 | I6: 1173
B7: Quad | D7: 783 | E7: 2781 | F7: 972 | I7: 4536
B8: Sunset | C8: 126 | D8: 1155 | I8: 1281
B9: Sunshine | H9: 589 | I9: 589
A10: East Total | C10: 1336 | D10: 1938 | E10: 3954 | F10: 1368 | H10: 589 | I10: 9185
A11: MidWest | B11: Bellen | D11: 880 | I11: 880
B12: Quad | D12: 1566 | F12: 783 | I12: 2349
B13: Sunset | C13: 399 | D13: 630 | G13: 630 | I13: 1659
A14: MidWest Total | C14: 399 | D14: 3076 | F14: 783 | G14: 630 | I14: 4888
A15: South | B15: Bellen | D15: 726 | I15: 726
B16: Carlota | C16: 184 | I16: 184
B17: Quad | H17: 783 | I17: 783
B18: Sunset | C18: 546 | H18: 273 | I18: 819
A19: South Total | C19: 730 | D19: 726 | H19: 1056 | I19: 2512
A20: West | B20: Bellen | E20: 858 | I20: 858
B21: Quad | C21: 756 | H21: 1728 | I21: 2484
B22: Sunshine | E22: 513 | F22: 1235 | H22: 190 | I22: 1938
A23: West Total | C23: 756 | E23: 1371 | F23: 1235 | H23: 1918 | I23: 5280
A24: Grand Total | C24: 3221 | D24: 5740 | E24: 5325 | F24: 3386 | G24: 630 | H24: 3563 | I24: 21865

Sheet WSD
A1: Customer | B1: WSD
A3: Sum of Sales | C3: SalesRep
A4: Region | B4: Product | C4: Chin | D4: Franks | E4: Gault | F4: Pham | G4: Sioux | H4: Smith | I4: Grand Total
A5: East | B5: Bellen | C5: 902 | H5: 374 | I5: 1276
B6: Carlota | D6: 552 | F6: 1449 | H6: 897 | I6: 2898
B7: Quad | E7: 540 | I7: 540
B8: Sunset | C8: 903 | E8: 861 | I8: 1764
B9: Sunshine | C9: 741 | F9: 760 | I9: 1501
A10: East Total | C10: 2546 | D10: 552 | E10: 1401 | F10: 2209 | H10: 1271 | I10: 7979
A11: MidWest | B11: Bellen | G11: 660 | I11: 660
B12: Carlota | G12: 874 | I12: 874
B13: Quad | C13: 891 | I13: 891
B14: Sunset | C14: 210 | E14: 672 | I14: 882
B15: Sunshine | E15: 399 | I15: 399
A16: MidWest Total | C16: 1101 | E16: 1071 | G16: 1534 | I16: 3706
A17: South | B17: Bellen | C17: 506 | D17: 1122 | F17: 1298 | I17: 2926
B18: Quad | E18: 1485 | F18: 1620 | I18: 3105
B19: Sunset | E19: 147 | F19: 987 | I19: 1134
B20: Sunshine | E20: 2242 | G20: 1140 | I20: 3382
A21: South Total | C21: 506 | D21: 1122 | E21: 3874 | F21: 3905 | G21: 1140 | I21: 10547
A22: West | B22: Bellen | E22: 242 | G22: 1144 | I22: 1386
B23: Carlota | C23: 1127 | D23: 437 | I23: 1564
B24: Quad | F24: 1512 | I24: 1512
B25: Sunset | H25: 1260 | I25: 1260
B26: Sunshine | C26: 741 | I26: 741
A27: West Total | C27: 1868 | D27: 437 | E27: 242 | F27: 1512 | G27: 1144 | H27: 1260 | I27: 6463
A28: Grand Total | C28: 6021 | D28: 2111 | E28: 6588 | F28: 7626 | G28: 3818 | H28: 2531 | I28: 28695

Sheet WT
A1: Customer | B1: WT
A3: Sum of Sales | C3: SalesRep
A4: Region | B4: Product | C4: Chin | D4: Franks | E4: Gault | F4: Pham | G4: Sioux | H4: Smith | I4: Grand Total
A5: East | B5: Bellen | G5: 1496 | I5: 1496
B6: Quad | C6: 999 | G6: 1296 | I6: 2295
B7: Sunset | E7: 546 | I7: 546
B8: Sunshine | D8: 950 | G8: 798 | H8: 171 | I8: 1919
A9: East Total | C9: 999 | D9: 950 | E9: 546 | G9: 3590 | H9: 171 | I9: 6256
A10: MidWest | B10: Bellen | F10: 286 | H10: 1628 | I10: 1914
B11: Quad | D11: 1242 | E11: 783 | I11: 2025
B12: Sunset | D12: 798 | H12: 357 | I12: 1155
B13: Sunshine | C13: 456 | E13: 437 | G13: 114 | H13: 266 | I13: 1273
A14: MidWest Total | C14: 456 | D14: 2040 | E14: 1220 | F14: 286 | G14: 114 | H14: 2251 | I14: 6367
A15: South | B15: Bellen | G15: 946 | I15: 946
B16: Carlota | D16: 1288 | E16: 2369 | H16: 230 | I16: 3887
B17: Quad | E17: 1620 | I17: 1620
B18: Sunset | C18: 1932 | I18: 1932
B19: Sunshine | D19: 551 | E19: 627 | I19: 1178
A20: South Total | C20: 1932 | D20: 1839 | E20: 4616 | G20: 946 | H20: 230 | I20: 9563
A21: West | B21: Bellen | E21: 1056 | G21: 1606 | H21: 2024 | I21: 4686
B22: Carlota | D22: 1196 | H22: 1058 | I22: 2254
B23: Quad | D23: 621 | I23: 621
B24: Sunset | G24: 294 | I24: 294
B25: Sunshine | E25: 1140 | I25: 1140
A26: West Total | D26: 1817 | E26: 2196 | G26: 1900 | H26: 3082 | I26: 8995
A27: Grand Total | C27: 3387 | D27: 6646 | E27: 8578 | F27: 286 | G27: 6550 | H27: 5734 | I27: 31181

Sheet YTR
A1: Customer | B1: YTR
A3: Sum of Sales | C3: SalesRep
A4: Region | B4: Product | C4: Chin | D4: Franks | E4: Gault | F4: Pham | G4: Sioux | H4: Smith | I4: Grand Total
A5: East | B5: Bellen | G5: 858 | I5: 858
B6: Carlota | G6: 1150 | I6: 1150
B7: Quad | H7: 3321 | I7: 3321
B8: Sunset | G8: 567 | H8: 2142 | I8: 2709
B9: Sunshine | H9: 893 | I9: 893
A10: East Total | G10: 2575 | H10: 6356 | I10: 8931
A11: MidWest | B11: Sunset | E11: 1008 | H11: 357 | I11: 1365
B12: Sunshine | D12: 513 | I12: 513
A13: MidWest Total | D13: 513 | E13: 1008 | H13: 357 | I13: 1878
A14: South | B14: Bellen | D14: 132 | F14: 462 | H14: 1342 | I14: 1936
B15: Carlota | C15: 989 | I15: 989
B16: Quad | C16: 3051 | I16: 3051
B17: Sunset | E17: 1176 | I17: 1176
B18: Sunshine | C18: 361 | F18: 608 | G18: 741 | I18: 1710
A19: South Total | C19: 4401 | D19: 132 | E19: 1176 | F19: 1070 | G19: 741 | H19: 1342 | I19: 8862
A20: West | B20: Bellen | D20: 1254 | E20: 572 | F20: 220 | H20: 2508 | I20: 4554
B21: Quad | D21: 1566 | E21: 1755 | I21: 3321
B22: Sunset | F22: 588 | H22: 1176 | I22: 1764
B23: Sunshine | E23: 931 | I23: 931
A24: West Total | D24: 2820 | E24: 3258 | F24: 808 | H24: 3684 | I24: 10570
A25: Grand Total | C25: 4401 | D25: 3465 | E25: 5442 | F25: 1878 | G25: 3316 | H25: 11739 | I25: 30241

Sheet ZAT
A1: Customer | B1: ZAT
A3: Sum of Sales | C3: SalesRep
A4: Region | B4: Product | C4: Chin | D4: Franks | E4: Gault | F4: Pham | G4: Sioux | H4: Smith | I4: Grand Total
A5: East | B5: Carlota | E5: 1288 | F5: 1311 | H5: 2553 | I5: 5152
B6: Quad | C6: 702 | G6: 945 | I6: 1647
B7: Sunset | D7: 567 | I7: 567
B8: Sunshine | F8: 874 | I8: 874
A9: East Total | C9: 702 | D9: 567 | E9: 1288 | F9: 2185 | G9: 945 | H9: 2553 | I9: 8240
A10: MidWest | B10: Bellen | G10: 132 | I10: 132
B11: Carlota | C11: 506 | D11: 897 | E11: 621 | F11: 690 | I11: 2714
B12: Sunset | D12: 567 | H12: 525 | I12: 1092
A13: MidWest Total | C13: 506 | D13: 1464 | E13: 621 | F13: 690 | G13: 132 | H13: 525 | I13: 3938
A14: South | B14: Bellen | F14: 1188 | H14: 814 | I14: 2002
B15: Sunset | E15: 483 | G15: 399 | I15: 882
B16: Sunshine | H16: 779 | I16: 779
A17: South Total | E17: 483 | F17: 1188 | G17: 399 | H17: 1593 | I17: 3663
A18: West | B18: Bellen | H18: 1034 | I18: 1034
B19: Carlota | C19: 1265 | E19: 1012 | I19: 2277
B20: Quad | G20: 162 | I20: 162
B21: Sunset | E21: 630 | F21: 147 | I21: 777
B22: Sunshine | G22: 1273 | I22: 1273
A23: West Total | C23: 1265 | E23: 1642 | F23: 147 | G23: 1435 | H23: 1034 | I23: 5523
A24: Grand Total | C24: 2473 | D24: 2031 | E24: 4034 | F24: 4210 | G24: 2911 | H24: 5705 | I24: 21364

Sheet 2ndPivot
A1: Customer | B1: (Multiple Items)
A3: Sum of Sales | C3: SalesRep
A4: Region | B4: Product | C4: Chin | D4: Franks | E4: Gault | F4: Pham | G4: Sioux | H4: Smith | I4: Grand Total
A5: East | B5: Bellen | D5: 506 | E5: 2860 | F5: 880 | I5: 4246
B6: Carlota | E6: 2392 | F6: 575 | G6: 3634 | H6: 184 | I6: 6785
B7: Quad | C7: 1539 | D7: 702 | E7: 756 | G7: 1728 | I7: 4725
B8: Sunset | C8: 1092 | D8: 1344 | E8: 483 | G8: 2310 | H8: 1197 | I8: 6426
B9: Sunshine | E9: 912 | F9: 703 | G9: 741 | H9: 1672 | I9: 4028
A10: East Total | C10: 2631 | D10: 2552 | E10: 7403 | F10: 2158 | G10: 8413 | H10: 3053 | I10: 26210
A11: MidWest | B11: Bellen | D11: 1342 | E11: 1408 | G11: 3278 | I11: 6028
B12: Carlota | C12: 943 | D12: 391 | E12: 943 | F12: 1610 | G12: 506 | H12: 644 | I12: 5037
B13: Quad | C13: 1566 | D13: 1323 | E13: 216 | F13: 1890 | H13: 756 | I13: 5751
B14: Sunset | C14: 1029 | D14: 273 | E14: 252 | G14: 378 | H14: 1323 | I14: 3255
B15: Sunshine | C15: 760 | D15: 285 | E15: 741 | F15: 1976 | H15: 1178 | I15: 4940
A16: MidWest Total | C16: 4298 | D16: 3614 | E16: 3560 | F16: 5476 | G16: 4162 | H16: 3901 | I16: 25011
A17: South | B17: Bellen | C17: 1254 | D17: 220 | F17: 1232 | G17: 814 | H17: 1408 | I17: 4928
B18: Carlota | F18: 2484 | H18: 2047 | I18: 4531
B19: Quad | D19: 378 | F19: 918 | G19: 270 | H19: 756 | I19: 2322
B20: Sunset | C20: 483 | D20: 126 | E20: 399 | G20: 1218 | H20: 1806 | I20: 4032
B21: Sunshine | D21: 817 | G21: 1691 | I21: 2508
A22: South Total | C22: 1737 | D22: 1541 | E22: 399 | F22: 4634 | G22: 3993 | H22: 6017 | I22: 18321
A23: West | B23: Bellen | C23: 418 | E23: 1012 | F23: 1518 | G23: 990 | H23: 1100 | I23: 5038
B24: Carlota | C24: 966 | D24: 1311 | E24: 851 | F24: 1265 | G24: 253 | I24: 4646
B25: Quad | D25: 621 | E25: 891 | F25: 1458 | G25: 3834 | H25: 1593 | I25: 8397
B26: Sunset | C26: 1008 | D26: 231 | E26: 1365 | G26: 525 | H26: 1071 | I26: 4200
B27: Sunshine | C27: 494 | D27: 1026 | E27: 1121 | F27: 1197 | H27: 1216 | I27: 5054
A28: West Total | C28: 2886 | D28: 3189 | E28: 5240 | F28: 5438 | G28: 5602 | H28: 4980 | I28: 27335
A29: Grand Total | C29: 11552 | D29: 10896 | E29: 16602 | F29: 17706 | G29: 22170 | H29: 17951 | I29: 96877

Sheet DatePivot
A3: Sum of Sales | B3: Column Labels
A4: Row Labels | B4: East | C4: MidWest | D4: South | E4: West | F4: Grand Total
A5: Jan | B5: 38438 | C5: 47995 | D5: 49374 | E5: 36487 | F5: 172294
A6: Feb | B6: 37044 | C6: 39134 | D6: 31851 | E6: 34005 | F6: 142034
A7: Mar | B7: 35064 | C7: 38162 | D7: 41283 | E7: 37155 | F7: 151664
A8: Apr | B8: 43693 | C8: 29520 | D8: 40505 | E8: 43495 | F8: 157213
A9: May | B9: 35750 | C9: 39905 | D9: 47170 | E9: 45793 | F9: 168618
A10: Jun | B10: 37706 | C10: 45037 | D10: 46967 | E10: 39288 | F10: 168998
A11: Grand Total | B11: 227695 | C11: 239753 | D11: 257150 | E11: 236223 | F11: 960821

Sheet GroupNumPivot
A1: Region | B1: East
A3: Sales | B3: Count of Product | E3: Row Labels | F3: Count of Product
A4: 0-499 | B4: 90 | E4: 0-100 | F4: 80
A5: 500-999 | B5: 111 | E5: 100-200 | F5: 213
A6: 1000-1499 | B6: 82 | E6: 200-300 | F6: 225
A7: 1500-2000 | B7: 9 | E7: 300-400 | F7: 180
A8: Grand Total | B8: 292 | E8: 400-500 | F8: 211
E9: 500-600 | F9: 150
E10: 600-700 | F10: 91
E11: 700-800 | F11: 26
E12: 800-900 | F12: 35
E13: 900-1000 | F13: 15
E14: Grand Total | F14: 1226

Sheet PivotCalc
A3: Date | B3: Running T. | E3: Sum of Sales | F3: Region | M3: Date | N3: Sum of Sales
A4: Jan | B4: 172294 | E4: Date | F4: East | G4: MidWest | H4: South | I4: West | J4: Grand Total | M4: Jan
A5: Feb | B5: 314328 | E5: Jan | F5: 0.2230954067 | G5: 0.2785645466 | H5: 0.2865683077 | I5: 0.211771739 | J5: 1 | M5: Feb | N5: -0.1756300277
A6: Mar | B6: 465992 | E6: Feb | F6: 0.2608107918 | G6: 0.2755255784 | H6: 0.2242491234 | I6: 0.2394145064 | J6: 1 | M6: Mar | N6: 0.06780066745
A7: Apr | B7: 623205 | E7: Mar | F7: 0.2311952738 | G7: 0.2516220065 | H7: 0.2722003903 | I7: 0.2449823294 | J7: 1 | M7: Apr | N7: 0.03658745648
A8: May | B8: 791823 | E8: Apr | F8: 0.2779223092 | G8: 0.1877707314 | H8: 0.257644088 | I8: 0.2766628714 | J8: 1 | M8: May | N8: 0.07254489133
A9: Jun | B9: 960821 | E9: May | F9: 0.2120176968 | G9: 0.2366591942 | H9: 0.2797447485 | I9: 0.2715783606 | J9: 1 | M9: Jun | N9: 0.002253614679
A10: Grand Total | E10: Jun | F10: 0.2231150665 | G10: 0.266494278 | H10: 0.2779145315 | I10: 0.232476124 | J10: 1 | M10: Grand Total
E11: Grand Total | F11: 0.2369796247 | G11: 0.2495293088 | H11: 0.2676356991 | I11: 0.2458553674 | J11: 1
A12: Date | B12: % Running T.
A13: Jan | B13: 0.1793195611
A14: Feb | B14: 0.3271452227 | E14: Row Labels | F14: Sum of Sales | G14: Average of Sales2 | H14: Max of Sales3
A15: Mar | B15: 0.4849935628 | E15: East | F15: 227695 | G15: 779.7773973 | H15: 1728
A16: Apr | B16: 0.6486171722 | E16: MidWest | F16: 239753 | G16: 788.6611842 | H16: 1755
A17: May | B17: 0.8241108385 | E17: South | F17: 257150 | G17: 796.130031 | H17: 1755
A18: Jun | B18: 1 | E18: West | F18: 236223 | G18: 769.4560261 | H18: 1755
A19: Grand Total | E19: Grand Total | F19: 960821 | G19: 783.7039152 | H19: 1755

Sheet NewCache
A3: Row Labels | B3: Sum of Sales
A4: 2013-01-01 | B4: 3475
A5: 2013-01-02 | B5: 6263
A6: 2013-01-03 | B6: 5641
A7: 2013-01-04 | B7: 7253
A8: 2013-01-05 | B8: 2701
A9: 2013-01-06 | B9: 3159
A10: 2013-01-07 | B10: 7795
A11: 2013-01-08 | B11: 9204
A12: 2013-01-09 | B12: 11285
A13: 2013-01-10 | B13: 4160
A14: 2013-01-11 | B14: 4421
A15: 2013-01-12 | B15: 5531
A16: 2013-01-13 | B16: 2932
A17: 2013-01-14 | B17: 2430
A18: 2013-01-15 | B18: 3423
A19: 2013-01-16 | B19: 4849
A20: 2013-01-17 | B20: 7530
A21: 2013-01-18 | B21: 6626
A22: 2013-01-19 | B22: 6179
A23: 2013-01-20 | B23: 4701
A24: 2013-01-21 | B24: 4976
A25: 2013-01-22 | B25: 7843
A26: 2013-01-23 | B26: 6853
A27: 2013-01-24 | B27: 4981
A28: 2013-01-25 | B28: 5453
A29: 2013-01-26 | B29: 10113
A30: 2013-01-27 | B30: 4462
A31: 2013-01-28 | B31: 5002
A32: 2013-01-29 | B32: 5094
A33: 2013-01-30 | B33: 5204
A34: 2013-01-31 | B34: 2755
A35: 2013-02-01 | B35: 3437
A36: 2013-02-02 | B36: 4915
A37: 2013-02-03 | B37: 2760
A38: 2013-02-04 | B38: 3875
A39: 2013-02-05 | B39: 2178
A40: 2013-02-06 | B40: 9519
A41: 2013-02-07 | B41: 7557
A42: 2013-02-08 | B42: 10459
A43: 2013-02-09 | B43: 11447
A44: 2013-02-10 | B44: 3459
A45: 2013-02-11 | B45: 1176
A46: 2013-02-12 | B46: 2549
A47: 2013-02-13 | B47: 4809
A48: 2013-02-14 | B48: 8032
A49: 2013-02-15 | B49: 4738
A50: 2013-02-16 | B50: 6137
A51: 2013-02-17 | B51: 3842
A52: 2013-02-18 | B52: 9232
A53: 2013-02-19 | B53: 9237
A54: 2013-02-20 | B54: 8193
A55: 2013-02-21 | B55: 2764
A56: 2013-02-22 | B56: 3340
A57: 2013-02-23 | B57: 6259
A58: 2013-02-24 | B58: 2765
A59: 2013-02-25 | B59: 2755
A60: 2013-02-26 | B60: 638
A61: 2013-02-27 | B61: 3412
A62: 2013-02-28 | B62: 2550
A63: 2013-03-01 | B63: 6756
A64: 2013-03-02 | B64: 4836
A65: 2013-03-03 | B65: 4690
A66: 2013-03-04 | B66: 3063
A67: 2013-03-05 | B67: 3386
A68: 2013-03-06 | B68: 3714
A69: 2013-03-07 | B69: 3736
A70: 2013-03-08 | B70: 4193
A71: 2013-03-09 | B71: 4091
A72: 2013-03-10 | B72: 3644
A73: 2013-03-11 | B73: 1463
A74: 2013-03-12 | B74: 4263
A75: 2013-03-13 | B75: 7642
A76: 2013-03-14 | B76: 6298
A77: 2013-03-15 | B77: 9511
A78: 2013-03-16 | B78: 4238
A79: 2013-03-17 | B79: 7699
A80: 2013-03-18 | B80: 5652
A81: 2013-03-19 | B81: 4185
A82: 2013-03-20 | B82: 5526
A83: 2013-03-21 | B83: 2925
A84: 2013-03-22 | B84: 6807
A85: 2013-03-23 | B85: 6212
A86: 2013-03-24 | B86: 8556
A87: 2013-03-25 | B87: 2650
A88: 2013-03-26 | B88: 2635
A89: 2013-03-27 | B89: 4590
A90: 2013-03-28 | B90: 4308
A91: 2013-03-29 | B91: 1565
A92: 2013-03-30 | B92: 9035
A93: 2013-03-31 | B93: 3795
A94: 2013-04-01 | B94: 4075
A95: 2013-04-02 | B95: 5960
A96: 2013-04-03 | B96: 2502
A97: 2013-04-04 | B97: 5533
A98: 2013-04-05 | B98: 5121
A99: 2013-04-06 | B99: 9765
A100: 2013-04-07 | B100: 6249
A101: 2013-04-08 | B101: 6100
A102: 2013-04-09 | B102: 3454
A103: 2013-04-10 | B103: 4133
A104: 2013-04-11 | B104: 5764
A105: 2013-04-12 | B105: 6853
A106: 2013-04-13 | B106: 4897
A107: 2013-04-14 | B107: 3373
A108: 2013-04-15 | B108: 2659
A109: 2013-04-16 | B109: 5606
A110: 2013-04-17 | B110: 8263
A111: 2013-04-18 | B111: 4923
A112: 2013-04-19 | B112: 4264
A113: 2013-04-20 | B113: 7711
A114: 2013-04-21 | B114: 2173
A115: 2013-04-22 | B115: 3260
A116: 2013-04-23 | B116: 6545
A117: 2013-04-24 | B117: 4321
A118: 2013-04-25 | B118: 7514
A119: 2013-04-26 | B119: 8221
A120: 2013-04-27 | B120: 2210
A121: 2013-04-28 | B121: 1339
A122: 2013-04-29 | B122: 5237
A123: 2013-04-30 | B123: 9188
A124: 2013-05-01 | B124: 5543
A125: 2013-05-02 | B125: 6617
A126: 2013-05-03 | B126: 3051
A127: 2013-05-04 | B127: 2871
A128: 2013-05-05 | B128: 5064
A129: 2013-05-06 | B129: 7772
A130: 2013-05-07 | B130: 6912
A131: 2013-05-08 | B131: 3379
A132: 2013-05-09 | B132: 8018
A133: 2013-05-10 | B133: 2226
A134: 2013-05-11 | B134: 2364
A135: 2013-05-12 | B135: 5117
A136: 2013-05-13 | B136: 9803
A137: 2013-05-14 | B137: 2440
A138: 2013-05-15 | B138: 11209
A139: 2013-05-16 | B139: 2162
A140: 2013-05-17 | B140: 4970
A141: 2013-05-18 | B141: 5265
A142: 2013-05-19 | B142: 9043
A143: 2013-05-20 | B143: 9883
A144: 2013-05-21 | B144: 1506
A145: 2013-05-22 | B145: 7438
A146: 2013-05-23 | B146: 5847
A147: 2013-05-24 | B147: 3285
A148: 2013-05-25 | B148: 10738
A149: 2013-05-26 | B149: 5094
A150: 2013-05-27 | B150: 2713
A151: 2013-05-28 | B151: 1522
A152: 2013-05-29 | B152: 7268
A153: 2013-05-30 | B153: 6313
A154: 2013-05-31 | B154: 3185
A155: 2013-06-01 | B155: 3804
A156: 2013-06-02 | B156: 5747
A157: 2013-06-03 | B157: 5487
A158: 2013-06-04 | B158: 7076
A159: 2013-06-05 | B159: 11168
A160: 2013-06-06 | B160: 4493
A161: 2013-06-07 | B161: 2116
A162: 2013-06-08 | B162: 4409
A163: 2013-06-09 | B163: 3262
A164: 2013-06-10 | B164: 2749
A165: 2013-06-11 | B165: 8267
A166: 2013-06-12 | B166: 7289
A167: 2013-06-13 | B167: 4771
A168: 2013-06-14 | B168: 5858
A169: 2013-06-15 | B169: 2638
A170: 2013-06-16 | B170: 5894
A171: 2013-06-17 | B171: 8686
A172: 2013-06-18 | B172: 11695
A173: 2013-06-19 | B173: 11084
A174: 2013-06-20 | B174: 8296
A175: 2013-06-21 | B175: 3463
A176: 2013-06-22 | B176: 5566
A177: 2013-06-23 | B177: 5622
A178: 2013-06-24 | B178: 3534
A179: 2013-06-25 | B179: 3856
A180: 2013-06-26 | B180: 5873
A181: 2013-06-27 | B181: 6972
A182: 2013-06-28 | B182: 8251
A183: 2013-06-29 | B183: 1072
A184: Grand Total | B184: 960821

Sheet EmptyInNum
A3: Row Labels | B3: Sum of Sales
A4: Jan | B4: 172294
A5: Feb | B5: 142034
A6: Mar | B6: 151664
A7: Apr | B7: 157213
A8: May | B8: 168618
A9: Jun | B9: 168998
A10: Grand Total | B10: 960821

Sheet PTData
A1: Date | B1: Product | C1: Region | D1: SalesRep | E1: Customer | F1: Units | G1: Sales | H1: COGS | J1: Sum of Units | Q1: Sum of Units
A2: 2013-01-23 | B2: Quad | C2: West | D2: Sioux | E2: DFR | F2: 23 | G2: 621 | H2: 333.5 | J2: SalesRep/Region | K2: East | L2: MidWest | M2: South | N2: West | Q2: Month/Region | R2: East | S2: MidWest | T2: South | U2: West
B3: Sunshine | C3: West | D3: Pham | E3: TTT | F3: 65 | H3: 520 | J3: Chin | K3: =SUMIFS($F$2:$F$1227,$D$2:$D$1227,$J3,$C$2:$C$1227,K$2) -> 1481 | L3: 1846 | M3: 1795 | N3: 1515 | Q3: Jan | R3: =SUMIFS($F$2:$F$1227,$C$2:$C$1227,R$2,$A$2:$A$1227,">=1"&$Q3&2013,$A$2:$A$1227,"<="&EOMONTH("1"&$Q3&2013,0)) -> 1689 | S3: 2068 | T3: 2197 | U3: 1582
A4: 6/19/13 | B4: Sunset | C4: West | D4: Pham | E4: FM | F4: 47 | G4: 987 | H4: 434.75 | J4: Franks | K4: 1730 | L4: 1768 | M4: 1772 | N4: 1596 | Q4: Feb | R4: 1620 | S4: 1794 | T4: 1476 | U4: 1548
A5: 2013-06-13 | B5: Quad | C5: MidWest | D5: Smith | E5: PLOT | F5: 24 | G5: 648 | H5: 348 | J5: Gault | K5: 1768 | L5: 1941 | M5: 1732 | N5: 1934 | Q5: Mar | R5: 1583 | S5: 1737 | T5: 1791 | U5: 1652
A6: 2013-04-06 | B6: Sunshine | C6: South | D6: Pham | E6: JAQ | F6: 58 | G6: 1102 | H6: 464 | J6: Pham | K6: 1650 | L6: 1344 | M6: 2173 | N6: 1872 | Q6: Apr | R6: 1974 | S6: 1326 | T6: 1875 | U6: 1962
A7: 2013-03-02 | B7: Quad | C7: West | D7: Franks | E7: ET | F7: 22 | G7: 594 | H7: 319 | J7: Sioux | K7: 1680 | L7: 1896 | M7: 1900 | N7: 1901 | Q7: May | R7: 1625 | S7: 1766 | T7: 2079 | U7: 2039
A8: 2013-03-24 | B8: Quad | C8: East | D8: Smith | E8: JAQ | F8: 8 | G8: 216 | H8: 116 | J8: Smith | K8: 1875 | L8: 1929 | M8: 2089 | N8: 1782 | Q8: Jun | R8: 1693 | S8: 2033 | T8: 2043 | U8: 1705
A9: 2013-02-27 | B9: Sunshine | C9: South | D9: Smith | E9: ET | F9: 29 | G9: 551 | H9: 232
A10: 2013-06-19 | B10: Carlota | C10: West | D10: Chin | E10: ZAT | F10: 55 | G10: 1265 | H10: 605 | J10: Sum of Units | K10: Region | Q10: Sum of Units | R10: Region
A11: 2013-05-17 | B11: Carlota | C11: MidWest | D11: Franks | E11: ZAT | F11: 39 | G11: 897 | H11: 429 | J11: SalesRep | K11: East | L11: MidWest | M11: South | N11: West | Q11: Date | R11: East | S11: MidWest | T11: South | U11: West
A12: 2013-04-11 | B12: Sunshine | C12: MidWest | D12: Pham | E12: DFGH | F12: 49 | G12: 931 | H12: 392 | J12: Chin | K12: 1481 | L12: 1846 | M12: 1795 | N12: 1515 | Q12: Jan | R12: 1689 | S12: 2068 | T12: 2197 | U12: 1647
A13: 2013-02-15 | B13: Carlota | C13: MidWest | D13: Pham | E13: KBTB | F13: 63 | G13: 1449 | H13: 693 | J13: Franks | K13: 1730 | L13: 1768 | M13: 1772 | N13: 1596 | Q13: Feb | R13: 1620 | S13: 1794 | T13: 1476 | U13: 1548
A14: 2013-02-20 | B14: Quad | C14: South | D14: Smith | E14: ITTW | F14: 19 | G14: 513 | H14: 275.5 | J14: Gault | K14: 1768 | L14: 1941 | M14: 1732 | N14: 1934 | Q14: Mar | R14: 1583 | S14: 1737 | T14: 1791 | U14: 1652
A15: 2013-01-09 | B15: Quad | C15: MidWest | D15: Chin | E15: LOP | F15: 40 | G15: 1080 | H15: 580 | J15: Pham | K15: 1650 | L15: 1344 | M15: 2173 | N15: 1872 | Q15: Apr | R15: 1974 | S15: 1326 | T15: 1875 | U15: 1962
A16: 2013-04-04 | B16: Quad | C16: East | D16: Smith | E16: YTR | F16: 60 | G16: 1620 | H16: 870 | J16: Sioux | K16: 1680 | L16: 1896 | M16: 1900 | N16: 1901 | Q16: May | R16: 1625 | S16: 1766 | T16: 2079 | U16: 2039
A17: 2013-04-17 | B17: Sunset | C17: South | D17: Chin | E17: WT | F17: 24 | G17: 504 | H17: 222 | J17: Smith | K17: 1875 | L17: 1929 | M17: 2089 | N17: 1782 | Q17: Jun | R17: 1693 | S17: 2033 | T17: 2043 | U17: 1752
A18: 2013-01-22 | B18: Bellen | C18: West | D18: Pham | E18: BBT | F18: 10 | G18: 220 | H18: 100
A19: 2013-02-09 | B19: Sunshine | C19: East | D19: Smith | E19: GRR | F19: 26 | G19: 494 | H19: 208
A20: 2013-05-15 | B20: Sunshine | C20: West | D20: Pham | E20: WFMI | F20: 65 | G20: 1235 | H20: 520
A21: 2013-05-19 | B21: Carlota | C21: MidWest | D21: Sioux | E21: TTT | F21: 43 | G21: 989 | H21: 473
A22: 2013-05-07 | B22: Sunshine | C22: South | D22: Gault | E22: AA | F22: 20 | G22: 380 | H22: 160
A23: 2013-04-20 | B23: Bellen | C23: West | D23: Gault | E23: WFMI | F23: 39 | G23: 858 | H23: 390
A24: 2013-04-09 | B24: Sunset | C24: MidWest | D24: Gault | E24: ET | F24: 33 | G24: 693 | H24: 305.25
A25: 2013-05-05 | B25: Sunshine | C25: East | D25: Chin | E25: HII | F25: 6 | G25: 114 | H25: 48
A26: 2013-05-05 | B26: Carlota | C26: East | D26: Chin | E26: KPSA | F26: 33 | G26: 759 | H26: 363
A27: 2013-03-14 | B27: Bellen | C27: MidWest | D27: Pham | E27: TTT | F27: 34 | G27: 748 | H27: 340
A28: 2013-01-11 | B28: Bellen | C28: MidWest | D28: Smith | E28: KPSA | F28: 23 | G28: 506 | H28: 230 | K28: Chin | L28: Franks | M28: Gault | N28: Pham | O28: Sioux | P28: Smith
A29: 2013-05-13 | B29: Carlota | C29: MidWest | D29: Gault | E29: QT | F29: 6 | G29: 138 | H29: 66 | J29: East
A30: 2013-04-23 | B30: Sunset | C30: South | D30: Smith | E30: FM | F30: 15 | G30: 315 | H30: 138.75 | J30: Bellen
A31: 2013-03-22 | B31: Carlota | C31: South | D31: Pham | E31: ITTW | F31: 27 | G31: 621 | H31: 297 | J31: Carlota
A32: 2013-01-18 | B32: Sunset | C32: South | D32: Pham | E32: DFGH | F32: 36 | G32: 756 | H32: 333 | J32: Quad
A33: 2013-06-24 | B33: Bellen | C33: MidWest | D33: Gault | E33: SFWK | F33: 64 | G33: 1408 | H33: 640 | J33: Sunset
A34: 2013-02-07 | B34: Sunset | C34: MidWest | D34: Gault | E34: JAQ | F34: 44 | G34: 924 | H34: 407 | J34: Sunshine
A35: 2013-03-19 | B35: Carlota | C35: South | D35: Pham | E35: TTT | F35: 54 | G35: 1242 | H35: 594 | J35: MidWest
A36: 2013-06-03 | B36: Quad | C36: MidWest | D36: Smith | E36: HII | F36: 21 | G36: 567 | H36: 304.5 | J36: Bellen
A37: 2013-03-26 | B37: Sunset | C37: East | D37: Franks | E37: DFGH | F37: 40 | G37: 840 | H37: 370 | J37: Carlota
A38: 2013-04-26 | B38: Carlota | C38: South | D38: Smith | E38: AST | F38: 22 | G38: 506 | H38: 242 | J38: Quad
A39: 2013-04-26 | B39: Sunset | C39: MidWest | D39: Gault | E39: MNGD | F39: 51 | G39: 1071 | H39: 471.75 | J39: Sunset
A40: 2013-02-04 | B40: Quad | C40: West | D40: Sioux | E40: DFGH | F40: 25 | G40: 675 | H40: 362.5 | J40: Sunshine
A41: 2013-06-05 | B41: Sunshine | C41: East | D41: Gault | E41: HII | F41: 63 | G41: 1197 | H41: 504
A42: 2013-01-19 | B42: Bellen | C42: East | D42: Pham | E42: ITTW | F42: 40 | G42: 880 | H42: 400
A43: 2013-05-20 | B43: Bellen | C43: West | D43: Smith | E43: ZAT | F43: 47 | G43: 1034 | H43: 470
A44: 2013-06-28 | B44: Sunset | C44: East | D44: Smith | E44: KBTB | F44: 12 | G44: 252 | H44: 111
A45: 2013-06-02 | B45: Sunshine | C45: MidWest | D45: Chin | E45: WT | F45: 24 | G45: 456 | H45: 192
A46: 2013-01-01 | B46: Quad | C46: West | D46: Sioux | E46: EPP | F46: 33 | G46: 891 | H46: 478.5
A47: 2013-02-19 | B47: Bellen | C47: South | D47: Gault | E47: EPP | F47: 39 | G47: 858 | H47: 390
A48: 2013-01-03 | B48: Sunshine | C48: MidWest | D48: Smith | E48: LOP | F48: 51 | G48: 969 | H48: 408
A49: 2013-01-22 | B49: Carlota | C49: MidWest | D49: Franks | E49: DFGH | F49: 29 | G49: 667 | H49: 319
A50: 2013-06-25 | B50: Bellen | C50: South | D50: Franks | E50: WFMI | F50: 33 | G50: 726 | H50: 330
A51: 2013-06-05 | B51: Carlota | C51: South | D51: Smith | E51: SFWK | F51: 30 | G51: 690 | H51: 330
A52: 2013-01-28 | B52: Sunshine | C52: South | D52: Gault | E52: HII | F52: 59 | G52: 1121 | H52: 472
A53: 2013-02-16 | B53: Quad | C53: East | D53: Franks | E53: GRR | F53: 26 | G53: 702 | H53: 377
A54: 2013-05-03 | B54: Quad | C54: West | D54: Pham | E54: ITTW | F54: 11 | G54: 297 | H54: 159.5
A55: 2013-05-19 | B55: Sunshine | C55: West | D55: Gault | E55: DDH | F55: 13 | G55: 247 | H55: 104
A56: 2013-05-08 | B56: Sunset | C56: MidWest | D56: Franks | E56: JAQ | F56: 58 | G56: 1218 | H56: 536.5
A57: 2013-05-07 | B57: Bellen | C57: South | D57: Franks | E57: WSD | F57: 25 | G57: 550 | H57: 250
A58: 2013-06-26 | B58: Quad | C58: West | D58: Chin | E58: DFGH | F58: 55 | G58: 1485 | H58: 797.5
A59: 2013-04-25 | B59: Sunshine | C59: South | D59: Pham | E59: KBTB | F59: 8 | G59: 152 | H59: 64
A60: 2013-03-02 | B60: Quad | C60: East | D60: Pham | E60: DDH | F60: 8 | G60: 216 | H60: 116
A61: 2013-04-11 | B61: Bellen | C61: South | D61: Chin | E61: ITTW | F61: 13 | G61: 286 | H61: 130
A62: 2013-03-20 | B62: Sunset | C62: West | D62: Pham | E62: GRR | F62: 31 | G62: 651 | H62: 286.75
A63: 2013-02-02 | B63: Sunshine | C63: South | D63: Sioux | E63: WSD | F63: 60 | G63: 1140 | H63: 480
A64: 2013-06-26 | B64: Bellen | C64: MidWest | D64: Smith | E64: WT | F64: 9 | G64: 198 | H64: 90
A65: 2013-01-27 | B65: Bellen | C65: West | D65: Gault | E65: AST | F65: 12 | G65: 264 | H65: 120
A66: 2013-03-12 | B66: Sunset | C66: East | D66: Pham | E66: AA | F66: 65 | G66: 1365 | H66: 601.25
A67: 2013-02-18 | B67: Sunset | C67: South | D67: Pham | E67: AA | F67: 50 | G67: 1050 | H67: 462.5
A68: 2013-05-29 | B68: Sunset | C68: East | D68: Sioux | E68: ITTW | F68: 57 | G68: 1197 | H68: 527.25
A69: 2013-06-05 | B69: Bellen | C69: West | D69: Smith | E69: YTR | F69: 65 | G69: 1430 | H69: 650
A70: 2013-06-18 | B70: Bellen | C70: South | D70: Gault | E70: TTT | F70: 40 | G70: 880 | H70: 400
A71: 2013-04-01 | B71: Sunshine | C71: South | D71: Gault | E71: HII | F71: 62 | G71: 1178 | H71: 496
A72: 2013-04-18 | B72: Sunset | C72: South | D72: Sioux | E72: FRED | F72: 47 | G72: 987 | H72: 434.75
A73: 2013-03-12 | B73: Quad | C73: East | D73: Chin | E73: TTT | F73: 18 | G73: 486 | H73: 261
A74: 2013-04-30 | B74: Bellen | C74: West | D74: Pham | E74: JAQ | F74: 63 | G74: 1386 | H74: 630
A75: 2013-04-02 | B75: Sunshine | C75: West | D75: Smith | E75: PCC | F75: 42 | G75: 798 | H75: 336
A76: 2013-06-25 | B76: Bellen | C76: East | D76: Franks | E76: ITTW | F76: 12 | G76: 264 | H76: 120
A77: 2013-04-08 | B77: Sunshine | C77: South | D77: Chin | E77: YTR | F77: 19 | G77: 361 | H77: 152
A78: 2013-05-07 | B78: Sunset | C78: South | D78: Smith | E78: ITTW | F78: 14 | G78: 294 | H78: 129.5
A79: 2013-01-25 | B79: Carlota | C79: West | D79: Chin | E79: ITTW | F79: 7 | G79: 161 | H79: 77
A80: 2013-02-16 | B80: Sunshine | C80: West | D80: Pham | E80: EPP | F80: 51 | G80: 969 | H80: 408
A81: 2013-02-22 | B81: Carlota | C81: MidWest | D81: Franks | E81: KPSA | F81: 25 | G81: 575 | H81: 275
A82: 2013-03-01 | B82: Bellen | C82: East | D82: Franks | E82: DFGH | F82: 49 | G82: 1078 | H82: 490
A83: 2013-04-29 | B83: Sunset | C83: West | D83: Gault | E83: FRED | F83: 36 | G83: 756 | H83: 333
A84: 2013-05-28 | B84: Carlota | C84: MidWest | D84: Franks | E84: KBTB | F84: 10 | G84: 230 | H84: 110
A85: 2013-04-23 | B85: Sunset | C85: East | D85: Chin | E85: TRU | F85: 6 | G85: 126 | H85: 55.5
A86: 2013-04-16 | B86: Carlota | C86: MidWest | D86: Sioux | E86: HII | F86: 55 | G86: 1265 | H86: 605
A87: 2013-01-25 | B87: Quad | C87: East | D87: Pham | E87: DFR | F87: 31 | G87: 837 | H87: 449.5
A88: 2013-05-18 | B88: Bellen | C88: South | D88: Pham | E88: KBTB | F88: 43 | G88: 946 | H88: 430
A89: 2013-04-19 | B89: Sunshine | C89: West | D89: Pham | E89: KBTB | F89: 17 | G89: 323 | H89: 136
A90: 2013-01-24 | B90: Carlota | C90: South | D90: Franks | E90: EPP | F90: 38 | G90: 874 | H90: 418
A91: 2013-05-31 | B91: Sunshine | C91: East | D91: Sioux | E91: WT | F91: 42 | G91: 798 | H91: 336
A92: 2013-02-04 | B92: Sunset | C92: MidWest | D92: Smith | E92: LOP | F92: 6 | G92: 126 | H92: 55.5
A93: 2013-01-08 | B93: Quad | C93: East | D93: Smith | E93: GRR | F93: 23 | G93: 621 | H93: 333.5
A94: 2013-02-17 | B94: Bellen | C94: West | D94: Smith | E94: WT | F94: 41 | G94: 902 | H94: 410
A95: 2013-05-06 | B95: Carlota | C95: East | D95: Pham | E95: DFR | F95: 41 | G95: 943 | H95: 451
A96: 2013-03-05 | B96: Quad | C96: South | D96: Franks | E96: QT | F96: 14 | G96: 378 | H96: 203
A97: 2013-01-29 | B97: Carlota | C97: West | D97: Smith | E97: ITW | F97: 40 | G97: 920 | H97: 440
A98: 2013-03-31 | B98: Sunshine | C98: East | D98: Gault | E98: KBTB | F98: 36 | G98: 684 | H98: 288
A99: 2013-01-04 | B99: Carlota | C99: South | D99: Chin | E99: YTR | F99: 43 | G99: 989 | H99: 473
A100: 2013-03-24 | B100: Carlota | C100: MidWest | D100: Chin | E100: TRU | F100: 18 | G100: 414 | H100: 198
A101: 2013-02-19 | B101: Sunset | C101: South | D101: Pham | E101: QT | F101: 60 | G101: 1260 | H101: 555
A102: 2013-02-01 | B102: Quad | C102: West | D102: Smith | E102: HHH | F102: 23 | G102: 621 | H102: 333.5
A103: 2013-06-12 | B103: Bellen | C103: West | D103: Chin | E103: GRR | F103: 40 | G103: 880 | H103: 400
A104: 2013-05-10 | B104: Quad | C104: West | D104: Franks | E104: HHH | F104: 23 | G104: 621 | H104: 333.5
A105: 2013-06-08 | B105: Sunshine | C105: West | D105: Chin | E105: KPSA | F105: 38 | G105: 722 | H105: 304
A106: 2013-05-07 | B106: Quad | C106: MidWest | D106: Pham | E106: HHH | F106: 48 | G106: 1296 | H106: 696
A107: 2013-04-26 | B107: Carlota | C107: East | D107: Sioux | E107: YTR | F107: 36 | G107: 828 | H107: 396
A108: 2013-05-26 | B108: Sunshine | C108: West | D108: Franks | E108: DFR | F108: 26 | G108: 494 | H108: 208
A109: 2013-05-09 | B109: Bellen | C109: West | D109: Chin | E109: TRU | F109: 19 | G109: 418 | H109: 190
A110: 2013-04-03 | B110: Quad | C110: MidWest | D110: Franks | E110: FM | F110: 39 | G110: 1053 | H110: 565.5
A111: 2013-03-22 | B111: Sunshine | C111: South | D111: Sioux | E111: TRU | F111: 28 | G111: 532 | H111: 224
A112: 2013-05-03 | B112: Carlota | C112: South | D112: Smith | E112: ITTW | F112: 17 | G112: 391 | H112: 187
A113: 2013-01-23 | B113: Sunshine | C113: East | D113: Chin | E113: WSD | F113: 39 | G113: 741 | H113: 312
A114: 2013-01-18 | B114: Sunshine | C114: MidWest | D114: Gault | E114: ITW | F114: 58 | G114: 1102 | H114: 464
A115: 2013-06-17 | B115: Bellen | C115: South | D115: Gault | E115: TTT | F115: 38 | G115: 836 | H115: 380
A116: 2013-01-17 | B116: Carlota | C116: South | D116: Franks | E116: PLOT | F116: 34 | G116: 782 | H116: 374
A117: 2013-05-23 | B117: Bellen | C117: East | D117: Gault | E117: ET | F117: 59 | G117: 1298 | H117: 590
A118: 2013-01-20 | B118: Quad | C118: South | D118: Gault | E118: TTT | F118: 28 | G118: 756 | H118: 406
A119: 2013-04-07 | B119: Sunshine | C119: South | D119: Sioux | E119: QT | F119: 62 | G119: 1178 | H119: 496
A120: 2013-05-25 | B120: Quad | C120: West | D120: Gault | E120: YTR | F120: 65 | G120: 1755 | H120: 942.5
A121: 2013-05-14 | B121: Sunset | C121: West | D121: Pham | E121: BBT | F121: 6 | G121: 126 | H121: 55.5
A122: 2013-06-07 | B122: Bellen | C122: MidWest | D122: Smith | E122: BBT | F122: 34 | G122: 748 | H122: 340
A123: 2013-05-13 | B123: Carlota | C123: West | D123: Franks | E123: DFR | F123: 60 | G123: 1380 | H123: 660
A124: 2013-05-01 | B124: Sunshine | C124: West | D124: Pham | E124: PSA | F124: 50 | G124: 950 | H124: 400
A125: 2013-01-12 | B125: Quad | C125: MidWest | D125: Smith | E125: MBG | F125: 40 | G125: 1080 | H125: 580
A126: 2013-05-13 | B126: Sunset | C126: West | D126: Chin | E126: TTT | F126: 24 | G126: 504 | H126: 222
A127: 2013-01-26 | B127: Bellen | C127: MidWest | D127: Sioux | E127: TTT | F127: 65 | G127: 1430 | H127: 650
A128: 2013-02-06 | B128: Quad | C128: East | D128: Franks | E128: FM | F128: 52 | G128: 1404 | H128: 754
A129: 2013-06-06 | B129: Sunshine | C129: West | D129: Gault | E129: WT | F129: 60 | G129: 1140 | H129: 480
A130: 2013-04-12 | B130: Carlota | C130: East | D130: Smith | E130: PCC | F130: 46 | G130: 1058 | H130: 506
A131: 2013-06-02 | B131: Carlota | C131: East | D131: Sioux | E131: SFWK | F131: 41 | G131: 943 | H131: 451
A132: 2013-01-22 | B132: Sunshine | C132: South | D132: Franks | E132: WT | F132: 29 | G132: 551 | H132: 232
A133: 2013-03-14 | B133: Sunshine | C133: East | D133: Smith | E133: HHH | F133: 65 | G133: 1235 | H133: 520
A134: 2013-05-28 | B134: Carlota | C134: East | D134: Pham | E134: HII | F134: 37 | G134: 851 | H134: 407
A135: 2013-03-24 | B135: Sunshine | C135: MidWest | D135: Smith | E135: WT | F135: 14 | G135: 266 | H135: 112
A136: 2013-02-01 | B136: Bellen | C136: East | D136: Pham | E136: WFMI | F136: 18 | G136: 396 | H136: 180
A137: 2013-04-14 | B137: Carlota | C137: West | D137: Smith | E137: AA | F137: 44 | G137: 1012 | H137: 484
A138: 2013-03-27 | B138: Bellen | C138: West | D138: Sioux | E138: FRED | F138: 62 | G138: 1364 | H138: 620
A139: 2013-01-16 | B139: Sunshine | C139: MidWest | D139: Gault | E139: WSD | F139: 21 | G139: 399 | H139: 168
A140: 2013-01-23 | B140: Bellen | C140: South | D140: Smith | E140: JAQ | F140: 56 | G140: 1232 | H140: 560
A141: 2013-05-02 | B141: Bellen | C141: MidWest | D141: Gault | E141: BBT | F141: 64 | G141: 1408 | H141: 640
A142: 2013-02-20 | B142: Sunshine | C142: South | D142: Pham | E142: T | F142: 22 | G142: 418 | H142: 176
A143: 2013-05-22 | B143: Sunset | C143: MidWest | D143: Franks | E143: AST | F143: 21 | G143: 441 | H143: 194.25
A144: 2013-02-08 | B144: Sunset | C144: East | D144: Gault | E144: DFGH | F144: 22 | G144: 462 | H144: 203.5
A145: 2013-04-18 | B145: Sunshine | C145: East | D145: Pham | E145: WSD | F145: 40 | G145: 760 | H145: 320
A146: 2013-01-26 | B146: Sunshine | C146: South | D146: Pham | E146: TTT | F146: 24 | G146: 456 | H146: 192
A147: 2013-01-07 | B147: Carlota | C147: MidWest | D147: Sioux | E147: FM | F147: 14 | G147: 322 | H147: 154
A148: 2013-02-19 | B148: Sunshine | C148: West | D148: Pham | E148: FRED | F148: 61 | G148: 1159 | H148: 488
A149: 2013-05-22 | B149: Sunshine | C149: East | D149: Franks | E149: BBT | F149: 12 | G149: 228 | H149: 96
A150: 2013-01-16 | B150: Sunset | C150: East | D150: Pham | E150: BBT | F150: 34 | G150: 714 | H150: 314.5
A151: 2013-02-09 | B151: Quad | C151: MidWest | D151: Franks | E151: DFR | F151: 8 | G151: 216 | H151: 116
A152: 2013-01-15 | B152: Sunshine | C152: MidWest | D152: Franks | E152: AA | F152: 44 | G152: 836 | H152: 352
A153: 2013-03-31 | B153: Sunset | C153: MidWest | D153: Smith | E153: DDH | F153: 25 | G153: 525 | H153: 231.25
A154: 2013-01-25 | B154: Quad | C154: West | D154: Pham | E154: WSD | F154: 56 | G154: 1512 | H154: 812
A155: 2013-03-10 | B155: Carlota | C155: West | D155: Pham | E155: LOP | F155: 13 | G155: 299 | H155: 143
A156: 2013-03-23 | B156: Quad | C156: South | D156: Gault | E156: T | F156: 6 | G156: 162 | H156: 87
A157: 2013-04-08 | B157: Quad | C157: East | D157: Pham | E157: KPSA | F157: 23 | G157: 621 | H157: 333.5
A158: 2013-01-17 | B158: Carlota | C158: West | D158: Smith | E158: TTT | F158: 21 | G158: 483 | H158: 231
A159: 2013-04-06 | B159: Sunshine | C159: East | D159: Chin | E159: ET | F159: 50 | G159: 950 | H159: 400
A160: 2013-06-13 | B160: Carlota | C160: South | D160: Sioux | E160: EPP | F160: 54 | G160: 1242 | H160: 594
A161: 2013-03-16 | B161: Bellen | C161: West | D161: Chin | E161: PCC | F161: 8 | G161: 176 | H161: 80
A162: 2013-06-11 | B162: Sunshine | C162: South | D162: Gault | E162: FRED | F162: 53 | G162: 1007 | H162: 424
A163: 2013-06-03 | B163: Sunset | C163: East | D163: Pham | E163: ET | F163: 55 | G163: 1155 | H163: 508.75
A164: 2013-06-01 | B164: Carlota | C164: West | D164: Chin | E164: ITW | F164: 64 | G164: 1472 | H164: 704
A165: 2013-03-18 | B165: Sunset | C165: East | D165: Sioux | E165: TRU | F165: 53 | G165: 1113 | H165: 490.25
A166: 2013-03-10 | B166: Quad | C166: West | D166: Franks | E166: YTR | F166: 58 | G166: 1566 | H166: 841
A167: 2013-04-01 | B167: Sunset | C167: West | D167: Smith | E167: MNGD | F167: 46 | G167: 966 | H167: 425.5
A168: 2013-04-11 | B168: Bellen | C168: MidWest | D168: Pham | E168: ITW | F168: 19 | G168: 418 | H168: 190
A169: 2013-02-18 | B169: Bellen | C169: South | D169: Pham | E169: TTT | F169: 47 | G169: 1034 | H169: 470
A170: 2013-05-11 | B170: Sunset | C170: West | D170: Smith | E170: KBTB | F170: 13 | G170: 273 | H170: 120.25
A171: 2013-02-06 | B171: Sunshine | C171: West | D171: Pham | E171: PCC | F171: 10 | G171: 190 | H171: 80
A172: 2013-06-18 | B172: Carlota | C172: MidWest | D172: Franks | E172: ET | F172: 65 | G172: 1495 | H172: 715
A173: 2013-06-20 | B173: Sunshine | C173: MidWest | D173: Chin | E173: T | F173: 37 | G173: 703 | H173: 296
A174: 2013-03-30 | B174: Bellen | C174: West | D174: Gault | E174: ET | F174: 45 | G174: 990 | H174: 450
A175: 2013-06-19 | B175: Bellen | C175: South | D175: Franks | E175: AA | F175: 20 | G175: 440 | H175: 200
A176: 2013-02-09 | B176: Quad | C176: South | D176: Franks | E176: AA | F176: 30 | G176: 810 | H176: 435
A177: 2013-02-20 | B177: Bellen | C177: East | D177: Franks | E177: DDH | F177: 58 | G177: 1276 | H177: 580
A178: 2013-01-18 | B178: Carlota | C178: West | D178: Chin | E178: TTT | F178: 16 | G178: 368 | H178: 176
A179: 2013-04-03 | B179: Bellen | C179: MidWest | D179: Gault | E179: MBG | F179: 18 | G179: 396 | H179: 180
A180: 2013-03-17 | B180: Carlota | C180: South | D180: Smith | E180: TRU | F180: 42 | G180: 966 | H180: 462
A181: 2013-06-23 | B181: Sunset | C181: MidWest | D181: Smith | E181: GRR | F181: 47 | G181: 987 | H181: 434.75
A182: 2013-03-17 | B182: Bellen | C182: South | D182: Chin | E182: SFWK | F182: 29 | G182: 638 | H182: 290
A183: 2013-06-24 | B183: Carlota | C183: MidWest | D183: Gault | E183: ITW | F183: 13 | G183: 299 | H183: 143
A184: 2013-01-15 | B184: Sunshine | C184: West | D184: Franks | E184: FM | F184: 21 | G184: 399 | H184: 168
A185: 2013-01-09 | B185: Carlota | C185: MidWest | D185: Smith | E185: DFR | F185: 41 | G185: 943 | H185: 451
A186: 2013-01-12 | B186: Quad | C186: East | D186: Gault | E186: WFMI | F186: 62 | G186: 1674 | H186: 899
A187: 2013-06-03 | B187: Bellen | C187: South | D187: Gault | E187: ITW | F187: 19 | G187: 418 | H187: 190
A188: 2013-03-14 | B188: Sunshine | C188: West | D188: Gault | E188: AST | F188: 65 | G188: 1235 | H188: 520
A189: 2013-05-15 | B189: Bellen | C189: MidWest | D189: Gault | E189: T | F189: 29 | G189: 638 | H189: 290
A190: 2013-03-27 | B190: Sunset | C190: East | D190: Franks | E190: BBT | F190: 26 | G190: 546 | H190: 240.5
A191: 2013-02-09 | B191: Bellen | C191: South | D191: Pham | E191: T | F191: 53 | G191: 1166 | H191: 530
A192: 2013-02-24 | B192: Sunset | C192: MidWest | D192: Smith | E192: ZAT | F192: 25 | G192: 525 | H192: 231.25
A193: 2013-01-07 | B193: Carlota | C193: East | D193: Smith | E193: BBT | F193: 47 | G193: 1081 | H193: 517
A194: 2013-06-04 | B194: Bellen | C194: MidWest | D194: Gault | E194: AA | F194: 48 | G194: 1056 | H194: 480
A195: 2013-02-08 | B195: Sunshine | C195: MidWest | D195: Smith | E195: JAQ | F195: 65 | G195: 1235 | H195: 520
A196: 2013-04-12 | B196: Quad | C196: East | D196: Sioux | E196: AA | F196: 56 | G196: 1512 | H196: 812
A197: 2013-04-30 | B197: Sunshine | C197: South | D197: Smith | E197: HII | F197: 51 | G197: 969 | H197: 408
A198: 2013-03-24 | B198: Bellen | C198: MidWest | D198: Gault | E198: PCC | F198: 57 | G198: 1254 | H198: 570
A199: 2013-04-11 | B199: Carlota | C199: South | D199: Franks | E199: TTT | F199: 23 | G199: 529 | H199: 253
A200: 2013-03-19 | B200: Carlota | C200: South | D200: Chin | E200: ET | F200: 43 | G200: 989 | H200: 473
... 1027 more rows

Sheet M1(1)
A1: Client | B1: Begin Asset | C1: End Asset | D1: Change
A2: Audrey Davis | B2: 336811 | C2: 343547 | D2: =C2-B2 -> 6736
A3: Kay Stokes | B3: 973876 | C3: 1149174 | D3: =C3-B3 -> 175298
A4: Irene Greene | B4: 112982 | C4: 115242 | D4: 2260
A5: Tim Gordon | B5: 53374 | C5: 51773 | D5: -1601
A6: Darnell Porter | B6: 322859 | C6: 339002 | D6: 16143
A7: Irma Boone | B7: 987206 | C7: 957590 | D7: -29616
A8: Bertha Montgomery | B8: 886223 | C8: 1001432 | D8: 115209
A9: Jeanne Gray | B9: 19057 | C9: 21916 | D9: 2859
A10: Lorene Mason | B10: 770301 | C10: 878143 | D10: 107842
A11: Marcos Lee | B11: 313418 | C11: 294613 | D11: -18805

Sheet M1(2)
A1: Client | B1: Begin Asset | C1: End Asset | D1: Change
A2: Audrey Davis | B2: 336811 | C2: 343547 | D2: =C2-B2 -> 6736
A3: Kay Stokes | B3: 973876 | C3: 1149174 | D3: =C3-B3 -> 175298
A4: Irene Greene | B4: 112982 | C4: 115242 | D4: 2260
A5: Tim Gordon | B5: 53374 | C5: 51773 | D5: -1601
A6: Darnell Porter | B6: 322859 | C6: 339002 | D6: 16143
A7: Irma Boone | B7: 987206 | C7: 957590 | D7: -29616
A8: Bertha Montgomery | B8: 886223 | C8: 1001432 | D8: 115209
A9: Jeanne Gray | B9: 19057 | C9: 21916 | D9: 2859
A10: Lorene Mason | B10: 770301 | C10: 878143 | D10: 107842
A11: Marcos Lee | B11: 313418 | C11: 294613 | D11: -18805

Sheet M1(3)
A1: Client | B1: Begin Asset | C1: End Asset
A2: Audrey Davis | B2: 336811 | C2: 343547
A3: Kay Stokes | B3: 973876 | C3: 1149174
A4: Irene Greene | B4: 112982 | C4: 115242
A5: Tim Gordon | B5: 53374 | C5: 51773
A6: Darnell Porter | B6: 322859 | C6: 339002
A7: Irma Boone | B7: 987206 | C7: 957590
A8: Bertha Montgomery | B8: 886223 | C8: 1001432
A9: Jeanne Gray | B9: 19057 | C9: 21916
A10: Lorene Mason | B10: 770301 | C10: 878143
A11: Marcos Lee | B11: 313418 | C11: 294613

Sheet M1(4)
A1: Client | B1: Begin Asset | C1: End Asset | D1: Change
A2: Audrey Davis | B2: 336811 | C2: 343547 | D2: =C2-B2 -> 6736
A3: Kay Stokes | B3: 973876 | C3: 1149174 | D3: =C3-B3 -> 175298
A4: Irene Greene | B4: 112982 | C4: 115242 | D4: 2260
A5: Tim Gordon | B5: 53374 | C5: 51773 | D5: -1601

Sheet M1(5)
A1: Client | B1: Begin Asset | C1: End Asset | D1: Change
A2: Audrey Davis | B2: 336811 | C2: 343547 | D2: =C2-B2 -> 6736
A3: Kay Stokes | B3: 973876 | C3: 1149174 | D3: =C3-B3 -> 175298
A4: Irene Greene | B4: 112982 | C4: 115242 | D4: 2260
A5: Tim Gordon | B5: 53374 | C5: 51773 | D5: -1601
A6: Darnell Porter | B6: 322859 | C6: 339002 | D6: 16143
A7: Irma Boone | B7: 987206 | C7: 957590 | D7: -29616

Sheet M1(6)
A1: Client | B1: Begin Asset | C1: End Asset | D1: Change
A2: Audrey Davis | B2: 336811 | C2: 343547 | D2: =C2-B2 -> 6736
A3: Kay Stokes | B3: 973876 | C3: 1149174 | D3: =C3-B3 -> 175298
A4: Irene Greene | B4: 112982 | C4: 115242 | D4: 2260
A5: Tim Gordon | B5: 53374 | C5: 51773 | D5: -1601
A6: Darnell Porter | B6: 322859 | C6: 339002 | D6: 16143
A7: Irma Boone | B7: 987206 | C7: 957590 | D7: -29616
A8: Bertha Montgomery | B8: 886223 | C8: 1001432 | D8: 115209
A9: Jeanne Gray | B9: 19057 | C9: 21916 | D9: 2859
A10: Lorene Mason | B10: 770301 | C10: 878143 | D10: 107842
A11: Marcos Lee | B11: 313418 | C11: 294613 | D11: -18805
A12: Sue Owen | B12: 242303 | C12: 264110 | D12: 21807
A13: Raquel Hamilton | B13: 609327 | C13: 578861 | D13: -30466
A14: Katrina Bowman | B14: 22784 | C14: 20506 | D14: -2278
A15: Helen Byrd | B15: 946323 | C15: 984176 | D15: 37853
A16: Ebony Anderson | B16: 46880 | C16: 47349 | D16: 469
A17: Christy Griffith | B17: 392492 | C17: 388567 | D17: -3925
A18: Jenny Fields | B18: 408653 | C18: 441345 | D18: 32692
A19: Juan Hunt | B19: 780152 | C19: 756747 | D19: -23405
A20: Dixie Barnett | B20: 734984 | C20: 734984 | D20: 0
A21: Antoinette Crawford | B21: 129592 | C21: 111449 | D21: -18143

Sheet MacroNotes
A1: What is a Macro?
A2: =ROWS(A$2:A2)&")" -> 1) | B2: Macro Means Code (Set of instructions) for common repetitive tasks.
A3: =ROWS(A$2:A3)&")" -> 2) | B3: Code in Excel is called VBA (Visual Basic Application)
A4: =ROWS(A$2:A4)&")" -> 3) | B4: You can write code by hand in Excel in the VBA editor (Alt + F11), but not in this class.
A5: =ROWS(A$2:A5)&")" -> 4) | B5: Luckily there is a way to have Excel write code for you: Macro Recorder. A Macro Recorder is like a tape recorder recording a voice, except the Macro Recorder watches what you do in Excel and then writes code for you.
A6: =ROWS(A$2:A6)&")" -> 5) | B6: In Excel 2007, you must use the ".xlsm" extension in order to use Macros. You must also set the security level in the Code Group in the Developer Ribbon to "Disable all Macros with notification"; then each time you open the workbook, click the "Options" button that appears when you open the workbook, then click "Enable".
A7: =ROWS(A$2:A7)&")" -> 6) | B7: In Excel 2003, the file extension .xls works with VBA or without VBA.
A8: =ROWS(A$2:A8)&")" -> 7) | B8: Show Developer Ribbon Tab: right-click ribbon, Customize Ribbon, check box for Developer tab.
A9: =ROWS(A$2:A9)&")" -> 8) | B9: Relative Macros record Relative movement of the selected cell (OFFSET function..
A10: =ROWS(A$2:A10)&")" -> 9) | B10: Absolute Macros record Absolute movement of the selected cell (RANGE function).
A11: =ROWS(A$2:A11)&")" -> 10) | B11: The "Use Relative Reference" button in the Code Group in the Developer Ribbon. The "Use Relative Reference" button is a toggle that toggles between Absolution and Relative References. When the button is yellow/orange in color, the Marco is recording Relative Cell References in the Macro. When it is not yellow/orange, it is recording Absolute References.
A12: =ROWS(A$2:A12)&")" -> 11) | B12: To turn on the Macro Recorder use the "Record Macro button in the Code group in the Developer Ribbon (or the Record Macro button on the left side of the Status Bar).
A13: =ROWS(A$2:A13)&")" -> 12) | B13: Be sure to Turn off the Macro Recorder when you are done
A14: =ROWS(A$2:A14)&")" -> 13) | B14: If you store Macros in "This workbook", they are only available in this workbook
A15: =ROWS(A$2:A15)&")" -> 14) | B15: If you store Macros in "Personal workbook", they are stored in the hidden workbook named "Personal" and the Macros will be available in all workbooks on your computer. To edit a Macro in a Personal workbook, you must unhide the workbook using the "Unhide" button in the Window Group on the View Ribbon.
A16: =ROWS(A$2:A16)&")" -> 15) | B16: The VBA editor (Microsoft Visual Basic editor) is where you write code (Alt + F11)
A17: =ROWS(A$2:A17)&")" -> 16) | B17: Use Alt + F8 to see list of Macros. You can select a Macro and then click the Edit button to see the code that the Macro recorder recorded.
A18: =ROWS(A$2:A18)&")" -> 17) | B18: In the VBA editor: Left side shows: 1) "Project Explorer" (Ctrl + R), which sows objects such as Workbook, Worksheets and Modules (Macros). 2) Properties (F4 key)
A19: =ROWS(A$2:A19)&")" -> 18) | B19: If you copy code from internet, when you are in VBA editor, Alt I + P, name Macro, Paste Code on right side, go back to Excel, Alt + F8 to open Macro List, Select Macro, click Options, assign keyboard shortcut

Sheet M2(1)
A1: First | B1: Last | C1: Address | D1: City | E1: State | F1: Zip | G1: Phone | H1: E1 | I1: E2
A2: Steve | B2: Chin | C2: 14 17th St. | D2: Seattle | E2: WA | F2: 98104 | G2: 206-572-3409 | H2: =A2&"_"&B2&"@notaol.com" -> Steve_Chin@notaol.com | I2: =B2&"_"&C2&"@notaol.com" -> Chin_14 17th St.@notaol.com
A3: Troun | B3: Tenn | C3: 6 19th St. | D3: Seattle | E3: WA | F3: 98106 | G3: 206-667-3154 | H3: Troun_Tenn@notaol.com | I3: Tenn_6 19th St.@notaol.com
A4: Rhond | B4: Tradfren | C4: 10 13th St. | D4: Seattle | E4: WA | F4: 98117 | G4: 206-574-1265 | H4: Rhond_Tradfren@notaol.com | I4: Tradfren_10 13th St.@notaol.com
A5: Sheli | B5: Das | C5: 2 15th St. | D5: Seattle | E5: WA | F5: 98111 | G5: 206-637-4014 | H5: Sheli_Das@notaol.com | I5: Das_2 15th St.@notaol.com
A6: Jon | B6: Teddy | C6: 3 17th St. | D6: Seattle | E6: WA | F6: 98114 | G6: 206-515-5102 | H6: Jon_Teddy@notaol.com | I6: Teddy_3 17th St.@notaol.com
A7: Jeri | B7: Yessler | C7: 12 16th St. | D7: Seattle | E7: WA | F7: 98114 | G7: 206-583-2943 | H7: Jeri_Yessler@notaol.com | I7: Yessler_12 16th St.@notaol.com
A8: Luke | B8: Suix | C8: 8 19th St. | D8: Seattle | E8: WA | F8: 98113 | G8: 206-774-4449 | H8: Luke_Suix@notaol.com | I8: Suix_8 19th St.@notaol.com
A9: Luke | B9: Red | C9: 15 16th St. | D9: Seattle | E9: WA | F9: 98108 | G9: 206-685-2311 | H9: Luke_Red@notaol.com | I9: Red_15 16th St.@notaol.com
A10: Jeri | B10: Smythe | C10: 14 19th St. | D10: Seattle | E10: WA | F10: 98112 | G10: 206-574-6156 | H10: Jeri_Smythe@notaol.com | I10: Smythe_14 19th St.@notaol.com
A11: Luke | B11: Rad | C11: 3 16th St. | D11: Seattle | E11: WA | F11: 98106 | G11: 206-599-3338 | H11: Luke_Rad@notaol.com | I11: Rad_3 16th St.@notaol.com
A12: Jon | B12: Dap | C12: 5 19th St. | D12: Seattle | E12: WA | F12: 98116 | G12: 206-679-1485 | H12: Jon_Dap@notaol.com | I12: Dap_5 19th St.@notaol.com
A13: Steve | B13: Gupis | C13: 6 17th St. | D13: Seattle | E13: WA | F13: 98111 | G13: 206-609-1507 | H13: Steve_Gupis@notaol.com | I13: Gupis_6 17th St.@notaol.com
A14: Jon | B14: Summi | C14: 4 14th St. | D14: Seattle | E14: WA | F14: 98104 | G14: 206-733-4318 | H14: Jon_Summi@notaol.com | I14: Summi_4 14th St.@notaol.com
A15: Sheli | B15: Fun | C15: 7 15th St. | D15: Seattle | E15: WA | F15: 98110 | G15: 206-691-7629 | H15: Sheli_Fun@notaol.com | I15: Fun_7 15th St.@notaol.com

Sheet M2(2)
A1: First | B1: Last | C1: Address | D1: City | E1: State | F1: Zip | G1: Phone | H1: E1 | I1: E2
A3: Steve
A4: Chin
A5: 14 17th St.
A6: Seattle
A7: WA
A8: 98104
A9: 206-572-3409
A10: =A3&"_"&A4&"@notaol.com" -> Steve_Chin@notaol.com
A11: =A4&"_"&A5&"@notaol.com" -> Chin_14 17th St.@notaol.com
A13: Troun
A14: Tenn
A15: 6 19th St.
A16: Seattle
A17: WA
A18: 98106
A19: 206-667-3154
A20: =A13&"_"&A14&"@notaol.com" -> Troun_Tenn@notaol.com
A21: =A14&"_"&A15&"@notaol.com" -> Tenn_6 19th St.@notaol.com
A23: Rhond
A24: Tradfren
A25: 10 13th St.
A26: Seattle
A27: WA
A28: 98117
A29: 206-574-1265
A30: =A23&"_"&A24&"@notaol.com" -> Rhond_Tradfren@notaol.com
A31: =A24&"_"&A25&"@notaol.com" -> Tradfren_10 13th St.@notaol.com
A33: Sheli
A34: Das
A35: 2 15th St.
A36: Seattle
A37: WA
A38: 98111
A39: 206-637-4014
A40: =A33&"_"&A34&"@notaol.com" -> Sheli_Das@notaol.com
A41: =A34&"_"&A35&"@notaol.com" -> Das_2 15th St.@notaol.com
A43: Jon
A44: Teddy
A45: 3 17th St.
A46: Seattle
A47: WA
A48: 98114
A49: 206-515-5102
A50: =A43&"_"&A44&"@notaol.com" -> Jon_Teddy@notaol.com
A51: =A44&"_"&A45&"@notaol.com" -> Teddy_3 17th St.@notaol.com
A53: Jeri
A54: Yessler
A55: 12 16th St.
A56: Seattle
A57: WA
A58: 98114
A59: 206-583-2943
A60: =A53&"_"&A54&"@notaol.com" -> Jeri_Yessler@notaol.com
A61: =A54&"_"&A55&"@notaol.com" -> Yessler_12 16th St.@notaol.com
A63: Luke
A64: Suix
A65: 8 19th St.
A66: Seattle
A67: WA
A68: 98113
A69: 206-774-4449
A70: =A63&"_"&A64&"@notaol.com" -> Luke_Suix@notaol.com
A71: =A64&"_"&A65&"@notaol.com" -> Suix_8 19th St.@notaol.com
A73: Luke
A74: Red
A75: 15 16th St.
A76: Seattle
A77: WA
A78: 98108
A79: 206-685-2311
A80: =A73&"_"&A74&"@notaol.com" -> Luke_Red@notaol.com
A81: =A74&"_"&A75&"@notaol.com" -> Red_15 16th St.@notaol.com
A83: Jeri
A84: Smythe
A85: 14 19th St.
A86: Seattle
A87: WA
A88: 98112
A89: 206-574-6156
A90: =A83&"_"&A84&"@notaol.com" -> Jeri_Smythe@notaol.com
A91: =A84&"_"&A85&"@notaol.com" -> Smythe_14 19th St.@notaol.com
A93: Luke
A94: Rad
A95: 3 16th St.
A96: Seattle
A97: WA
A98: 98106
A99: 206-599-3338
A100: =A93&"_"&A94&"@notaol.com" -> Luke_Rad@notaol.com
A101: =A94&"_"&A95&"@notaol.com" -> Rad_3 16th St.@notaol.com
A103: Jon
A104: Dap
A105: 5 19th St.
A106: Seattle
A107: WA
A108: 98116
A109: 206-679-1485
A110: =A103&"_"&A104&"@notaol.com" -> Jon_Dap@notaol.com
A111: =A104&"_"&A105&"@notaol.com" -> Dap_5 19th St.@notaol.com
A113: Steve
A114: Gupis
A115: 6 17th St.
A116: Seattle
A117: WA
A118: 98111
A119: 206-609-1507
A120: =A113&"_"&A114&"@notaol.com" -> Steve_Gupis@notaol.com
A121: =A114&"_"&A115&"@notaol.com" -> Gupis_6 17th St.@notaol.com
A123: Jon
A124: Summi
A125: 4 14th St.
A126: Seattle
A127: WA
A128: 98104
A129: 206-733-4318
A130: =A123&"_"&A124&"@notaol.com" -> Jon_Summi@notaol.com
A131: =A124&"_"&A125&"@notaol.com" -> Summi_4 14th St.@notaol.com
A133: Sheli
A134: Fun
A135: 7 15th St.
A136: Seattle
A137: WA
A138: 98110
A139: 206-691-7629
A140: =A133&"_"&A134&"@notaol.com" -> Sheli_Fun@notaol.com
A141: =A134&"_"&A135&"@notaol.com" -> Fun_7 15th St.@notaol.com

Sheet M2(3)
A1: First | B1: Last | C1: Address | D1: City | E1: State | F1: Zip | G1: Phone | H1: E1 | I1: E2
A2: Steve | B2: Chin | C2: 14 17th St. | D2: Seattle | E2: WA | F2: 98104 | G2: 206-572-3409 | H2: =A2&"_"&B2&"@notaol.com" -> Steve_Chin@notaol.com | I2: =B2&"_"&C2&"@notaol.com" -> Chin_14 17th St.@notaol.com
A3: Troun | B3: Tenn | C3: 6 19th St. | D3: Seattle | E3: WA | F3: 98106 | G3: 206-667-3154 | H3: Troun_Tenn@notaol.com | I3: Tenn_6 19th St.@notaol.com
A4: Rhond | B4: Tradfren | C4: 10 13th St. | D4: Seattle | E4: WA | F4: 98117 | G4: 206-574-1265 | H4: Rhond_Tradfren@notaol.com | I4: Tradfren_10 13th St.@notaol.com
A5: Sheli | B5: Das | C5: 2 15th St. | D5: Seattle | E5: WA | F5: 98111 | G5: 206-637-4014 | H5: Sheli_Das@notaol.com | I5: Das_2 15th St.@notaol.com
A6: Jon | B6: Teddy | C6: 3 17th St. | D6: Seattle | E6: WA | F6: 98114 | G6: 206-515-5102 | H6: Jon_Teddy@notaol.com | I6: Teddy_3 17th St.@notaol.com
A7: Jeri | B7: Yessler | C7: 12 16th St. | D7: Seattle | E7: WA | F7: 98114 | G7: 206-583-2943 | H7: Jeri_Yessler@notaol.com | I7: Yessler_12 16th St.@notaol.com
A8: Luke | B8: Suix | C8: 8 19th St. | D8: Seattle | E8: WA | F8: 98113 | G8: 206-774-4449 | H8: Luke_Suix@notaol.com | I8: Suix_8 19th St.@notaol.com
A9: Luke | B9: Red | C9: 15 16th St. | D9: Seattle | E9: WA | F9: 98108 | G9: 206-685-2311 | H9: Luke_Red@notaol.com | I9: Red_15 16th St.@notaol.com
A10: Jeri | B10: Smythe | C10: 14 19th St. | D10: Seattle | E10: WA | F10: 98112 | G10: 206-574-6156 | H10: Jeri_Smythe@notaol.com | I10: Smythe_14 19th St.@notaol.com
A11: Luke | B11: Rad | C11: 3 16th St. | D11: Seattle | E11: WA | F11: 98106 | G11: 206-599-3338 | H11: Luke_Rad@notaol.com | I11: Rad_3 16th St.@notaol.com
A12: Jon | B12: Dap | C12: 5 19th St. | D12: Seattle | E12: WA | F12: 98116 | G12: 206-679-1485 | H12: Jon_Dap@notaol.com | I12: Dap_5 19th St.@notaol.com
A13: Steve | B13: Gupis | C13: 6 17th St. | D13: Seattle | E13: WA | F13: 98111 | G13: 206-609-1507 | H13: Steve_Gupis@notaol.com | I13: Gupis_6 17th St.@notaol.com
A15: Jon
A16: Summi
A17: 4 14th St.
A18: Seattle
A19: WA
A20: 98104
A21: 206-733-4318
A22: =A15&"_"&A16&"@notaol.com" -> Jon_Summi@notaol.com
A23: =A16&"_"&A17&"@notaol.com" -> Summi_4 14th St.@notaol.com
A25: Sheli
A26: Fun
A27: 7 15th St.
A28: Seattle
A29: WA
A30: 98110
A31: 206-691-7629
A32: =A25&"_"&A26&"@notaol.com" -> Sheli_Fun@notaol.com
A33: =A26&"_"&A27&"@notaol.com" -> Fun_7 15th St.@notaol.com

Sheet M2(4)
A1: First | B1: Last | C1: Address | D1: City | E1: State | F1: Zip | G1: Phone | H1: E1 | I1: E2
A3: Steve
A4: Chin
A5: 14 17th St.
A6: Seattle
A7: WA
A8: 98104
A9: 206-572-3409
A10: =A3&"_"&A4&"@notaol.com" -> Steve_Chin@notaol.com
A11: =A4&"_"&A5&"@notaol.com" -> Chin_14 17th St.@notaol.com
A13: Troun
A14: Tenn
A15: 6 19th St.
A16: Seattle
A17: WA
A18: 98106
A19: 206-667-3154
A20: =A13&"_"&A14&"@notaol.com" -> Troun_Tenn@notaol.com
A21: =A14&"_"&A15&"@notaol.com" -> Tenn_6 19th St.@notaol.com
A23: Rhond
A24: Tradfren
A25: 10 13th St.
A26: Seattle
A27: WA
A28: 98117
A29: 206-574-1265
A30: =A23&"_"&A24&"@notaol.com" -> Rhond_Tradfren@notaol.com
A31: =A24&"_"&A25&"@notaol.com" -> Tradfren_10 13th St.@notaol.com
A33: Sheli
A34: Das
A35: 2 15th St.
A36: Seattle
A37: WA
A38: 98111
A39: 206-637-4014
A40: =A33&"_"&A34&"@notaol.com" -> Sheli_Das@notaol.com
A41: =A34&"_"&A35&"@notaol.com" -> Das_2 15th St.@notaol.com
A43: Jon
A44: Teddy
A45: 3 17th St.
A46: Seattle
A47: WA
A48: 98114
A49: 206-515-5102
A50: =A43&"_"&A44&"@notaol.com" -> Jon_Teddy@notaol.com
A51: =A44&"_"&A45&"@notaol.com" -> Teddy_3 17th St.@notaol.com
A53: Jeri
A54: Yessler
A55: 12 16th St.
A56: Seattle
A57: WA
A58: 98114
A59: 206-583-2943
A60: =A53&"_"&A54&"@notaol.com" -> Jeri_Yessler@notaol.com
A61: =A54&"_"&A55&"@notaol.com" -> Yessler_12 16th St.@notaol.com
A63: Luke
A64: Suix
A65: 8 19th St.
A66: Seattle
A67: WA
A68: 98113
A69: 206-774-4449
A70: =A63&"_"&A64&"@notaol.com" -> Luke_Suix@notaol.com
A71: =A64&"_"&A65&"@notaol.com" -> Suix_8 19th St.@notaol.com
A73: Luke
A74: Red
A75: 15 16th St.
A76: Seattle
A77: WA
A78: 98108
A79: 206-685-2311
A80: =A73&"_"&A74&"@notaol.com" -> Luke_Red@notaol.com
A81: =A74&"_"&A75&"@notaol.com" -> Red_15 16th St.@notaol.com
A83: Jeri
A84: Smythe
A85: 14 19th St.
A86: Seattle
A87: WA
A88: 98112
A89: 206-574-6156
A90: =A83&"_"&A84&"@notaol.com" -> Jeri_Smythe@notaol.com
A91: =A84&"_"&A85&"@notaol.com" -> Smythe_14 19th St.@notaol.com
A93: Luke
A94: Rad
A95: 3 16th St.
A96: Seattle
A97: WA
A98: 98106
A99: 206-599-3338
A100: =A93&"_"&A94&"@notaol.com" -> Luke_Rad@notaol.com
A101: =A94&"_"&A95&"@notaol.com" -> Rad_3 16th St.@notaol.com
A103: Jon
A104: Dap
A105: 5 19th St.
A106: Seattle
A107: WA
A108: 98116
A109: 206-679-1485
A110: =A103&"_"&A104&"@notaol.com" -> Jon_Dap@notaol.com
A111: =A104&"_"&A105&"@notaol.com" -> Dap_5 19th St.@notaol.com
A113: Steve
A114: Gupis
A115: 6 17th St.
A116: Seattle
A117: WA
A118: 98111
A119: 206-609-1507
A120: =A113&"_"&A114&"@notaol.com" -> Steve_Gupis@notaol.com
A121: =A114&"_"&A115&"@notaol.com" -> Gupis_6 17th St.@notaol.com
A123: Jon
A124: Summi
A125: 4 14th St.
A126: Seattle
A127: WA
A128: 98104
A129: 206-733-4318
A130: =A123&"_"&A124&"@notaol.com" -> Jon_Summi@notaol.com
A131: =A124&"_"&A125&"@notaol.com" -> Summi_4 14th St.@notaol.com
A133: Sheli
A134: Fun
A135: 7 15th St.
A136: Seattle
A137: WA
A138: 98110
A139: 206-691-7629
A140: =A133&"_"&A134&"@notaol.com" -> Sheli_Fun@notaol.com
A141: =A134&"_"&A135&"@notaol.com" -> Fun_7 15th St.@notaol.com

Sheet M2(5)
A1: First | B1: Last | C1: Address | D1: City | E1: State | F1: Zip | G1: Phone | H1: E1 | I1: E2
A3: Steve
A4: Chin
A5: 14 17th St.
A6: Seattle
A7: WA
A8: 98104
A9: 206-572-3409
A10: =A3&"_"&A4&"@notaol.com" -> Steve_Chin@notaol.com
A11: =A4&"_"&A5&"@notaol.com" -> Chin_14 17th St.@notaol.com
A13: Troun
A14: Tenn
A15: 6 19th St.
A16: Seattle
A17: WA
A18: 98106
A19: 206-667-3154
A20: =A13&"_"&A14&"@notaol.com" -> Troun_Tenn@notaol.com
A21: =A14&"_"&A15&"@notaol.com" -> Tenn_6 19th St.@notaol.com
A23: Rhond
A24: Tradfren
A25: 10 13th St.
A26: Seattle
A27: WA
A28: 98117
A29: 206-574-1265
A30: =A23&"_"&A24&"@notaol.com" -> Rhond_Tradfren@notaol.com
A31: =A24&"_"&A25&"@notaol.com" -> Tradfren_10 13th St.@notaol.com
A33: Sheli
A34: Das
A35: 2 15th St.
A36: Seattle
A37: WA
A38: 98111
A39: 206-637-4014
A40: =A33&"_"&A34&"@notaol.com" -> Sheli_Das@notaol.com
A41: =A34&"_"&A35&"@notaol.com" -> Das_2 15th St.@notaol.com
A43: Jon
A44: Teddy
A45: 3 17th St.
A46: Seattle
A47: WA
A48: 98114
A49: 206-515-5102
A50: =A43&"_"&A44&"@notaol.com" -> Jon_Teddy@notaol.com
A51: =A44&"_"&A45&"@notaol.com" -> Teddy_3 17th St.@notaol.com
A53: Jeri
A54: Yessler
A55: 12 16th St.
A56: Seattle
A57: WA
A58: 98114
A59: 206-583-2943
A60: =A53&"_"&A54&"@notaol.com" -> Jeri_Yessler@notaol.com
A61: =A54&"_"&A55&"@notaol.com" -> Yessler_12 16th St.@notaol.com
A63: Luke
A64: Suix
A65: 8 19th St.
A66: Seattle
A67: WA
A68: 98113
A69: 206-774-4449
A70: =A63&"_"&A64&"@notaol.com" -> Luke_Suix@notaol.com
A71: =A64&"_"&A65&"@notaol.com" -> Suix_8 19th St.@notaol.com
A73: Luke
A74: Red
A75: 15 16th St.
A76: Seattle
A77: WA
A78: 98108
A79: 206-685-2311
A80: =A73&"_"&A74&"@notaol.com" -> Luke_Red@notaol.com
A81: =A74&"_"&A75&"@notaol.com" -> Red_15 16th St.@notaol.com
A83: Jeri
A84: Smythe
A85: 14 19th St.
A86: Seattle
A87: WA
A88: 98112
A89: 206-574-6156
A90: =A83&"_"&A84&"@notaol.com" -> Jeri_Smythe@notaol.com
A91: =A84&"_"&A85&"@notaol.com" -> Smythe_14 19th St.@notaol.com
A93: Luke
A94: Rad
A95: 3 16th St.
A96: Seattle
A97: WA
A98: 98106
A99: 206-599-3338
A100: =A93&"_"&A94&"@notaol.com" -> Luke_Rad@notaol.com
A101: =A94&"_"&A95&"@notaol.com" -> Rad_3 16th St.@notaol.com
A103: Jon
A104: Dap
A105: 5 19th St.
A106: Seattle
A107: WA
A108: 98116
A109: 206-679-1485
A110: =A103&"_"&A104&"@notaol.com" -> Jon_Dap@notaol.com
A111: =A104&"_"&A105&"@notaol.com" -> Dap_5 19th St.@notaol.com
A113: Steve
A114: Gupis
A115: 6 17th St.
A116: Seattle
A117: WA
A118: 98111
A119: 206-609-1507
A120: =A113&"_"&A114&"@notaol.com" -> Steve_Gupis@notaol.com
A121: =A114&"_"&A115&"@notaol.com" -> Gupis_6 17th St.@notaol.com
A123: Jon
A124: Summi
A125: 4 14th St.
A126: Seattle
A127: WA
A128: 98104
A129: 206-733-4318
A130: =A123&"_"&A124&"@notaol.com" -> Jon_Summi@notaol.com
A131: =A124&"_"&A125&"@notaol.com" -> Summi_4 14th St.@notaol.com
A133: Sheli
A134: Fun
A135: 7 15th St.
A136: Seattle
A137: WA
A138: 98110
A139: 206-691-7629
A140: =A133&"_"&A134&"@notaol.com" -> Sheli_Fun@notaol.com
A141: =A134&"_"&A135&"@notaol.com" -> Fun_7 15th St.@notaol.com

Sheet M2(6)
A1: First | B1: Last | C1: Address | D1: City | E1: State | F1: Zip | G1: Phone | H1: E1 | I1: E2
A3: Steve
A4: Chin
A5: 14 17th St.
A6: Seattle
A7: WA
A8: 98104
A9: 206-572-3409
A10: =A3&"_"&A4&"@notaol.com" -> Steve_Chin@notaol.com
A11: =A4&"_"&A5&"@notaol.com" -> Chin_14 17th St.@notaol.com
A13: Troun
A14: Tenn
A15: 6 19th St.
A16: Seattle
A17: WA
A18: 98106
A19: 206-667-3154
A20: =A13&"_"&A14&"@notaol.com" -> Troun_Tenn@notaol.com
A21: =A14&"_"&A15&"@notaol.com" -> Tenn_6 19th St.@notaol.com
A23: Rhond
A24: Tradfren
A25: 10 13th St.
A26: Seattle
A27: WA
A28: 98117
A29: 206-574-1265
A30: =A23&"_"&A24&"@notaol.com" -> Rhond_Tradfren@notaol.com
A31: =A24&"_"&A25&"@notaol.com" -> Tradfren_10 13th St.@notaol.com
A33: Sheli
A34: Das
A35: 2 15th St.
A36: Seattle
A37: WA
A38: 98111
A39: 206-637-4014
A40: =A33&"_"&A34&"@notaol.com" -> Sheli_Das@notaol.com
A41: =A34&"_"&A35&"@notaol.com" -> Das_2 15th St.@notaol.com
A43: Jon
A44: Teddy
A45: 3 17th St.
A46: Seattle
A47: WA
A48: 98114
A49: 206-515-5102
A50: =A43&"_"&A44&"@notaol.com" -> Jon_Teddy@notaol.com
A51: =A44&"_"&A45&"@notaol.com" -> Teddy_3 17th St.@notaol.com
A53: Jeri
A54: Yessler
A55: 12 16th St.
A56: Seattle
A57: WA
A58: 98114
A59: 206-583-2943
A60: =A53&"_"&A54&"@notaol.com" -> Jeri_Yessler@notaol.com
A61: =A54&"_"&A55&"@notaol.com" -> Yessler_12 16th St.@notaol.com
A63: Luke
A64: Suix
A65: 8 19th St.
A66: Seattle
A67: WA
A68: 98113
A69: 206-774-4449
A70: =A63&"_"&A64&"@notaol.com" -> Luke_Suix@notaol.com
A71: =A64&"_"&A65&"@notaol.com" -> Suix_8 19th St.@notaol.com
A73: Luke
A74: Red
A75: 15 16th St.
A76: Seattle
A77: WA
A78: 98108
A79: 206-685-2311
A80: =A73&"_"&A74&"@notaol.com" -> Luke_Red@notaol.com
A81: =A74&"_"&A75&"@notaol.com" -> Red_15 16th St.@notaol.com
A83: Jeri
A84: Smythe
A85: 14 19th St.
A86: Seattle
A87: WA
A88: 98112
A89: 206-574-6156
A90: =A83&"_"&A84&"@notaol.com" -> Jeri_Smythe@notaol.com
A91: =A84&"_"&A85&"@notaol.com" -> Smythe_14 19th St.@notaol.com
A93: Luke
A94: Rad
A95: 3 16th St.
A96: Seattle
A97: WA
A98: 98106
A99: 206-599-3338
A100: =A93&"_"&A94&"@notaol.com" -> Luke_Rad@notaol.com
A101: =A94&"_"&A95&"@notaol.com" -> Rad_3 16th St.@notaol.com
A103: Jon
A104: Dap
A105: 5 19th St.
A106: Seattle
A107: WA
A108: 98116
A109: 206-679-1485
A110: =A103&"_"&A104&"@notaol.com" -> Jon_Dap@notaol.com
A111: =A104&"_"&A105&"@notaol.com" -> Dap_5 19th St.@notaol.com
A113: Steve
A114: Gupis
A115: 6 17th St.
A116: Seattle
A117: WA
A118: 98111
A119: 206-609-1507
A120: =A113&"_"&A114&"@notaol.com" -> Steve_Gupis@notaol.com
A121: =A114&"_"&A115&"@notaol.com" -> Gupis_6 17th St.@notaol.com
A123: Jon
A124: Summi
A125: 4 14th St.
A126: Seattle
A127: WA
A128: 98104
A129: 206-733-4318
A130: =A123&"_"&A124&"@notaol.com" -> Jon_Summi@notaol.com
A131: =A124&"_"&A125&"@notaol.com" -> Summi_4 14th St.@notaol.com
A133: Sheli
A134: Fun
A135: 7 15th St.
A136: Seattle
A137: WA
A138: 98110
A139: 206-691-7629
A140: =A133&"_"&A134&"@notaol.com" -> Sheli_Fun@notaol.com
A141: =A134&"_"&A135&"@notaol.com" -> Fun_7 15th St.@notaol.com

Sheet ChartTypes
A1: Into The Wind Sales
B2: Jan | C2: Feb | D2: Mar | E2: Total
A3: Toys | B3: 500 | C3: 2150 | D3: 8893 | E3: =SUM(B3:D3) -> 11543
A4: Boomerangs | B4: 4000 | C4: 6933 | D4: 9545 | E4: =SUM(B4:D4) -> 20478
A5: Kites | B5: 9721 | C5: 5367 | D5: 15064 | E5: =SUM(B5:D5) -> 30152
A6: Total | B6: =SUM(B3:B5) -> 14221 | C6: =SUM(C3:C5) -> 14450 | D6: =SUM(D3:D5) -> 33502 | E6: =SUM(B6:D6) -> 62173
G10: Compare parts to the whole. Percentages.
F25: Chart Junk.
F26: Unnecessary repetition.
F27: Titled pies distorts the proportions or percentages.
G41: Columns compare amounts across categories.
G56: Bars also compare amounts across categories.
G57: Bars tend to emphasis differences better than Column.
F72: Stacked Bar shows amounts across categories, with sub categories.
E88: Line charts show trends across equidistant categories.
E89: Line charts show ONE number one vertical axis.
E91: X-Y Scatter charts show TWO numbers: a certain distance along horizontal,
E92: then a certain distance along vertical. More later.
A106: Scores
A107: 69
A108: 75 | C108: Row Labels | D108: Count of Scores
A109: 56 | C109: 0-9 | D109: 1
A110: 26 | C110: 20-29 | D110: 1
A111: 85 | C111: 30-39 | D111: 4
A112: 67 | C112: 40-49 | D112: 1
A113: 67 | C113: 50-59 | D113: 4
A114: 70 | C114: 60-69 | D114: 10 | F114: Histograms are a certain type of column chart that have columns
A115: 30 | C115: 70-79 | D115: 7 | F115: touching to indicate that no value is possible between the columns.
A116: 81 | C116: 80-89 | D116: 7
A117: 74 | C117: 90-100 | D117: 2
A118: 98 | C118: Grand Total | D118: 37
A119: 45
A120: 79 | C120: Categories - Each Integer Category Has A Range Of 10 And Each Has No Gap Because There Are No Possibilities Between Columns
A121: 72
A122: 65
A123: 68
A124: 52
A125: 82
A126: 53
A127: 64
A128: 81
A129: 88
A130: 92
A131: 64
A132: 82
A133: 34
A134: 52
A135: 74
A136: 73
A137: 66
A138: 37
A139: 8
A140: 84
A141: 68
A142: 62
A143: 38

Sheet Column
L1: Keyboard for Default Chart on sheet: Alt + F1, New Sheet = F11.
A2: Into The Wind Sales
B3: Jan | C3: Feb | D3: Mar | E3: Total | H3: Jan | I3: Feb | J3: Mar | L3: =CHAR(17)&" These are called 'Categories' and will appear in the horizontal axis." ->  These are called 'Categories' and will appear in the horizontal axis.
A4: Toys | B4: 500 | C4: 2150 | D4: 8893 | E4: =SUM(B4:D4) -> 11543 | G4: Toys | H4: 500 | I4: 2150 | J4: 8893 | L4: =CHAR(17)&" The numbers "&FIXED(H4,0)&", "&FIXED(I4,0)&", "&FIXED(J4,0)&" are called the '"&G4&" Series'." ->  The numbers 500, 2,150, 8,893 are called the 'Toys Series'.
A5: Boomerangs | B5: 4000 | C5: 6933 | D5: 9545 | E5: =SUM(B5:D5) -> 20478 | G5: Boomerangs | H5: 4000 | I5: 6933 | J5: 9545 | L5: =CHAR(17)&" The numbers "&FIXED(H5,0)&", "&FIXED(I5,0)&", "&FIXED(J5,0)&" are called the '"&G5&" Series'." ->  The numbers 4,000, 6,933, 9,545 are called the 'Boomerangs Series'.
A6: Kites | B6: 9721 | C6: 5367 | D6: 15064 | E6: =SUM(B6:D6) -> 30152 | G6: Kites | H6: 9721 | I6: 5367 | J6: 15064 | L6:  The numbers 9,721, 5,367, 15,064 are called the 'Kites Series'.
A7: Total | B7: =SUM(B4:B6) -> 14221 | C7: =SUM(C4:C6) -> 14450 | D7: =SUM(D4:D6) -> 33502 | E7: =SUM(B7:D7) -> 62173
G8: These labels will appear in the color coded 'Legend'
A13: If columns less than rows:
A14: Row headers will appear as categories.
B16: Jan | C16: Feb
A17: Toys | B17: 500 | C17: 2150
A18: Boomerangs | B18: 4000 | C18: 6933
A19: Kites | B19: 9721 | C19: 5367
A28: Into The Wind Sales
B29: Jan | C29: Feb | D29: Mar | E29: Total
A30: Toys | B30: 500 | C30: 2150 | D30: 8893 | E30: =SUM(B30:D30) -> 11543
A31: Boomerangs | B31: 4000 | C31: 6933 | D31: 9545 | E31: =SUM(B31:D31) -> 20478
A32: Kites | B32: 9721 | C32: 5367 | D32: 15064 | E32: =SUM(B32:D32) -> 30152
A33: Total | B33: =SUM(B30:B32) -> 14221 | C33: =SUM(C30:C32) -> 14450 | D33: =SUM(D30:D32) -> 33502 | E33: =SUM(B33:D33) -> 62173
A35: Add Title: Select chart, Chart Tools Layout ribbon tab, Labels group, Chart Title.
A36: Link Chart label to cells: select label, use Formula Bar to create formula.
A37: Select elements in chart to format either: 1) Select chart, Chart Tools
A38: Layout ribbon tab, Current selection group, or click on element in chart
A39: Ctrl + 1 opens format Chart dialog box

Sheet TemplatesAndDefault
A1: Funding for City | B1: Amount
A2: Sales Tax | B2: 133947
A3: Income Tax | B3: 179193
A4: Property Tax | B4: 102512.5
A5: Other | B5: 98847.5
A6: Total | B6: =SUM(B2:B5) -> 514500
A18: Save Template: Select chart, Chart Tools Design ribbon tab, Type group, Save As Templates.
A19: Set Default: Select chart, Chart Tools Design ribbon tab, Type group, Change Chart type, Set As Default.

Sheet Copy
A1: Into The Wind Sales
B2: Jan | C2: Feb | D2: Mar | E2: Total
A3: Toys | B3: 500 | C3: 2150 | D3: 8893 | E3: =SUM(B3:D3) -> 11543
A4: Boomerangs | B4: 4000 | C4: 6933 | D4: 9545 | E4: =SUM(B4:D4) -> 20478
A5: Kites | B5: 9721 | C5: 5367 | D5: 15064 | E5: =SUM(B5:D5) -> 30152
A6: Total | B6: =SUM(B3:B5) -> 14221 | C6: =SUM(C3:C5) -> 14450 | D6: =SUM(D3:D5) -> 33502 | E6: =SUM(B6:D6) -> 62173
A10: Copy chart: Ctrl + C, Click in cell, Ctrl + V
A11: Change Chart Type.

Sheet Line
A1: ="Into The Wind Sales "&B2&" to "&I2 -> Into The Wind Sales 2005 to 2012
A2: Product/Year | B2: 2005 | C2: 2006 | D2: 2007 | E2: 2008 | F2: 2009 | G2: 2010 | H2: 2011 | I2: 2012
A3: Toys | B3: 5645 | C3: 4382 | D3: 6200 | E3: 2155 | F3: 1902 | G3: 3544 | H3: 6874 | I3: 6710
A4: Boomerangs | B4: 6000 | C4: 6626 | D4: 5487 | E4: 5011 | F4: 4480 | G4: 6511 | H4: 8004 | I4: 7851
A5: Kites | B5: 23438 | C5: 20393 | D5: 24863 | E5: 9753 | F5: 10547 | G5: 9510 | H5: 12548 | I5: 21547
B7: 2005 | C7: 2006 | D7: 2007 | E7: 2008 | F7: 2009 | G7: 2010 | H7: 2011 | I7: 2012
A8: Toys | B8: 5645 | C8: 4382 | D8: 6200 | E8: 2155 | F8: 1902 | G8: 3544 | H8: 6874 | I8: 6710
A9: Boomerangs | B9: 6000 | C9: 6626 | D9: 5487 | E9: 5011 | F9: 4480 | G9: 6511 | H9: 8004 | I9: 7851
A10: Kites | B10: 23438 | C10: 20393 | D10: 24863 | E10: 9753 | F10: 10547 | G10: 9510 | H10: 12548 | I10: 21547

Sheet NumberFormat
B1: Toys | C1: Boomerangs | D1: Kites
A2: 2009 | B2: 9000 | C2: 59000 | D2: 77000
A3: 2010 | B3: 30000 | C3: 58000 | D3: 41000
A4: 2011 | B4: 9000 | C4: 78000 | D4: 89000
A5: 2012 | B5: 23000 | C5: 65000 | D5: 98000
A6: 2013 | B6: 23000 | C6: 14000 | D6: 68000
A7: 2014 | B7: 16000 | C7: 33000 | D7: 98000
A8: 2015 | B8: 16000 | C8: 38000 | D8: 83000
A10: Custom Number Format: #, K;-#, K;0
A12: Custom Number Format: #,," M"
A13: Millions:
A14: 1000000
A15: 1000000

Sheet X Y
A1: 1 Number on vertical axis. Categroies on horizontal axis. | G1: 2 Numbers: along x then along y and out put a marker.
A2: Shows Trends Across categories. | G2: Shows relationship between 2 numbers.
A27: Do Hours Studied Predict Final Score On Test? Is there a relationship? | Z27: y intercept | AA27: slope | AB27: correlation Coefficient | AC27: Coefficient of Determination
A28: Hours Studied - X | B28: Test Scores - Y | Z28: Where line crosses y-axis | AA28: For 1 unit out x-axis, how far up the y-axis do you go? | AB28: Strength and direction of line (not causation) | AC28: The amount of influence x has on y (not causation)
A29: 5 | B29: 88 | Z29: b | AA29: m | AB29: r | AC29: r^2
A30: 4 | B30: 82 | Z30: =INTERCEPT($B$29:$B$66,$A$29:$A$66) -> 48.45181786 | AA30: =SLOPE($B$29:$B$66,$A$29:$A$66) -> 4.834804095 | AB30: =PEARSON($A$29:$A$66,$B$29:$B$66) -> 0.7815613776 | AC30: =RSQ($B$29:$B$66,$A$29:$A$66) -> 0.6108381869
A31: 2 | B31: 61
A32: 4 | B32: 78
A33: 8 | B33: 81
A34: 1 | B34: 17
A35: 11 | B35: 89
A36: 11 | B36: 99
A37: 2 | B37: 46
A38: 7 | B38: 89
A39: 2 | B39: 54
A40: 5 | B40: 83
A41: 7 | B41: 84
A42: 3 | B42: 59
A43: 6 | B43: 91
A44: 5 | B44: 78
A45: 10 | B45: 100
A46: 6 | B46: 79
A47: 4 | B47: 75
A48: 6 | B48: 86
A49: 7 | B49: 85
A50: 10 | B50: 96
A51: 9 | B51: 94
A52: 4 | B52: 55
A53: 14 | B53: 97
A54: 3 | B54: 44
A55: 4 | B55: 79
A56: 6 | B56: 91
A57: 7 | B57: 93
A58: 3 | B58: 67
A59: 5 | B59: 93
A60: 10 | B60: 95
A61: 2 | B61: 41
A62: 3 | B62: 68
A63: 12 | B63: 93
A64: 4 | B64: 47
A65: 5 | B65: 75
A66: 8 | B66: 97
A68: X = # police | B68: Crimes
A69: 5 | B69: 41
A70: 13 | B70: 45
A71: 27 | B71: 15
A72: 34 | B72: 9
A73: 7 | B73: 43
A74: 35 | B74: 11
A75: 9 | B75: 24
A76: 19 | B76: 21
A77: 16 | B77: 19

Sheet BreakEven
A1: Units | B1: Sales | C1: Total Costs | D1: Fixed Cost | E1: Net Income
A2: =B17 -> 0 | B2: =A2*B$13 -> 0 | C2: =B2*B$15+D2 -> 171562.5 | D2: =B$16 -> 171562.5 | E2: =B2-C2 -> -171562.5
A3: =A2+B$18 -> 3500 | B3: 87500 | C3: 219687.5 | D3: 171562.5 | E3: =B3-C3 -> -132187.5
A4: 7000 | B4: 175000 | C4: 267812.5 | D4: 171562.5 | E4: -92812.5
A5: 10500 | B5: 262500 | C5: 315937.5 | D5: 171562.5 | E5: -53437.5
A6: 14000 | B6: 350000 | C6: 364062.5 | D6: 171562.5 | E6: -14062.5
A7: 17500 | B7: 437500 | C7: 412187.5 | D7: 171562.5 | E7: 25312.5
A8: 21000 | B8: 525000 | C8: 460312.5 | D8: 171562.5 | E8: 64687.5
A9: 24500 | B9: 612500 | C9: 508437.5 | D9: 171562.5 | E9: 104062.5
A10: 28000 | B10: 700000 | C10: 556562.5 | D10: 171562.5 | E10: 143437.5
A12: Assumptions Tables
A13: Sell Price of Boomerang | B13: 25
A14: Units Sold | B14: 15250
A15: Manufacturing Cost of Boomerang as a % of Sell Price | B15: 0.55
A16: Total Fixed Cost for Rest Of Operations | B16: =(B13*B14)*(1-B15) -> 171562.5
A17: Table Start Unit Number | B17: 0
A18: Table Unit Increment | B18: 3500

Sheet 2 Chart Types
A1: Month | B1: Sales | C1: Expenses
A2: Jan | B2: 100 | C2: 75
A3: Feb | B3: 150 | C3: 105
A4: Mar | B4: 210 | C4: 150
A5: Apr | B5: 190 | C5: 140
A6: May | B6: 150 | C6: 110
A7: Jun | B7: 230 | C7: 180

Sheet KeyboardListFromVideo
A1: Keyboard section of video:
A2: Jump: Ctrl + Arrow
A3: Go To Cell A1: Ctrl + Home
A4: Highlight column: Click, Shift, Click
A5: Toggle Ribbon tabs On/Off: Ctrl + F1
A6: Format Cells dialog box or in a chart Format Chart dialog box: Ctrl + 1
A7: Currency Number Format: Ctrl + Shift + 4
A8: Highlight column: Ctrl + Shift + Arrow
A9: Alt keys
A10: PivotTable: Alt, N, V, T
A11: PivotTable 2003: Alt, D, P
A12: Page Setup: Alt, P, S, P
A13: SUM: Alt + =
A14: "Put thing in cell and move selected cell up": Shift + Enter
A15: "Put thing in cell and keep cell selected": Ctrl + Enter
A16: Select sheet to right: Ctrl + PageDown
A17: Select sheet to left: Ctrl + PageUp
A18: "Put thing in cell and move selected to right": Tab
A19: Number Formatting section of video:
A20: Keyboard for hardcoding today's date: Ctrl + ;
A21: General Number Formatting Keyboard: Ctrl + Shift + ~ ( ` )
A22: Keyboard for current time: Ctrl + Shift + ;
A23: Undo: Ctrl + Z
A24: Re-do: Ctrl + Y
A25: Formula and Lookup part of video:
A26: When formula in edit mode, Arrow Keys can select cell references for formulas: Arrow Keys
A27: To get back to "Enter" Mode so you can use arrow keys to get cell references: F2
A28: Select range for formula with keyboard: use Arrow Keys in combination with Shift
A29: Put cell in Edit Mode: F2
A30: Evaluate Formula or formula element: F9
A31: Toggle between Relative, Absolute and Mixed Cell references when cursor is touching cell reference in formula while in edit mode: F4
A32: To populate a range of cells with the formula in the Active Cell: Ctrl + Enter
A33: Jump to next corner in a highlighted range of cells (move active cell): Ctrl + . (period)
A34: Data Validation List: Alt, D, L
A35: Copy: Ctrl + C
A36: Paste: Ctrl + V
A37: Turn Dancing Ants off: Esc
A38: PivotTables
A39: PivotTable: Alt, N, V, T
A40: PivotTable 2003: Alt, D, P
A41: Recorder Macro
A42: Save As: F12
A43: Open VBA Editor Window: Alt + F11
A44: Open List of Macros: Alt + F8
A45: In VBA Editor, show Properties Window: F4
A46: In VBA Editor, Insert new Module: Alt, I, M
A47: Highlight Current Region: Ctrl * (asterisk on number pad) or Ctrl + Shift + 8
A48: Charts
A49: Create Default Sheet on Active Sheet: Alt + F1
A50: Create Default Sheet as New Sheet: F11
A51: Open Format Chart dialog box: Ctrl + 1
